Transaction Date,Local Authority Department,BENEFICIARY,Purpose,Amount,Non Recoverable,Merchant Category
01-02-2022,Brighter Futures Director,Ankh Services,Professional Services - General,1050,0,NON COMMERCIAL SUPPLIER
01-02-2022,Environment and Sustainable Transport,Farid Hillend Engineering Limited,Highway Services,0.04,0,VENDOR
01-02-2022,Environment and Sustainable Transport,Farid Hillend Engineering Limited,Highway Services,343.38,0,VENDOR
01-02-2022,Inclusive Economy & Housing,Personal Information - Redacted,Events,1980,0,INDIVIDUALS
01-02-2022,Adults & Health,Medstar Domiciliary Care Services Ltd,Daycare - Private Contractors Payment,929.2,0,COMMERCIAL SUPPLIER
01-02-2022,"People, Policy and Performance",Forest Gate Community Garden Cic,Arts And Leisure Costs,4000,0,VENDOR
01-02-2022,"People, Policy and Performance",Forest Gate Community Garden Cic,Arts And Leisure Costs,2400,0,VENDOR
01-02-2022,Adults & Health,Supply Chain Coordination Ltd (SCCL),Salaries,524.69,0,NHS BODIES
01-02-2022,oneSource,Daisy Corporate Services Trading Ltd,Land Line Telephone Costs,5120.35,0,COMMERCIAL SUPPLIER
01-02-2022,oneSource,Daisy Corporate Services Trading Ltd,Land Line Telephone Costs,2340.6,0,COMMERCIAL SUPPLIER
01-02-2022,Housing Revenue Account,Daisy Corporate Services Trading Ltd,Cyclical/Planned Maintenance - Mechanical And Electrical,294.22,0,COMMERCIAL SUPPLIER
01-02-2022,oneSource,Daisy Corporate Services Trading Ltd,Land Line Telephone Costs,42614.21,0,COMMERCIAL SUPPLIER
01-02-2022,Housing Revenue Account,Daisy Corporate Services Trading Ltd,Land Line Telephone Costs,345.79,0,COMMERCIAL SUPPLIER
01-02-2022,Housing Revenue Account,Daisy Corporate Services Trading Ltd,Land Line Telephone Costs,2427.88,0,COMMERCIAL SUPPLIER
01-02-2022,Children and Young People,Goldline Cars Ltd,Client Transport,7393.5,0,COMMERCIAL SUPPLIER
01-02-2022,Children and Young People,Futures for Shared Lives Ltd,Supported Other Accommodation - Private Contractors Payment,536.27,0,NON COMMERCIAL SUPPLIER
01-02-2022,Children and Young People,Futures for Shared Lives Ltd,Supported Other Accommodation - Private Contractors Payment,536.27,0,NON COMMERCIAL SUPPLIER
01-02-2022,Children and Young People,Futures for Shared Lives Ltd,Supported Other Accommodation - Private Contractors Payment,536.27,0,NON COMMERCIAL SUPPLIER
01-02-2022,Children and Young People,Futures for Shared Lives Ltd,Supported Other Accommodation - Private Contractors Payment,229.83,0,NON COMMERCIAL SUPPLIER
01-02-2022,Children and Young People,Futures for Shared Lives Ltd,Supported Other Accommodation - Private Contractors Payment,536.27,0,NON COMMERCIAL SUPPLIER
01-02-2022,Dedicated Schools Budget,Jigsaw Occupational Therapy Ltd,Professional Services - General,1051.5,0,COMMERCIAL SUPPLIER
01-02-2022,Dedicated Schools Budget,Personal Information - Redacted,Occupational Health,265.1,0,COMMERCIAL SUPPLIER
01-02-2022,Adults & Health,Eastway Care Ltd,Daycare - Private Contractors Payment,376.16,0,COMMERCIAL SUPPLIER
01-02-2022,Adults & Health,Eastway Care Ltd,Daycare - Private Contractors Payment,376.16,0,COMMERCIAL SUPPLIER
01-02-2022,Adults & Health,Eastway Care Ltd,Daycare - Private Contractors Payment,392.16,0,COMMERCIAL SUPPLIER
01-02-2022,Adults & Health,Eastway Care Ltd,Daycare - Private Contractors Payment,376.16,0,COMMERCIAL SUPPLIER
01-02-2022,Environment and Sustainable Transport,Greener Solutions,Highway Services,159,0,VENDOR
01-02-2022,Environment and Sustainable Transport,Greener Solutions,Highway Services,38,0,VENDOR
01-02-2022,Environment and Sustainable Transport,Greener Solutions,Highway Services,43.6,0,VENDOR
01-02-2022,Environment and Sustainable Transport,Greener Solutions,Highway Services,198,0,VENDOR
01-02-2022,RMS,A M Forktrucks Ltd,Vehicle Hire,810.33,0,COMMERCIAL SUPPLIER
01-02-2022,RMS,A M Forktrucks Ltd,Vehicle Hire,433.33,0,COMMERCIAL SUPPLIER
01-02-2022,RMS,Gandhi Carpets,Private Contractors Payment - Other,682.44,0,COMMERCIAL SUPPLIER
01-02-2022,RMS,Gandhi Carpets,Private Contractors Payment - Other,457.72,0,COMMERCIAL SUPPLIER
01-02-2022,RMS,Gandhi Carpets,Private Contractors Payment - Other,558.75,0,COMMERCIAL SUPPLIER
01-02-2022,RMS,Gandhi Carpets,Private Contractors Payment - Other,690.9,0,COMMERCIAL SUPPLIER
01-02-2022,RMS,Gandhi Carpets,Private Contractors Payment - Other,538.95,0,COMMERCIAL SUPPLIER
01-02-2022,RMS,Gandhi Carpets,Private Contractors Payment - Other,970.21,0,COMMERCIAL SUPPLIER
01-02-2022,RMS,Gandhi Carpets,Private Contractors Payment - Other,336.6,0,COMMERCIAL SUPPLIER
01-02-2022,RMS,Gandhi Carpets,Private Contractors Payment - Other,248.55,0,COMMERCIAL SUPPLIER
01-02-2022,RMS,Gandhi Carpets,Private Contractors Payment - Other,508.2,0,COMMERCIAL SUPPLIER
01-02-2022,RMS,Gandhi Carpets,Private Contractors Payment - Other,840.77,0,COMMERCIAL SUPPLIER
01-02-2022,RMS,Gandhi Carpets,Private Contractors Payment - Other,519.15,0,COMMERCIAL SUPPLIER
01-02-2022,RMS,Gandhi Carpets,Private Contractors Payment - Other,468,0,COMMERCIAL SUPPLIER
01-02-2022,Children and Young People,Jamma Umoja (Residential Services) Ltd,Residential Placements - Private Contractors Payment,4450,0,COMMERCIAL SUPPLIER
01-02-2022,Children and Young People,Jamma Umoja (Residential Services) Ltd,Residential Placements - Private Contractors Payment,1485,0,COMMERCIAL SUPPLIER
01-02-2022,Children and Young People,Childhood First,Residential Placements - Private Contractors Payment,4793.6,0,NON COMMERCIAL SUPPLIER
01-02-2022,Children and Young People,Childhood First,Residential Placements - Private Contractors Payment,4793.6,0,NON COMMERCIAL SUPPLIER
01-02-2022,Children and Young People,Childhood First,Residential Placements - Private Contractors Payment,1198.4,0,NON COMMERCIAL SUPPLIER
01-02-2022,Children and Young People,Childhood First,Residential Placements - Private Contractors Payment,1198.4,0,NON COMMERCIAL SUPPLIER
01-02-2022,Children and Young People,Childhood First,Residential Placements - Private Contractors Payment,4793.6,0,NON COMMERCIAL SUPPLIER
01-02-2022,Children and Young People,Childhood First,Residential Placements - Private Contractors Payment,1198.4,0,NON COMMERCIAL SUPPLIER
01-02-2022,Children and Young People,Childhood First,Residential Placements - Private Contractors Payment,4793.6,0,NON COMMERCIAL SUPPLIER
01-02-2022,Children and Young People,Childhood First,Residential Placements - Private Contractors Payment,1198.4,0,NON COMMERCIAL SUPPLIER
01-02-2022,Children and Young People,Childhood First,Residential Placements - Private Contractors Payment,4793.6,0,NON COMMERCIAL SUPPLIER
01-02-2022,Children and Young People,Childhood First,Residential Placements - Private Contractors Payment,1198.4,0,NON COMMERCIAL SUPPLIER
01-02-2022,Children and Young People,Childhood First,Residential Placements - Private Contractors Payment,1198.4,0,NON COMMERCIAL SUPPLIER
01-02-2022,Children and Young People,Childhood First,Residential Placements - Private Contractors Payment,4793.6,0,NON COMMERCIAL SUPPLIER
01-02-2022,Children and Young People,Childhood First,Residential Placements - Private Contractors Payment,1198.4,0,NON COMMERCIAL SUPPLIER
01-02-2022,Children and Young People,Childhood First,Residential Placements - Private Contractors Payment,4793.6,0,NON COMMERCIAL SUPPLIER
01-02-2022,Children and Young People,Childhood First,Residential Placements - Private Contractors Payment,1198.4,0,NON COMMERCIAL SUPPLIER
01-02-2022,Children and Young People,Childhood First,Residential Placements - Private Contractors Payment,4793.6,0,NON COMMERCIAL SUPPLIER
01-02-2022,Children and Young People,Care Avenues Ltd,Additional Placements - Third Party,9972,0,VENDOR
01-02-2022,Adults & Health,Care Avenues Ltd,Daycare - Private Contractors Payment,440,0,VENDOR
01-02-2022,Adults & Health,Care Avenues Ltd,Daycare - Private Contractors Payment,440,0,VENDOR
01-02-2022,Adults & Health,Care Avenues Ltd,Daycare - Private Contractors Payment,130,0,VENDOR
01-02-2022,Adults & Health,Care Avenues Ltd,Daycare - Private Contractors Payment,440,0,VENDOR
01-02-2022,oneSource,Bdi Securities,Security Services (Excluding Premises),1019.25,0,COMMERCIAL SUPPLIER
01-02-2022,oneSource,Bdi Securities,Security Services (Excluding Premises),364.5,0,COMMERCIAL SUPPLIER
01-02-2022,Children and Young People,Fusion Fostering,Fostering Agency Placements - Private Contractors Payment,750,0,COMMERCIAL SUPPLIER
01-02-2022,Children and Young People,Fusion Fostering,Fostering Agency Placements - Private Contractors Payment,750,0,COMMERCIAL SUPPLIER
01-02-2022,Children and Young People,Fusion Fostering,Fostering Agency Placements - Private Contractors Payment,750,0,COMMERCIAL SUPPLIER
01-02-2022,Children and Young People,Fusion Fostering,Fostering Agency Placements - Private Contractors Payment,750,0,COMMERCIAL SUPPLIER
01-02-2022,Children and Young People,Fusion Fostering,Fostering Agency Placements - Private Contractors Payment,750,0,COMMERCIAL SUPPLIER
01-02-2022,Children and Young People,Fusion Fostering,Fostering Agency Placements - Private Contractors Payment,750,0,COMMERCIAL SUPPLIER
01-02-2022,Children and Young People,Fusion Fostering,Fostering Agency Placements - Private Contractors Payment,750,0,COMMERCIAL SUPPLIER
01-02-2022,Children and Young People,Fusion Fostering,Fostering Agency Placements - Private Contractors Payment,750,0,COMMERCIAL SUPPLIER
01-02-2022,Children and Young People,Fusion Fostering,Fostering Agency Placements - Private Contractors Payment,833.86,0,COMMERCIAL SUPPLIER
01-02-2022,Children and Young People,Fusion Fostering,Fostering Agency Placements - Private Contractors Payment,833.7,0,COMMERCIAL SUPPLIER
01-02-2022,Children and Young People,Fusion Fostering,Fostering Agency Placements - Private Contractors Payment,833.7,0,COMMERCIAL SUPPLIER
01-02-2022,Children and Young People,Fusion Fostering,Fostering Agency Placements - Private Contractors Payment,833.7,0,COMMERCIAL SUPPLIER
01-02-2022,Children and Young People,Fusion Fostering,Fostering Agency Placements - Private Contractors Payment,711.24,0,COMMERCIAL SUPPLIER
01-02-2022,Children and Young People,Fusion Fostering,Fostering Agency Placements - Private Contractors Payment,711.24,0,COMMERCIAL SUPPLIER
01-02-2022,Children and Young People,Fusion Fostering,Fostering Agency Placements - Private Contractors Payment,711.24,0,COMMERCIAL SUPPLIER
01-02-2022,Children and Young People,Fusion Fostering,Fostering Agency Placements - Private Contractors Payment,711.24,0,COMMERCIAL SUPPLIER
01-02-2022,Housing Revenue Account,F R Roofing Ltd,"Maintenance - Equipment, Furniture And Materials",420,0,CIS
01-02-2022,Housing Revenue Account,Every Project Counts Ltd (Epc),Professional Services - General,3386.85,0,CIS
01-02-2022,Children and Young People,Crown Records Management Ltd,Private Contractors Payment - Other,311.18,0,VENDOR
01-02-2022,Children and Young People,Crown Records Management Ltd,Storage And Archiving,243.46,0,VENDOR
01-02-2022,oneSource,Crown Records Management Ltd,Storage And Archiving,1465.71,0,VENDOR
01-02-2022,oneSource - Non Shared,ABCA SYSTEMS LTD,Facilities Management,253.6,0,COMMERCIAL SUPPLIER
01-02-2022,oneSource - Non Shared,ABCA SYSTEMS LTD,Facilities Management,258.8,0,COMMERCIAL SUPPLIER
01-02-2022,Environment and Sustainable Transport,Titan Containers A/S,Hire - Equipment Furniture And Materials,259,0,VENDOR
01-02-2022,RMS,Glass System Ltd,"Purchase - Equipment, Furniture And Materials",562.42,0,COMMERCIAL SUPPLIER
01-02-2022,RMS,Glass System Ltd,"Purchase - Equipment, Furniture And Materials",571.06,0,COMMERCIAL SUPPLIER
01-02-2022,RMS,Glass System Ltd,"Purchase - Equipment, Furniture And Materials",505.51,0,COMMERCIAL SUPPLIER
01-02-2022,RMS,Glass System Ltd,"Purchase - Equipment, Furniture And Materials",430.1,0,COMMERCIAL SUPPLIER
01-02-2022,RMS,Glass System Ltd,"Purchase - Equipment, Furniture And Materials",450.18,0,COMMERCIAL SUPPLIER
01-02-2022,Adults & Health,Barts Health NHS Trust,Professional Services - General,178467,0,NHS BODIES
01-02-2022,oneSource - Non Shared,Lancashire County Council,Miscellaneous Expenses,50280.58,0,LOCAL AUTHORITY SERVICES
01-02-2022,Adults & Health,Sweettree Home Care Services,Daycare - Private Contractors Payment,249.5,0,NON COMMERCIAL SUPPLIER
01-02-2022,Adults & Health,Sweettree Home Care Services,Daycare - Private Contractors Payment,-246.4,0,NON COMMERCIAL SUPPLIER
01-02-2022,Adults & Health,Sweettree Home Care Services,Daycare - Private Contractors Payment,249.5,0,NON COMMERCIAL SUPPLIER
01-02-2022,Adults & Health,Sweettree Home Care Services,Daycare - Private Contractors Payment,249.5,0,NON COMMERCIAL SUPPLIER
01-02-2022,Children and Young People,Sayers (Car Hire),Contact Costs (Placements),230,0,VENDOR
01-02-2022,Children and Young People,Sayers (Car Hire),Contact Costs (Placements),1428,0,VENDOR
01-02-2022,Children and Young People,Sayers (Car Hire),Contact Costs (Placements),846.5,0,VENDOR
01-02-2022,Environment and Sustainable Transport,Worldline IT Services UK Ltd Re Fuel Genie,Transport Fuel,587.07,0,COMMERCIAL SUPPLIER
01-02-2022,"People, Policy and Performance",Ellwood and Atfield Ltd,Staff Recruitment Costs,9600,0,COMMERCIAL SUPPLIER
01-02-2022,Children and Young People,Sunbeam Fostering Agency Ltd,Fostering Agency Placements - Private Contractors Payment,500,0,COMMERCIAL SUPPLIER
01-02-2022,Children and Young People,Sunbeam Fostering Agency Ltd,Fostering Agency Placements - Private Contractors Payment,500,0,COMMERCIAL SUPPLIER
01-02-2022,Children and Young People,Sunbeam Fostering Agency Ltd,Fostering Agency Placements - Private Contractors Payment,500,0,COMMERCIAL SUPPLIER
01-02-2022,Children and Young People,Sunbeam Fostering Agency Ltd,Fostering Agency Placements - Private Contractors Payment,500,0,COMMERCIAL SUPPLIER
01-02-2022,Children and Young People,Sunbeam Fostering Agency Ltd,Fostering Agency Placements - Private Contractors Payment,500,0,COMMERCIAL SUPPLIER
01-02-2022,Children and Young People,Sunbeam Fostering Agency Ltd,Fostering Agency Placements - Private Contractors Payment,500,0,COMMERCIAL SUPPLIER
01-02-2022,Children and Young People,Sunbeam Fostering Agency Ltd,Fostering Agency Placements - Private Contractors Payment,500,0,COMMERCIAL SUPPLIER
01-02-2022,Children and Young People,Sunbeam Fostering Agency Ltd,Fostering Agency Placements - Private Contractors Payment,500,0,COMMERCIAL SUPPLIER
01-02-2022,Children and Young People,Sunbeam Fostering Agency Ltd,Fostering Agency Placements - Private Contractors Payment,500,0,COMMERCIAL SUPPLIER
01-02-2022,Children and Young People,Sunbeam Fostering Agency Ltd,Fostering Agency Placements - Private Contractors Payment,500,0,COMMERCIAL SUPPLIER
01-02-2022,Children and Young People,Sunbeam Fostering Agency Ltd,Fostering Agency Placements - Private Contractors Payment,500,0,COMMERCIAL SUPPLIER
01-02-2022,Children and Young People,Sunbeam Fostering Agency Ltd,Fostering Agency Placements - Private Contractors Payment,500,0,COMMERCIAL SUPPLIER
01-02-2022,Children and Young People,Sunbeam Fostering Agency Ltd,Fostering Agency Placements - Private Contractors Payment,500,0,COMMERCIAL SUPPLIER
01-02-2022,Children and Young People,Sunbeam Fostering Agency Ltd,Fostering Agency Placements - Private Contractors Payment,500,0,COMMERCIAL SUPPLIER
01-02-2022,Children and Young People,Sunbeam Fostering Agency Ltd,Fostering Agency Placements - Private Contractors Payment,500,0,COMMERCIAL SUPPLIER
01-02-2022,Children and Young People,Sunbeam Fostering Agency Ltd,Fostering Agency Placements - Private Contractors Payment,500,0,COMMERCIAL SUPPLIER
01-02-2022,Environment and Sustainable Transport,Portakabin Ltd,Premises Hire - Facilities,3067.37,0,COMMERCIAL SUPPLIER
01-02-2022,oneSource - Non Shared,Building A Future (Newham Schools) Limited,"Maintenance - Equipment, Furniture And Materials",23961.9,0,VENDOR
01-02-2022,oneSource - Non Shared,Building A Future (Newham Schools) Limited,"Maintenance - Equipment, Furniture And Materials",6931.63,0,VENDOR
01-02-2022,oneSource - Non Shared,Building A Future (Newham Schools) Limited,"Maintenance - Equipment, Furniture And Materials",7785.6,0,VENDOR
01-02-2022,oneSource - Non Shared,Building A Future (Newham Schools) Limited,"Maintenance - Equipment, Furniture And Materials",276481.1,0,VENDOR
01-02-2022,oneSource - Non Shared,Building A Future (Newham Schools) Limited,"Maintenance - Equipment, Furniture And Materials",72819.36,0,VENDOR
01-02-2022,oneSource - Non Shared,Building A Future (Newham Schools) Limited,"Maintenance - Equipment, Furniture And Materials",72313.93,0,VENDOR
01-02-2022,oneSource - Non Shared,Newham Learning Partnership (Project Co) Limited,"Maintenance - Equipment, Furniture And Materials",308118.65,0,VENDOR
01-02-2022,oneSource - Non Shared,Newham Learning Partnership (Project Co) Limited,"Maintenance - Equipment, Furniture And Materials",380979.25,0,VENDOR
01-02-2022,oneSource - Non Shared,Royal Mail Group Plc,Postage And Courier Services,1299.4,0,COMMERCIAL SUPPLIER
01-02-2022,oneSource - Non Shared,Royal Mail Group Plc,Postage And Courier Services,290.87,0,COMMERCIAL SUPPLIER
01-02-2022,oneSource - Non Shared,Interserve Security (Knightsbridge)Limited,Security Of Premises,89494.02,0,VENDOR
01-02-2022,RMS,Travis Perkins Trading Company Ltd,"Purchase - Equipment, Furniture And Materials",345.41,0,COMMERCIAL SUPPLIER
01-02-2022,Housing Revenue Account,LMAC Group Ltd,"Maintenance - Equipment, Furniture And Materials",1622.62,0,CIS
01-02-2022,Children and Young People,Ubiqus UK Ltd,Legal Fees,240,0,COMMERCIAL SUPPLIER
01-02-2022,Children and Young People,Ubiqus UK Ltd,Legal Fees,240,0,COMMERCIAL SUPPLIER
01-02-2022,RMS,British Standards Institution,"Purchase - Equipment, Furniture And Materials",271,0,COMMERCIAL SUPPLIER
01-02-2022,Dedicated Schools Budget,New Directions,Professional Services - General,33141.67,0,COMMERCIAL SUPPLIER
01-02-2022,Adults & Health,NAS Services Limited,Daycare - Private Contractors Payment,488.1,0,COMMERCIAL SUPPLIER
01-02-2022,Adults & Health,NAS Services Limited,Daycare - Private Contractors Payment,488.1,0,COMMERCIAL SUPPLIER
01-02-2022,Adults & Health,NAS Services Limited,Daycare - Private Contractors Payment,487.98,0,COMMERCIAL SUPPLIER
01-02-2022,Adults & Health,NAS Services Limited,Daycare - Private Contractors Payment,488.1,0,COMMERCIAL SUPPLIER
01-02-2022,Adults & Health,Blade Security UK,Security Of Premises,11340,0,COMMERCIAL SUPPLIER
01-02-2022,Adults & Health,Reed Employment Plc,Daycare - Private Contractors Payment,542.88,0,COMMERCIAL SUPPLIER
01-02-2022,Adults & Health,Reed Employment Plc,Daycare - Private Contractors Payment,212.76,0,COMMERCIAL SUPPLIER
01-02-2022,Adults & Health,Reed Employment Plc,Daycare - Private Contractors Payment,542.88,0,COMMERCIAL SUPPLIER
01-02-2022,Adults & Health,Reed Employment Plc,Daycare - Private Contractors Payment,542.88,0,COMMERCIAL SUPPLIER
01-02-2022,Inclusive Economy & Housing,Caroe Architecture Ltd,"Maintenance - Equipment, Furniture And Materials",17643.54,0,COMMERCIAL SUPPLIER
01-02-2022,Dedicated Schools Budget,Personal Information - Redacted,Schools - Transfer Payment,7182,0,VENDOR
01-02-2022,Dedicated Schools Budget,Personal Information - Redacted,Schools - Transfer Payment,6200,0,VENDOR
01-02-2022,Dedicated Schools Budget,Personal Information - Redacted,Schools - Transfer Payment,7464,0,COMMERCIAL SUPPLIER
01-02-2022,Dedicated Schools Budget,Personal Information - Redacted,Schools - Transfer Payment,2143,0,COMMERCIAL SUPPLIER
01-02-2022,Dedicated Schools Budget,Personal Information - Redacted,Schools - Transfer Payment,2423,0,COMMERCIAL SUPPLIER
01-02-2022,Dedicated Schools Budget,Personal Information - Redacted,Schools - Transfer Payment,1476,0,COMMERCIAL SUPPLIER
01-02-2022,Dedicated Schools Budget,Personal Information - Redacted,Schools - Transfer Payment,1667,0,COMMERCIAL SUPPLIER
01-02-2022,Dedicated Schools Budget,Personal Information - Redacted,Schools - Transfer Payment,905,0,NON COMMERCIAL SUPPLIER
01-02-2022,Dedicated Schools Budget,Personal Information - Redacted,Schools - Transfer Payment,6101,0,COMMERCIAL SUPPLIER
01-02-2022,Dedicated Schools Budget,Personal Information - Redacted,Schools - Transfer Payment,17678,0,NON COMMERCIAL SUPPLIER
01-02-2022,Dedicated Schools Budget,Personal Information - Redacted,Schools - Transfer Payment,3832,0,NON COMMERCIAL SUPPLIER
01-02-2022,Dedicated Schools Budget,Personal Information - Redacted,Schools - Transfer Payment,1520,0,COMMERCIAL SUPPLIER
01-02-2022,Dedicated Schools Budget,Personal Information - Redacted,Schools - Transfer Payment,1258,0,COMMERCIAL SUPPLIER
01-02-2022,Dedicated Schools Budget,Personal Information - Redacted,Schools - Transfer Payment,1479,0,COMMERCIAL SUPPLIER
01-02-2022,Dedicated Schools Budget,Personal Information - Redacted,Schools - Transfer Payment,3689,0,COMMERCIAL SUPPLIER
01-02-2022,Dedicated Schools Budget,Personal Information - Redacted,Schools - Transfer Payment,3083,0,COMMERCIAL SUPPLIER
01-02-2022,Dedicated Schools Budget,Personal Information - Redacted,Schools - Transfer Payment,2409,0,NON COMMERCIAL SUPPLIER
01-02-2022,Dedicated Schools Budget,Personal Information - Redacted,Schools - Transfer Payment,3083,0,COMMERCIAL SUPPLIER
01-02-2022,Dedicated Schools Budget,Personal Information - Redacted,Schools - Transfer Payment,1651,0,COMMERCIAL SUPPLIER
01-02-2022,Dedicated Schools Budget,Personal Information - Redacted,Schools - Transfer Payment,1542,0,COMMERCIAL SUPPLIER
01-02-2022,Dedicated Schools Budget,Personal Information - Redacted,Schools - Transfer Payment,6254,0,COMMERCIAL SUPPLIER
01-02-2022,Dedicated Schools Budget,Personal Information - Redacted,Schools - Transfer Payment,4625,0,VENDOR
01-02-2022,Dedicated Schools Budget,Personal Information - Redacted,Schools - Transfer Payment,3083,0,COMMERCIAL SUPPLIER
01-02-2022,Dedicated Schools Budget,Personal Information - Redacted,Schools - Transfer Payment,1542,0,COMMERCIAL SUPPLIER
01-02-2022,Dedicated Schools Budget,Personal Information - Redacted,Schools - Transfer Payment,2698,0,COMMERCIAL SUPPLIER
01-02-2022,Dedicated Schools Budget,Personal Information - Redacted,Schools - Transfer Payment,10503,0,COMMERCIAL SUPPLIER
01-02-2022,Dedicated Schools Budget,Personal Information - Redacted,Schools - Transfer Payment,583,0,COMMERCIAL SUPPLIER
01-02-2022,Dedicated Schools Budget,Personal Information - Redacted,Schools - Transfer Payment,2333,0,VENDOR
01-02-2022,Dedicated Schools Budget,Personal Information - Redacted,Schools - Transfer Payment,1619,0,VENDOR
01-02-2022,Dedicated Schools Budget,Personal Information - Redacted,Schools - Transfer Payment,3649,0,COMMERCIAL SUPPLIER
01-02-2022,Dedicated Schools Budget,Personal Information - Redacted,Schools - Transfer Payment,3765,0,COMMERCIAL SUPPLIER
01-02-2022,Dedicated Schools Budget,Personal Information - Redacted,Schools - Transfer Payment,11092,0,COMMERCIAL SUPPLIER
01-02-2022,Dedicated Schools Budget,Personal Information - Redacted,Schools - Transfer Payment,714,0,NON COMMERCIAL SUPPLIER
01-02-2022,Dedicated Schools Budget,Personal Information - Redacted,Schools - Transfer Payment,2760,0,COMMERCIAL SUPPLIER
01-02-2022,Dedicated Schools Budget,David Ross Education Trust t/a Bobby Moore Academy,Schools - Transfer Payment,1167,0,INDIVIDUALS
01-02-2022,Dedicated Schools Budget,Personal Information - Redacted,Schools - Transfer Payment,1219,0,COMMERCIAL SUPPLIER
01-02-2022,Dedicated Schools Budget,Personal Information - Redacted,Schools - Transfer Payment,2078,0,COMMERCIAL SUPPLIER
01-02-2022,Dedicated Schools Budget,Personal Information - Redacted,Schools - Transfer Payment,1146,0,COMMERCIAL SUPPLIER
01-02-2022,Dedicated Schools Budget,Personal Information - Redacted,Schools - Transfer Payment,1645,0,VENDOR
01-02-2022,Dedicated Schools Budget,Personal Information - Redacted,Schools - Transfer Payment,5219,0,NON COMMERCIAL SUPPLIER
01-02-2022,Dedicated Schools Budget,Personal Information - Redacted,Schools - Transfer Payment,3438,0,INDIVIDUALS
01-02-2022,Dedicated Schools Budget,Personal Information - Redacted,Schools - Transfer Payment,2945,0,COMMERCIAL SUPPLIER
01-02-2022,Dedicated Schools Budget,Personal Information - Redacted,Schools - Transfer Payment,703,0,COMMERCIAL SUPPLIER
01-02-2022,Dedicated Schools Budget,Personal Information - Redacted,Schools - Transfer Payment,2854,0,COMMERCIAL SUPPLIER
01-02-2022,Dedicated Schools Budget,Personal Information - Redacted,Schools - Transfer Payment,23113,0,VENDOR
01-02-2022,Dedicated Schools Budget,Personal Information - Redacted,Schools - Transfer Payment,2844,0,NON COMMERCIAL SUPPLIER
01-02-2022,Dedicated Schools Budget,Personal Information - Redacted,Schools - Transfer Payment,7870,0,NON COMMERCIAL SUPPLIER
01-02-2022,Dedicated Schools Budget,Personal Information - Redacted,Schools - Transfer Payment,3481,0,COMMERCIAL SUPPLIER
01-02-2022,Dedicated Schools Budget,Personal Information - Redacted,Schools - Transfer Payment,4882,0,COMMERCIAL SUPPLIER
01-02-2022,Dedicated Schools Budget,Personal Information - Redacted,Schools - Transfer Payment,2202,0,VENDOR
01-02-2022,Dedicated Schools Budget,Personal Information - Redacted,Schools - Transfer Payment,1136,0,NON COMMERCIAL SUPPLIER
01-02-2022,Dedicated Schools Budget,Personal Information - Redacted,Schools - Transfer Payment,11027,0,NON COMMERCIAL SUPPLIER
01-02-2022,Dedicated Schools Budget,Personal Information - Redacted,Schools - Transfer Payment,7781,0,VENDOR
01-02-2022,Dedicated Schools Budget,Personal Information - Redacted,Schools - Transfer Payment,2578,0,NON COMMERCIAL SUPPLIER
01-02-2022,Dedicated Schools Budget,Personal Information - Redacted,Schools - Transfer Payment,390,0,COMMERCIAL SUPPLIER
01-02-2022,Dedicated Schools Budget,Personal Information - Redacted,Schools - Transfer Payment,6552,0,COMMERCIAL SUPPLIER
01-02-2022,Dedicated Schools Budget,Personal Information - Redacted,Schools - Transfer Payment,541,0,COMMERCIAL SUPPLIER
01-02-2022,Dedicated Schools Budget,Personal Information - Redacted,Schools - Transfer Payment,2865,0,COMMERCIAL SUPPLIER
01-02-2022,Dedicated Schools Budget,Personal Information - Redacted,Schools - Transfer Payment,1608,0,COMMERCIAL SUPPLIER
01-02-2022,Adults & Health,Ask Care Ltd,Home Care - Private Contractors Payment,74.88,0,VENDOR
01-02-2022,Adults & Health,Ask Care Ltd,Home Care - Private Contractors Payment,84.24,0,VENDOR
01-02-2022,Adults & Health,Ask Care Ltd,Home Care - Private Contractors Payment,84.24,0,VENDOR
01-02-2022,Adults & Health,Ask Care Ltd,Home Care - Private Contractors Payment,74.88,0,VENDOR
01-02-2022,Adults & Health,Ask Care Ltd,Home Care - Private Contractors Payment,84.24,0,VENDOR
01-02-2022,Adults & Health,Ask Care Ltd,Home Care - Private Contractors Payment,74.88,0,VENDOR
01-02-2022,Adults & Health,Ask Care Ltd,Home Care - Private Contractors Payment,74.88,0,VENDOR
01-02-2022,Adults & Health,Ask Care Ltd,Home Care - Private Contractors Payment,84.24,0,VENDOR
01-02-2022,Adults & Health,Ask Care Ltd,Home Care - Private Contractors Payment,622.44,0,VENDOR
01-02-2022,Adults & Health,Ask Care Ltd,Home Care - Private Contractors Payment,622.44,0,VENDOR
01-02-2022,Adults & Health,Ask Care Ltd,Home Care - Private Contractors Payment,622.44,0,VENDOR
01-02-2022,Adults & Health,Ask Care Ltd,Home Care - Private Contractors Payment,622.44,0,VENDOR
01-02-2022,Adults & Health,Ask Care Ltd,Home Care - Private Contractors Payment,112.32,0,VENDOR
01-02-2022,Adults & Health,Ask Care Ltd,Home Care - Private Contractors Payment,262.08,0,VENDOR
01-02-2022,Adults & Health,Ask Care Ltd,Home Care - Private Contractors Payment,262.08,0,VENDOR
01-02-2022,Adults & Health,Ask Care Ltd,Home Care - Private Contractors Payment,262.08,0,VENDOR
01-02-2022,Adults & Health,Ask Care Ltd,Home Care - Private Contractors Payment,163.8,0,VENDOR
01-02-2022,Adults & Health,Ask Care Ltd,Home Care - Private Contractors Payment,163.8,0,VENDOR
01-02-2022,Adults & Health,Ask Care Ltd,Home Care - Private Contractors Payment,163.8,0,VENDOR
01-02-2022,Adults & Health,Ask Care Ltd,Home Care - Private Contractors Payment,163.8,0,VENDOR
01-02-2022,Adults & Health,Ask Care Ltd,Home Care - Private Contractors Payment,229.32,0,VENDOR
01-02-2022,Adults & Health,Ask Care Ltd,Home Care - Private Contractors Payment,229.32,0,VENDOR
01-02-2022,Adults & Health,Ask Care Ltd,Home Care - Private Contractors Payment,229.32,0,VENDOR
01-02-2022,Adults & Health,Ask Care Ltd,Home Care - Private Contractors Payment,229.32,0,VENDOR
01-02-2022,Adults & Health,Ask Care Ltd,Daycare - Private Contractors Payment,93.6,0,VENDOR
01-02-2022,Adults & Health,Ask Care Ltd,Home Care - Private Contractors Payment,18.72,0,VENDOR
01-02-2022,Adults & Health,Ask Care Ltd,Daycare - Private Contractors Payment,93.6,0,VENDOR
01-02-2022,Adults & Health,Ask Care Ltd,Home Care - Private Contractors Payment,229.32,0,VENDOR
01-02-2022,Adults & Health,Ask Care Ltd,Home Care - Private Contractors Payment,18.72,0,VENDOR
01-02-2022,Adults & Health,Ask Care Ltd,Daycare - Private Contractors Payment,93.6,0,VENDOR
01-02-2022,Adults & Health,Ask Care Ltd,Home Care - Private Contractors Payment,229.32,0,VENDOR
01-02-2022,Adults & Health,Ask Care Ltd,Home Care - Private Contractors Payment,229.32,0,VENDOR
01-02-2022,Adults & Health,Ask Care Ltd,Home Care - Private Contractors Payment,18.72,0,VENDOR
01-02-2022,Adults & Health,Ask Care Ltd,Daycare - Private Contractors Payment,93.6,0,VENDOR
01-02-2022,Adults & Health,Ask Care Ltd,Home Care - Private Contractors Payment,18.72,0,VENDOR
01-02-2022,Adults & Health,Ask Care Ltd,Home Care - Private Contractors Payment,229.32,0,VENDOR
01-02-2022,Adults & Health,Ask Care Ltd,Home Care - Private Contractors Payment,294.84,0,VENDOR
01-02-2022,Adults & Health,Ask Care Ltd,Home Care - Private Contractors Payment,294.84,0,VENDOR
01-02-2022,Adults & Health,Ask Care Ltd,Home Care - Private Contractors Payment,294.84,0,VENDOR
01-02-2022,Adults & Health,Ask Care Ltd,Home Care - Private Contractors Payment,294.84,0,VENDOR
01-02-2022,Adults & Health,Ask Care Ltd,Home Care - Private Contractors Payment,163.8,0,VENDOR
01-02-2022,Adults & Health,Ask Care Ltd,Daycare - Private Contractors Payment,74.88,0,VENDOR
01-02-2022,Adults & Health,Ask Care Ltd,Home Care - Private Contractors Payment,163.8,0,VENDOR
01-02-2022,Adults & Health,Ask Care Ltd,Home Care - Private Contractors Payment,163.8,0,VENDOR
01-02-2022,Adults & Health,Ask Care Ltd,Daycare - Private Contractors Payment,74.88,0,VENDOR
01-02-2022,Adults & Health,Ask Care Ltd,Daycare - Private Contractors Payment,74.88,0,VENDOR
01-02-2022,Adults & Health,Ask Care Ltd,Home Care - Private Contractors Payment,163.8,0,VENDOR
01-02-2022,Adults & Health,Ask Care Ltd,Daycare - Private Contractors Payment,4.68,0,VENDOR
01-02-2022,Adults & Health,Ask Care Ltd,Home Care - Private Contractors Payment,98.28,0,VENDOR
01-02-2022,Adults & Health,Ask Care Ltd,Home Care - Private Contractors Payment,98.28,0,VENDOR
01-02-2022,Adults & Health,Ask Care Ltd,Home Care - Private Contractors Payment,98.28,0,VENDOR
01-02-2022,Adults & Health,Ask Care Ltd,Home Care - Private Contractors Payment,98.28,0,VENDOR
01-02-2022,Adults & Health,Ask Care Ltd,Home Care - Private Contractors Payment,196.56,0,VENDOR
01-02-2022,Adults & Health,Ask Care Ltd,Home Care - Private Contractors Payment,196.56,0,VENDOR
01-02-2022,Adults & Health,Ask Care Ltd,Home Care - Private Contractors Payment,18.72,0,VENDOR
01-02-2022,Adults & Health,Ask Care Ltd,Home Care - Private Contractors Payment,18.72,0,VENDOR
01-02-2022,Adults & Health,Ask Care Ltd,Home Care - Private Contractors Payment,196.56,0,VENDOR
01-02-2022,Adults & Health,Ask Care Ltd,Home Care - Private Contractors Payment,18.72,0,VENDOR
01-02-2022,Adults & Health,Ask Care Ltd,Home Care - Private Contractors Payment,196.56,0,VENDOR
01-02-2022,Adults & Health,Ask Care Ltd,Home Care - Private Contractors Payment,18.72,0,VENDOR
01-02-2022,Adults & Health,Ask Care Ltd,Home Care - Private Contractors Payment,-9.36,0,VENDOR
01-02-2022,Adults & Health,Ask Care Ltd,Home Care - Private Contractors Payment,102.96,0,VENDOR
01-02-2022,Adults & Health,Ask Care Ltd,Home Care - Private Contractors Payment,18.72,0,VENDOR
01-02-2022,Adults & Health,Ask Care Ltd,Home Care - Private Contractors Payment,102.96,0,VENDOR
01-02-2022,Adults & Health,Ask Care Ltd,Home Care - Private Contractors Payment,18.72,0,VENDOR
01-02-2022,Adults & Health,Ask Care Ltd,Home Care - Private Contractors Payment,102.96,0,VENDOR
01-02-2022,Adults & Health,Ask Care Ltd,Home Care - Private Contractors Payment,18.72,0,VENDOR
01-02-2022,Adults & Health,Ask Care Ltd,Home Care - Private Contractors Payment,102.96,0,VENDOR
01-02-2022,Adults & Health,Ask Care Ltd,Home Care - Private Contractors Payment,327.6,0,VENDOR
01-02-2022,Adults & Health,Ask Care Ltd,Home Care - Private Contractors Payment,327.6,0,VENDOR
01-02-2022,Adults & Health,Ask Care Ltd,Home Care - Private Contractors Payment,262.08,0,VENDOR
01-02-2022,Adults & Health,Ask Care Ltd,Home Care - Private Contractors Payment,229.32,0,VENDOR
01-02-2022,Adults & Health,Ask Care Ltd,Home Care - Private Contractors Payment,229.32,0,VENDOR
01-02-2022,Adults & Health,Ask Care Ltd,Home Care - Private Contractors Payment,229.32,0,VENDOR
01-02-2022,Adults & Health,Ask Care Ltd,Home Care - Private Contractors Payment,229.32,0,VENDOR
01-02-2022,Children and Young People,Vicsop Canterburyrent,Payment To Private Sector Landlords (Psl),3060,0,NON COMMERCIAL SUPPLIER
01-02-2022,Children and Young People,Personal Information - Redacted,Schools - Transfer Payment,1567,0,COMMERCIAL SUPPLIER
01-02-2022,Brighter Futures Director,Nurture Academy Ltd,Arts And Leisure Costs,4500,0,COMMERCIAL SUPPLIER
01-02-2022,Dedicated Schools Budget,Personal Information - Redacted,Schools - Transfer Payment,14181,0,COMMERCIAL SUPPLIER
01-02-2022,Dedicated Schools Budget,Personal Information - Redacted,Schools - Transfer Payment,22881,0,NON COMMERCIAL SUPPLIER
01-02-2022,Dedicated Schools Budget,Personal Information - Redacted,Schools - Transfer Payment,18803,0,COMMERCIAL SUPPLIER
01-02-2022,Dedicated Schools Budget,Personal Information - Redacted,Schools - Transfer Payment,23088,0,NON COMMERCIAL SUPPLIER
01-02-2022,Dedicated Schools Budget,Personal Information - Redacted,Schools - Transfer Payment,46804,0,COMMERCIAL SUPPLIER
01-02-2022,Dedicated Schools Budget,Personal Information - Redacted,Schools - Transfer Payment,24878,0,COMMERCIAL SUPPLIER
01-02-2022,Dedicated Schools Budget,Personal Information - Redacted,Schools - Transfer Payment,28690,0,VENDOR
01-02-2022,Dedicated Schools Budget,Personal Information - Redacted,Schools - Transfer Payment,8508,0,COMMERCIAL SUPPLIER
01-02-2022,Dedicated Schools Budget,Personal Information - Redacted,Schools - Transfer Payment,13025,0,COMMERCIAL SUPPLIER
01-02-2022,Dedicated Schools Budget,Personal Information - Redacted,Schools - Transfer Payment,20502,0,NON COMMERCIAL SUPPLIER
01-02-2022,Dedicated Schools Budget,Personal Information - Redacted,Schools - Transfer Payment,20643,0,NON COMMERCIAL SUPPLIER
01-02-2022,Dedicated Schools Budget,Personal Information - Redacted,Schools - Transfer Payment,52410,0,COMMERCIAL SUPPLIER
01-02-2022,Dedicated Schools Budget,Personal Information - Redacted,Schools - Transfer Payment,17401,0,COMMERCIAL SUPPLIER
01-02-2022,Dedicated Schools Budget,Personal Information - Redacted,Schools - Transfer Payment,7550,0,COMMERCIAL SUPPLIER
01-02-2022,Dedicated Schools Budget,Personal Information - Redacted,Schools - Transfer Payment,31533,0,VENDOR
01-02-2022,Dedicated Schools Budget,Personal Information - Redacted,Schools - Transfer Payment,16126,0,COMMERCIAL SUPPLIER
01-02-2022,Dedicated Schools Budget,Personal Information - Redacted,Schools - Transfer Payment,25377,0,COMMERCIAL SUPPLIER
01-02-2022,Dedicated Schools Budget,Personal Information - Redacted,Schools - Transfer Payment,35078,0,VENDOR
01-02-2022,Dedicated Schools Budget,Personal Information - Redacted,Schools - Transfer Payment,14429,0,NON COMMERCIAL SUPPLIER
01-02-2022,Dedicated Schools Budget,Personal Information - Redacted,Schools - Transfer Payment,18717,0,COMMERCIAL SUPPLIER
01-02-2022,Dedicated Schools Budget,Personal Information - Redacted,Schools - Transfer Payment,28511,0,NON COMMERCIAL SUPPLIER
01-02-2022,Dedicated Schools Budget,Personal Information - Redacted,Schools - Transfer Payment,39526,0,COMMERCIAL SUPPLIER
01-02-2022,Dedicated Schools Budget,Personal Information - Redacted,Schools - Transfer Payment,38612,0,VENDOR
01-02-2022,Dedicated Schools Budget,Personal Information - Redacted,Schools - Transfer Payment,22664,0,COMMERCIAL SUPPLIER
01-02-2022,Dedicated Schools Budget,Personal Information - Redacted,Schools - Transfer Payment,5960,0,COMMERCIAL SUPPLIER
01-02-2022,Dedicated Schools Budget,Personal Information - Redacted,Schools - Transfer Payment,16138,0,COMMERCIAL SUPPLIER
01-02-2022,Dedicated Schools Budget,Personal Information - Redacted,Schools - Transfer Payment,19374,0,NON COMMERCIAL SUPPLIER
01-02-2022,Dedicated Schools Budget,Personal Information - Redacted,Schools - Transfer Payment,46754,0,COMMERCIAL SUPPLIER
01-02-2022,Dedicated Schools Budget,Personal Information - Redacted,Schools - Transfer Payment,42890,0,VENDOR
01-02-2022,Dedicated Schools Budget,Personal Information - Redacted,Schools - Transfer Payment,41553,0,COMMERCIAL SUPPLIER
01-02-2022,Dedicated Schools Budget,Personal Information - Redacted,Schools - Transfer Payment,293158.33,0,NON COMMERCIAL SUPPLIER
01-02-2022,Dedicated Schools Budget,Personal Information - Redacted,Schools - Transfer Payment,16568,0,INDIVIDUALS
01-02-2022,Dedicated Schools Budget,Personal Information - Redacted,Schools - Transfer Payment,18496,0,COMMERCIAL SUPPLIER
01-02-2022,Dedicated Schools Budget,Personal Information - Redacted,Schools - Transfer Payment,8992,0,COMMERCIAL SUPPLIER
01-02-2022,Dedicated Schools Budget,Personal Information - Redacted,Schools - Transfer Payment,40929,0,NON COMMERCIAL SUPPLIER
01-02-2022,Dedicated Schools Budget,Personal Information - Redacted,Schools - Transfer Payment,9952,0,COMMERCIAL SUPPLIER
01-02-2022,Dedicated Schools Budget,Personal Information - Redacted,Schools - Transfer Payment,22039,0,COMMERCIAL SUPPLIER
01-02-2022,Dedicated Schools Budget,Personal Information - Redacted,Schools - Transfer Payment,14528,0,COMMERCIAL SUPPLIER
01-02-2022,Dedicated Schools Budget,Personal Information - Redacted,Schools - Transfer Payment,35356,0,COMMERCIAL SUPPLIER
01-02-2022,Dedicated Schools Budget,Personal Information - Redacted,Schools - Transfer Payment,4494,0,VENDOR
01-02-2022,Dedicated Schools Budget,Personal Information - Redacted,Schools - Transfer Payment,7450,0,NON COMMERCIAL SUPPLIER
01-02-2022,Dedicated Schools Budget,Personal Information - Redacted,Schools - Transfer Payment,13200.06,0,VENDOR
01-02-2022,Dedicated Schools Budget,Personal Information - Redacted,Schools - Transfer Payment,99875,0,COMMERCIAL SUPPLIER
01-02-2022,Dedicated Schools Budget,Personal Information - Redacted,Schools - Transfer Payment,18223,0,COMMERCIAL SUPPLIER
01-02-2022,Dedicated Schools Budget,Personal Information - Redacted,Schools - Transfer Payment,17540,0,COMMERCIAL SUPPLIER
01-02-2022,Dedicated Schools Budget,Personal Information - Redacted,Schools - Transfer Payment,7767,0,COMMERCIAL SUPPLIER
01-02-2022,Dedicated Schools Budget,Personal Information - Redacted,Schools - Transfer Payment,20684,0,COMMERCIAL SUPPLIER
01-02-2022,Dedicated Schools Budget,Personal Information - Redacted,Schools - Transfer Payment,1103,0,NON COMMERCIAL SUPPLIER
01-02-2022,Dedicated Schools Budget,Personal Information - Redacted,Schools - Transfer Payment,11556,0,COMMERCIAL SUPPLIER
01-02-2022,Dedicated Schools Budget,Personal Information - Redacted,Schools - Transfer Payment,10433,0,VENDOR
01-02-2022,Dedicated Schools Budget,Personal Information - Redacted,Schools - Transfer Payment,23460,0,COMMERCIAL SUPPLIER
01-02-2022,Dedicated Schools Budget,Personal Information - Redacted,Schools - Transfer Payment,21326,0,COMMERCIAL SUPPLIER
01-02-2022,Dedicated Schools Budget,Personal Information - Redacted,Schools - Transfer Payment,36435,0,COMMERCIAL SUPPLIER
01-02-2022,Dedicated Schools Budget,Personal Information - Redacted,Schools - Transfer Payment,21326,0,COMMERCIAL SUPPLIER
01-02-2022,Dedicated Schools Budget,Personal Information - Redacted,Schools - Transfer Payment,34697,0,NON COMMERCIAL SUPPLIER
01-02-2022,Dedicated Schools Budget,Personal Information - Redacted,Schools - Transfer Payment,13618,0,COMMERCIAL SUPPLIER
01-02-2022,Dedicated Schools Budget,Personal Information - Redacted,Schools - Transfer Payment,28456,0,COMMERCIAL SUPPLIER
01-02-2022,Dedicated Schools Budget,Personal Information - Redacted,Schools - Transfer Payment,10438,0,COMMERCIAL SUPPLIER
01-02-2022,Dedicated Schools Budget,Personal Information - Redacted,Schools - Transfer Payment,13618,0,COMMERCIAL SUPPLIER
01-02-2022,Dedicated Schools Budget,Personal Information - Redacted,Schools - Transfer Payment,15802,0,NON COMMERCIAL SUPPLIER
01-02-2022,Children and Young People,Personal Information - Redacted,Legal Fees,939.8,0,LEGAL SERVICES
01-02-2022,Inclusive Economy & Housing,Personal Information - Redacted,Private Contractors Payment - Other,4000,0,INDIVIDUALS
01-02-2022,Inclusive Economy & Housing,County Private Client Ltd,Payment To Other Local Authorities,1920,0,NON COMMERCIAL SUPPLIER
01-02-2022,Inclusive Economy & Housing,County Private Client Ltd,Payment To Other Local Authorities,1920,0,NON COMMERCIAL SUPPLIER
01-02-2022,Inclusive Economy & Housing,County Private Client Ltd,Payment To Other Local Authorities,1920,0,NON COMMERCIAL SUPPLIER
01-02-2022,Inclusive Economy & Housing,County Private Client Ltd,Payment To Other Local Authorities,1920,0,NON COMMERCIAL SUPPLIER
01-02-2022,Inclusive Economy & Housing,County Private Client Ltd,Payment To Other Local Authorities,1920,0,NON COMMERCIAL SUPPLIER
01-02-2022,Inclusive Economy & Housing,County Private Client Ltd,Payment To Other Local Authorities,1920,0,NON COMMERCIAL SUPPLIER
01-02-2022,Environment and Sustainable Transport,Alliance Automotive UK CV Ltd t/a C V Components,Highway Services,345.79,0,COMMERCIAL SUPPLIER
01-02-2022,Children and Young People,Early Start Education Ltd,Private Contractors Payment - Other,46095,0,INDIVIDUALS
01-02-2022,Environment and Sustainable Transport,ABC Food Law Ltd,Staff Development And Training,585,0,COMMERCIAL SUPPLIER
01-02-2022,Housing Revenue Account,London Network for Pest Solutions Ltd,Cleaning Services,3186,0,COMMERCIAL SUPPLIER
01-02-2022,oneSource - Non Shared,London Network for Pest Solutions Ltd,Salaries,1680,0,COMMERCIAL SUPPLIER
01-02-2022,oneSource - Non Shared,London Network for Pest Solutions Ltd,Private Contractors Payment - Other,1378.63,0,COMMERCIAL SUPPLIER
01-02-2022,"People, Policy and Performance",Well Informed Ltd,"Books, Publications And Resources",1492,0,COMMERCIAL SUPPLIER
01-02-2022,Environment and Sustainable Transport,Posturite Uk Ltd,Stationery,908.65,0,VENDOR
01-02-2022,Children and Young People,Newham Partnership Working Ltd,Professional Services - General,3933,0,VENDOR
01-02-2022,Children and Young People,Personal Information - Redacted,Legal Fees,810,0,LEGAL SERVICES
01-02-2022,Children and Young People,Personal Information - Redacted,Legal Fees,600,0,INDIVIDUALS
01-02-2022,Children and Young People,Personal Information - Redacted,Legal Fees,1100,0,COMMERCIAL SUPPLIER
01-02-2022,Children and Young People,John F Kennedy School,Professional Services - General,5000,0,NON COMMERCIAL SUPPLIER
01-02-2022,Dedicated Schools Budget,John F Kennedy School,Professional Services - General,320645,0,NON COMMERCIAL SUPPLIER
01-02-2022,oneSource - Non Shared,Personal Information - Redacted,"Purchase - Equipment, Furniture And Materials",229.16,0,Employee
01-02-2022,oneSource - Non Shared,Personal Information - Redacted,Stationery,166.48,0,Employee
01-02-2022,Environment and Sustainable Transport,Personal Information - Redacted,Professional Services - General,494.4,0,Employee
01-02-2022,Environment and Sustainable Transport,Personal Information - Redacted,"Purchase - Equipment, Furniture And Materials",229,0,Employee
01-02-2022,Environment and Sustainable Transport,Personal Information - Redacted,Stationery,30.83,0,Employee
01-02-2022,Environment and Sustainable Transport,Personal Information - Redacted,Professional Services - General,494.4,0,Employee
01-02-2022,Environment and Sustainable Transport,Personal Information - Redacted,Professional Services - General,500,0,Employee
01-02-2022,Adults & Health,London Black Women's Project,Private Contractors Payment - Other,16494,0,VENDOR
01-02-2022,Adults & Health,L & Q Living,Supported Other Accommodation - Private Contractors Payment,975.56,0,VENDOR
01-02-2022,Adults & Health,L & Q Living,Supported Other Accommodation - Private Contractors Payment,975.56,0,VENDOR
01-02-2022,Adults & Health,L & Q Living,Supported Other Accommodation - Private Contractors Payment,975.96,0,VENDOR
01-02-2022,Adults & Health,L & Q Living,Supported Other Accommodation - Private Contractors Payment,975.56,0,VENDOR
01-02-2022,Adults & Health,L & Q Living,Supported Other Accommodation - Private Contractors Payment,1108.66,0,VENDOR
01-02-2022,Adults & Health,L & Q Living,Supported Other Accommodation - Private Contractors Payment,1108.66,0,VENDOR
01-02-2022,Adults & Health,L & Q Living,Supported Other Accommodation - Private Contractors Payment,1108.66,0,VENDOR
01-02-2022,Adults & Health,L & Q Living,Supported Other Accommodation - Private Contractors Payment,1108.66,0,VENDOR
01-02-2022,Adults & Health,L & Q Living,Daycare - Private Contractors Payment,111.02,0,VENDOR
01-02-2022,Adults & Health,L & Q Living,Daycare - Private Contractors Payment,111.02,0,VENDOR
01-02-2022,Adults & Health,L & Q Living,Daycare - Private Contractors Payment,111.02,0,VENDOR
01-02-2022,Adults & Health,L & Q Living,Daycare - Private Contractors Payment,111.02,0,VENDOR
01-02-2022,Children and Young People,Oak Housing Ltd,Consultancy Fees,3360,0,COMMERCIAL SUPPLIER
01-02-2022,Children and Young People,Oak Housing Ltd,Consultancy Fees,1962,0,COMMERCIAL SUPPLIER
01-02-2022,Children and Young People,Oak Housing Ltd,Consultancy Fees,1398,0,COMMERCIAL SUPPLIER
01-02-2022,Children and Young People,Personal Information - Redacted,Schools - Transfer Payment,2000,0,NON COMMERCIAL SUPPLIER
01-02-2022,Children and Young People,Personal Information - Redacted,Schools - Transfer Payment,1567,0,NON COMMERCIAL SUPPLIER
01-02-2022,Children and Young People,Personal Information - Redacted,Schools - Transfer Payment,1567,0,NON COMMERCIAL SUPPLIER
01-02-2022,Children and Young People,Personal Information - Redacted,Schools - Transfer Payment,2767,0,NON COMMERCIAL SUPPLIER
01-02-2022,Children and Young People,Unique Contact and Community Services,Equipment & Adaptation - Private Contractors Payment,420,0,COMMERCIAL SUPPLIER
01-02-2022,"People, Policy and Performance",Personal Information - Redacted,Events,1687.5,0,COMMERCIAL SUPPLIER
01-02-2022,Children and Young People,PFS Prepaid Financial Services,Weekly Allowances - Private Contractors Payment,494.96,0,INDIVIDUALS
01-02-2022,Children and Young People,Personal Information - Redacted,Payment To Private Sector Landlords (Psl),2018.7,0,INDIVIDUALS
01-02-2022,Children and Young People,PFS Prepaid Financial Services,Client Expenses - Third Party,2000,0,INDIVIDUALS
01-02-2022,Adults & Health,The Courtney Hotel London Ltd,Rents Payable,3919.16,0,NON COMMERCIAL SUPPLIER
01-02-2022,Adults & Health,Uniting Friends,Daycare - Private Contractors Payment,360.25,0,VENDOR
01-02-2022,Adults & Health,Uniting Friends,Daycare - Private Contractors Payment,360.25,0,VENDOR
01-02-2022,Adults & Health,Uniting Friends,Daycare - Private Contractors Payment,288.2,0,VENDOR
01-02-2022,oneSource - Non Shared,Education Support (Newham) Ltd,"Maintenance - Equipment, Furniture And Materials",329487.81,0,VENDOR
01-02-2022,Children and Young People,Tillian Consultancy Ltd,Consultancy Fees,5250,0,COMMERCIAL SUPPLIER
01-02-2022,Children and Young People,Tillian Consultancy Ltd,Consultancy Fees,7000,0,COMMERCIAL SUPPLIER
01-02-2022,Children and Young People,Carter Brown The Expert Service Ltd,Legal Fees,3395,0,COMMERCIAL SUPPLIER
01-02-2022,Housing Revenue Account,Swan Housing Group,Professional Services - General,740952.87,0,VENDOR
01-02-2022,Inclusive Economy & Housing,Urban Design London,Consultancy Fees,400,0,NON COMMERCIAL SUPPLIER
01-02-2022,Inclusive Economy & Housing,Urban Design London,Consultancy Fees,400,0,NON COMMERCIAL SUPPLIER
01-02-2022,oneSource,Data Interchange Plc,Ict Hardware,6100,0,COMMERCIAL SUPPLIER
02-02-2022,Brighter Futures Director,HOPE 2 HUMANITY,Private Contractors Payment - Other,19068,0,COMMERCIAL SUPPLIER
02-02-2022,Environment and Sustainable Transport,Farid Hillend Engineering Limited,"Purchase - Equipment, Furniture And Materials",260,0,VENDOR
02-02-2022,Housing Revenue Account,Castle Water Ltd,Water And Sewerage,8403.03,0,COMMERCIAL SUPPLIER
02-02-2022,Inclusive Economy & Housing,Castle Water Ltd,Water And Sewerage,133.06,0,COMMERCIAL SUPPLIER
02-02-2022,Inclusive Economy & Housing,Castle Water Ltd,Water And Sewerage,136.65,0,COMMERCIAL SUPPLIER
02-02-2022,Housing Revenue Account,Castle Water Ltd,Water And Sewerage,651.82,0,COMMERCIAL SUPPLIER
02-02-2022,Adults & Health,Hinds Care And Support Services,Daycare - Private Contractors Payment,204,0,FOSTER CARERS
02-02-2022,Adults & Health,Hinds Care And Support Services,Daycare - Private Contractors Payment,140.25,0,FOSTER CARERS
02-02-2022,Adults & Health,Hinds Care And Support Services,Daycare - Private Contractors Payment,204,0,FOSTER CARERS
02-02-2022,Adults & Health,Hinds Care And Support Services,Daycare - Private Contractors Payment,204,0,FOSTER CARERS
02-02-2022,Adults & Health,Hinds Care And Support Services,Daycare - Private Contractors Payment,204,0,FOSTER CARERS
02-02-2022,Brighter Futures Director,UK Islamic Mission,Private Contractors Payment - Other,15653.4,0,NON COMMERCIAL SUPPLIER
02-02-2022,Environment and Sustainable Transport,Sai-Pac (UK) Ltd,Highway Services,1150,0,COMMERCIAL SUPPLIER
02-02-2022,Children and Young People,Gordon Care Services Limited,Residential Placements - Private Contractors Payment,2950,0,COMMERCIAL SUPPLIER
02-02-2022,Children and Young People,Gordon Care Services Limited,Residential Placements - Private Contractors Payment,2856,0,COMMERCIAL SUPPLIER
02-02-2022,Children and Young People,Gordon Care Services Limited,Residential Placements - Private Contractors Payment,2475,0,COMMERCIAL SUPPLIER
02-02-2022,Children and Young People,Gordon Care Services Limited,Residential Placements - Private Contractors Payment,2950,0,COMMERCIAL SUPPLIER
02-02-2022,Children and Young People,Gordon Care Services Limited,Residential Placements - Private Contractors Payment,2856,0,COMMERCIAL SUPPLIER
02-02-2022,Children and Young People,Gordon Care Services Limited,Residential Placements - Private Contractors Payment,2950,0,COMMERCIAL SUPPLIER
02-02-2022,Children and Young People,Gordon Care Services Limited,Residential Placements - Private Contractors Payment,2856,0,COMMERCIAL SUPPLIER
02-02-2022,Children and Young People,Gordon Care Services Limited,Residential Placements - Private Contractors Payment,2856,0,COMMERCIAL SUPPLIER
02-02-2022,Children and Young People,Gordon Care Services Limited,Residential Placements - Private Contractors Payment,2950,0,COMMERCIAL SUPPLIER
02-02-2022,Adults & Health,Gordon Care Services Limited,Daycare - Private Contractors Payment,208,0,COMMERCIAL SUPPLIER
02-02-2022,Adults & Health,Gordon Care Services Limited,Daycare - Private Contractors Payment,208,0,COMMERCIAL SUPPLIER
02-02-2022,Adults & Health,Gordon Care Services Limited,Daycare - Private Contractors Payment,208,0,COMMERCIAL SUPPLIER
02-02-2022,Adults & Health,Gordon Care Services Limited,Daycare - Private Contractors Payment,208,0,COMMERCIAL SUPPLIER
02-02-2022,Adults & Health,Gordon Care Services Limited,Daycare - Private Contractors Payment,208,0,COMMERCIAL SUPPLIER
02-02-2022,Adults & Health,Gordon Care Services Limited,Home Care - Private Contractors Payment,960,0,COMMERCIAL SUPPLIER
02-02-2022,Adults & Health,Gordon Care Services Limited,Home Care - Private Contractors Payment,144,0,COMMERCIAL SUPPLIER
02-02-2022,Adults & Health,Gordon Care Services Limited,Home Care - Private Contractors Payment,960,0,COMMERCIAL SUPPLIER
02-02-2022,Adults & Health,Gordon Care Services Limited,Home Care - Private Contractors Payment,960,0,COMMERCIAL SUPPLIER
02-02-2022,Adults & Health,Gordon Care Services Limited,Home Care - Private Contractors Payment,224,0,COMMERCIAL SUPPLIER
02-02-2022,Adults & Health,Gordon Care Services Limited,Home Care - Private Contractors Payment,224,0,COMMERCIAL SUPPLIER
02-02-2022,Adults & Health,Gordon Care Services Limited,Home Care - Private Contractors Payment,960,0,COMMERCIAL SUPPLIER
02-02-2022,Adults & Health,Gordon Care Services Limited,Home Care - Private Contractors Payment,224,0,COMMERCIAL SUPPLIER
02-02-2022,Adults & Health,Gordon Care Services Limited,Home Care - Private Contractors Payment,960,0,COMMERCIAL SUPPLIER
02-02-2022,Adults & Health,Gordon Care Services Limited,Home Care - Private Contractors Payment,224,0,COMMERCIAL SUPPLIER
02-02-2022,Adults & Health,Gordon Care Services Limited,Daycare - Private Contractors Payment,80,0,COMMERCIAL SUPPLIER
02-02-2022,Adults & Health,Gordon Care Services Limited,Daycare - Private Contractors Payment,320,0,COMMERCIAL SUPPLIER
02-02-2022,Adults & Health,Gordon Care Services Limited,Daycare - Private Contractors Payment,320,0,COMMERCIAL SUPPLIER
02-02-2022,Adults & Health,Gordon Care Services Limited,Daycare - Private Contractors Payment,320,0,COMMERCIAL SUPPLIER
02-02-2022,Adults & Health,Gordon Care Services Limited,Daycare - Private Contractors Payment,320,0,COMMERCIAL SUPPLIER
02-02-2022,Adults & Health,Gordon Care Services Limited,Daycare - Private Contractors Payment,190,0,COMMERCIAL SUPPLIER
02-02-2022,Adults & Health,Stannah Lift Services Ltd,Private Contractors Payment - Other,7398,0,CIS
02-02-2022,Children and Young People,Praxis Community Projects Ltd,Private Contractors Payment - Other,13992.7,0,COMMERCIAL SUPPLIER
02-02-2022,Brighter Futures Director,Redspot Healthcare Services Ltd,Agency Staff,1571.75,0,COMMERCIAL SUPPLIER
02-02-2022,Environment and Sustainable Transport,Greener Solutions,Highway Services,55,0,VENDOR
02-02-2022,Environment and Sustainable Transport,Greener Solutions,Highway Services,80,0,VENDOR
02-02-2022,Environment and Sustainable Transport,Greener Solutions,Highway Services,75,0,VENDOR
02-02-2022,RMS,GB Macks Skips,Refuse Collection,974.4,0,COMMERCIAL SUPPLIER
02-02-2022,oneSource,London Borough of Waltham Forest,Bailiff Fees Income,9421.2,0,LOCAL AUTHORITY SERVICES
02-02-2022,Adults & Health,Avenue Property Construction Limited,Private Contractors Payment - Other,6662,0,CIS
02-02-2022,Adults & Health,Advanced Building  & Maintenance Services Limited,Private Contractors Payment - Other,2446.95,0,CIS
02-02-2022,Children and Young People,Purple Pebbles,Supported Other Accommodation - Private Contractors Payment,75,0,COMMERCIAL SUPPLIER
02-02-2022,Children and Young People,Purple Pebbles,Supported Other Accommodation - Private Contractors Payment,75,0,COMMERCIAL SUPPLIER
02-02-2022,Children and Young People,Purple Pebbles,Supported Other Accommodation - Private Contractors Payment,325,0,COMMERCIAL SUPPLIER
02-02-2022,Children and Young People,Purple Pebbles,Supported Other Accommodation - Private Contractors Payment,75,0,COMMERCIAL SUPPLIER
02-02-2022,Children and Young People,Purple Pebbles,Supported Other Accommodation - Private Contractors Payment,325,0,COMMERCIAL SUPPLIER
02-02-2022,Children and Young People,Purple Pebbles,Supported Other Accommodation - Private Contractors Payment,75,0,COMMERCIAL SUPPLIER
02-02-2022,Children and Young People,Purple Pebbles,Supported Other Accommodation - Private Contractors Payment,325,0,COMMERCIAL SUPPLIER
02-02-2022,Children and Young People,Purple Pebbles,Supported Other Accommodation - Private Contractors Payment,325,0,COMMERCIAL SUPPLIER
02-02-2022,Adults & Health,Deafblind UK.,Daycare - Private Contractors Payment,246,0,COMMERCIAL SUPPLIER
02-02-2022,Adults & Health,Deafblind UK.,Daycare - Private Contractors Payment,246,0,COMMERCIAL SUPPLIER
02-02-2022,Adults & Health,Deafblind UK.,Daycare - Private Contractors Payment,246,0,COMMERCIAL SUPPLIER
02-02-2022,Adults & Health,Deafblind UK.,Daycare - Private Contractors Payment,246.01,0,COMMERCIAL SUPPLIER
02-02-2022,Adults & Health,Deafblind UK.,Daycare - Private Contractors Payment,261.4,0,COMMERCIAL SUPPLIER
02-02-2022,Adults & Health,Deafblind UK.,Daycare - Private Contractors Payment,338.25,0,COMMERCIAL SUPPLIER
02-02-2022,Adults & Health,Deafblind UK.,Daycare - Private Contractors Payment,338.25,0,COMMERCIAL SUPPLIER
02-02-2022,Adults & Health,Deafblind UK.,Daycare - Private Contractors Payment,153.75,0,COMMERCIAL SUPPLIER
02-02-2022,Environment and Sustainable Transport,Ford Motor Company Ltd t/a PartsPlus,Highway Services,41.5,0,COMMERCIAL SUPPLIER
02-02-2022,Environment and Sustainable Transport,Ford Motor Company Ltd t/a PartsPlus,Highway Services,28.54,0,COMMERCIAL SUPPLIER
02-02-2022,Environment and Sustainable Transport,Ford Motor Company Ltd t/a PartsPlus,Highway Services,25.48,0,COMMERCIAL SUPPLIER
02-02-2022,Environment and Sustainable Transport,Ford Motor Company Ltd t/a PartsPlus,Highway Services,7.86,0,COMMERCIAL SUPPLIER
02-02-2022,Environment and Sustainable Transport,Ford Motor Company Ltd t/a PartsPlus,Highway Services,14.81,0,COMMERCIAL SUPPLIER
02-02-2022,Environment and Sustainable Transport,Ford Motor Company Ltd t/a PartsPlus,Highway Services,39.91,0,COMMERCIAL SUPPLIER
02-02-2022,Environment and Sustainable Transport,Ford Motor Company Ltd t/a PartsPlus,Highway Services,30.68,0,COMMERCIAL SUPPLIER
02-02-2022,Environment and Sustainable Transport,Ford Motor Company Ltd t/a PartsPlus,Highway Services,5.34,0,COMMERCIAL SUPPLIER
02-02-2022,Environment and Sustainable Transport,Ford Motor Company Ltd t/a PartsPlus,Highway Services,19.9,0,COMMERCIAL SUPPLIER
02-02-2022,Environment and Sustainable Transport,Ford Motor Company Ltd t/a PartsPlus,Highway Services,5.34,0,COMMERCIAL SUPPLIER
02-02-2022,Environment and Sustainable Transport,Ford Motor Company Ltd t/a PartsPlus,Highway Services,7.86,0,COMMERCIAL SUPPLIER
02-02-2022,Dedicated Schools Budget,Jarvis Training Management Ltd,Staff Development And Training,3366,0,COMMERCIAL SUPPLIER
02-02-2022,Environment and Sustainable Transport,Enterprise Flex-E-Rent,Client Transport,533.87,0,COMMERCIAL SUPPLIER
02-02-2022,Environment and Sustainable Transport,Enterprise Flex-E-Rent,Client Transport,663.05,0,COMMERCIAL SUPPLIER
02-02-2022,Environment and Sustainable Transport,Enterprise Flex-E-Rent,Client Transport,408.26,0,COMMERCIAL SUPPLIER
02-02-2022,Environment and Sustainable Transport,Enterprise Flex-E-Rent,Client Transport,408.26,0,COMMERCIAL SUPPLIER
02-02-2022,Environment and Sustainable Transport,Enterprise Flex-E-Rent,Client Transport,408.26,0,COMMERCIAL SUPPLIER
02-02-2022,Environment and Sustainable Transport,Enterprise Flex-E-Rent,Client Transport,408.26,0,COMMERCIAL SUPPLIER
02-02-2022,Environment and Sustainable Transport,Enterprise Flex-E-Rent,Client Transport,408.26,0,COMMERCIAL SUPPLIER
02-02-2022,Environment and Sustainable Transport,Enterprise Flex-E-Rent,Client Transport,408.26,0,COMMERCIAL SUPPLIER
02-02-2022,Environment and Sustainable Transport,Enterprise Flex-E-Rent,Client Transport,408.26,0,COMMERCIAL SUPPLIER
02-02-2022,Environment and Sustainable Transport,Enterprise Flex-E-Rent,Client Transport,408.26,0,COMMERCIAL SUPPLIER
02-02-2022,Children and Young People,Potton Kare Services,Additional Placements - Third Party,231.6,0,VENDOR
02-02-2022,Children and Young People,Potton Kare Services,Additional Placements - Third Party,93.9,0,VENDOR
02-02-2022,Children and Young People,Potton Kare Services,Additional Placements - Third Party,301.5,0,VENDOR
02-02-2022,Children and Young People,Potton Kare Services,Additional Placements - Third Party,301.5,0,VENDOR
02-02-2022,Children and Young People,Potton Kare Services,Additional Placements - Third Party,57.9,0,VENDOR
02-02-2022,Children and Young People,Potton Kare Services,Additional Placements - Third Party,231.6,0,VENDOR
02-02-2022,Children and Young People,Potton Kare Services,Additional Placements - Third Party,255.6,0,VENDOR
02-02-2022,Children and Young People,Potton Kare Services,Additional Placements - Third Party,289.5,0,VENDOR
02-02-2022,Inclusive Economy & Housing,Middlesex University,Professional Services - General,2225,0,COMMERCIAL SUPPLIER
02-02-2022,Inclusive Economy & Housing,Middlesex University,Professional Services - General,2225,0,COMMERCIAL SUPPLIER
02-02-2022,Adults & Health,Sahara Homes Ltd,Home Care - Private Contractors Payment,71450.36,0,COMMERCIAL SUPPLIER
02-02-2022,Children and Young People,London Darbar Limited,Events,4800,0,COMMERCIAL SUPPLIER
02-02-2022,Children and Young People,Rainbow Fostering Services Ltd,Fostering Agency Placements - Private Contractors Payment,531.14,0,COMMERCIAL SUPPLIER
02-02-2022,Children and Young People,Rainbow Fostering Services Ltd,Fostering Agency Placements - Private Contractors Payment,802.75,0,COMMERCIAL SUPPLIER
02-02-2022,Children and Young People,Rainbow Fostering Services Ltd,Fostering Agency Placements - Private Contractors Payment,802.75,0,COMMERCIAL SUPPLIER
02-02-2022,Children and Young People,Rainbow Fostering Services Ltd,Fostering Agency Placements - Private Contractors Payment,802.75,0,COMMERCIAL SUPPLIER
02-02-2022,Children and Young People,Rainbow Fostering Services Ltd,Fostering Agency Placements - Private Contractors Payment,802.75,0,COMMERCIAL SUPPLIER
02-02-2022,Children and Young People,Rainbow Fostering Services Ltd,Fostering Agency Placements - Private Contractors Payment,-200,0,COMMERCIAL SUPPLIER
02-02-2022,Children and Young People,Rainbow Fostering Services Ltd,Fostering Agency Placements - Private Contractors Payment,1400,0,COMMERCIAL SUPPLIER
02-02-2022,Children and Young People,Rainbow Fostering Services Ltd,Fostering Agency Placements - Private Contractors Payment,1400,0,COMMERCIAL SUPPLIER
02-02-2022,Children and Young People,Rainbow Fostering Services Ltd,Fostering Agency Placements - Private Contractors Payment,1400,0,COMMERCIAL SUPPLIER
02-02-2022,Children and Young People,Rainbow Fostering Services Ltd,Fostering Agency Placements - Private Contractors Payment,1400,0,COMMERCIAL SUPPLIER
02-02-2022,oneSource - Non Shared,Court Catering Equipment Ltd,Catering Equipment,1989.71,0,COMMERCIAL SUPPLIER
02-02-2022,RMS,Blackburn & CO. Ltd,Private Contractors Payment - Other,1250,0,CIS
02-02-2022,Housing Revenue Account,Manpower Direct Ltd,Security Of Premises,87352.32,0,COMMERCIAL SUPPLIER
02-02-2022,oneSource - Non Shared,Allsop LLP,Consultancy Fees,5000,0,COMMERCIAL SUPPLIER
02-02-2022,Adults & Health,St Mark's Day Service,Daycare - Private Contractors Payment,1120,0,VENDOR
02-02-2022,Adults & Health,St Mark's Day Service,Daycare - Private Contractors Payment,1120,0,VENDOR
02-02-2022,Adults & Health,St Mark's Day Service,Daycare - Private Contractors Payment,1120,0,VENDOR
02-02-2022,Adults & Health,St Mark's Day Service,Daycare - Private Contractors Payment,1120,0,VENDOR
02-02-2022,Children and Young People,Banya Family Placement Agency Ltd,Fostering Agency Placements - Private Contractors Payment,375.84,0,COMMERCIAL SUPPLIER
02-02-2022,Children and Young People,Banya Family Placement Agency Ltd,Fostering Agency Placements - Private Contractors Payment,62.64,0,COMMERCIAL SUPPLIER
02-02-2022,Adults & Health,Care Support,Home Care - Private Contractors Payment,189,0,COMMERCIAL SUPPLIER
02-02-2022,Adults & Health,Care Support,Daycare - Private Contractors Payment,54,0,COMMERCIAL SUPPLIER
02-02-2022,Adults & Health,Care Support,Home Care - Private Contractors Payment,189,0,COMMERCIAL SUPPLIER
02-02-2022,Adults & Health,Care Support,Home Care - Private Contractors Payment,189,0,COMMERCIAL SUPPLIER
02-02-2022,Adults & Health,Care Support,Home Care - Private Contractors Payment,18,0,COMMERCIAL SUPPLIER
02-02-2022,Adults & Health,Care Support,Home Care - Private Contractors Payment,18,0,COMMERCIAL SUPPLIER
02-02-2022,Adults & Health,Care Support,Daycare - Private Contractors Payment,45,0,COMMERCIAL SUPPLIER
02-02-2022,Adults & Health,Care Support,Home Care - Private Contractors Payment,378,0,COMMERCIAL SUPPLIER
02-02-2022,Adults & Health,Care Support,Home Care - Private Contractors Payment,18,0,COMMERCIAL SUPPLIER
02-02-2022,Adults & Health,Care Support,Home Care - Private Contractors Payment,126,0,COMMERCIAL SUPPLIER
02-02-2022,Adults & Health,Care Support,Home Care - Private Contractors Payment,72,0,COMMERCIAL SUPPLIER
02-02-2022,Adults & Health,Care Support,Home Care - Private Contractors Payment,54,0,COMMERCIAL SUPPLIER
02-02-2022,Adults & Health,Care Support,Home Care - Private Contractors Payment,54,0,COMMERCIAL SUPPLIER
02-02-2022,Adults & Health,Care Support,Home Care - Private Contractors Payment,315,0,COMMERCIAL SUPPLIER
02-02-2022,Adults & Health,Care Support,Home Care - Private Contractors Payment,252,0,COMMERCIAL SUPPLIER
02-02-2022,Adults & Health,Care Support,Home Care - Private Contractors Payment,198,0,COMMERCIAL SUPPLIER
02-02-2022,Adults & Health,Care Support,Home Care - Private Contractors Payment,216,0,COMMERCIAL SUPPLIER
02-02-2022,Adults & Health,Care Support,Home Care - Private Contractors Payment,18,0,COMMERCIAL SUPPLIER
02-02-2022,Adults & Health,Care Support,Home Care - Private Contractors Payment,36,0,COMMERCIAL SUPPLIER
02-02-2022,Adults & Health,Care Support,Home Care - Private Contractors Payment,252,0,COMMERCIAL SUPPLIER
02-02-2022,Adults & Health,Care Support,Home Care - Private Contractors Payment,220.5,0,COMMERCIAL SUPPLIER
02-02-2022,Adults & Health,Care Support,Home Care - Private Contractors Payment,18,0,COMMERCIAL SUPPLIER
02-02-2022,Adults & Health,Care Support,Home Care - Private Contractors Payment,18,0,COMMERCIAL SUPPLIER
02-02-2022,Adults & Health,Care Support,Home Care - Private Contractors Payment,216,0,COMMERCIAL SUPPLIER
02-02-2022,Adults & Health,Care Support,Home Care - Private Contractors Payment,126,0,COMMERCIAL SUPPLIER
02-02-2022,Adults & Health,Care Support,Home Care - Private Contractors Payment,18,0,COMMERCIAL SUPPLIER
02-02-2022,Adults & Health,Care Support,Home Care - Private Contractors Payment,126,0,COMMERCIAL SUPPLIER
02-02-2022,Adults & Health,Care Support,Home Care - Private Contractors Payment,189,0,COMMERCIAL SUPPLIER
02-02-2022,Adults & Health,Care Support,Home Care - Private Contractors Payment,189,0,COMMERCIAL SUPPLIER
02-02-2022,Adults & Health,Care Support,Home Care - Private Contractors Payment,220.5,0,COMMERCIAL SUPPLIER
02-02-2022,Adults & Health,Care Support,Home Care - Private Contractors Payment,72,0,COMMERCIAL SUPPLIER
02-02-2022,Adults & Health,Care Support,Home Care - Private Contractors Payment,36,0,COMMERCIAL SUPPLIER
02-02-2022,Adults & Health,Care Support,Home Care - Private Contractors Payment,54,0,COMMERCIAL SUPPLIER
02-02-2022,Adults & Health,Care Support,Home Care - Private Contractors Payment,441,0,COMMERCIAL SUPPLIER
02-02-2022,Adults & Health,Care Support,Home Care - Private Contractors Payment,252,0,COMMERCIAL SUPPLIER
02-02-2022,Adults & Health,Care Support,Home Care - Private Contractors Payment,18,0,COMMERCIAL SUPPLIER
02-02-2022,Adults & Health,Care Support,Home Care - Private Contractors Payment,189,0,COMMERCIAL SUPPLIER
02-02-2022,Adults & Health,Care Support,Home Care - Private Contractors Payment,126,0,COMMERCIAL SUPPLIER
02-02-2022,Adults & Health,Care Support,Daycare - Private Contractors Payment,18,0,COMMERCIAL SUPPLIER
02-02-2022,Adults & Health,Care Support,Home Care - Private Contractors Payment,126,0,COMMERCIAL SUPPLIER
02-02-2022,Adults & Health,Care Support,Home Care - Private Contractors Payment,220.5,0,COMMERCIAL SUPPLIER
02-02-2022,Adults & Health,Care Support,Home Care - Private Contractors Payment,36,0,COMMERCIAL SUPPLIER
02-02-2022,Adults & Health,Care Support,Home Care - Private Contractors Payment,123.14,0,COMMERCIAL SUPPLIER
02-02-2022,Adults & Health,Care Support,Home Care - Private Contractors Payment,164.96,0,COMMERCIAL SUPPLIER
02-02-2022,Adults & Health,Care Support,Home Care - Private Contractors Payment,8.66,0,COMMERCIAL SUPPLIER
02-02-2022,Adults & Health,Care Support,Home Care - Private Contractors Payment,18,0,COMMERCIAL SUPPLIER
02-02-2022,Adults & Health,Care Support,Home Care - Private Contractors Payment,18,0,COMMERCIAL SUPPLIER
02-02-2022,Adults & Health,Care Support,Daycare - Private Contractors Payment,45,0,COMMERCIAL SUPPLIER
02-02-2022,Adults & Health,Care Support,Home Care - Private Contractors Payment,51.52,0,COMMERCIAL SUPPLIER
02-02-2022,Adults & Health,Care Support,Home Care - Private Contractors Payment,180.32,0,COMMERCIAL SUPPLIER
02-02-2022,Adults & Health,Care Support,Home Care - Private Contractors Payment,141.68,0,COMMERCIAL SUPPLIER
02-02-2022,Adults & Health,Care Support,Home Care - Private Contractors Payment,221.44,0,COMMERCIAL SUPPLIER
02-02-2022,Adults & Health,Care Support,Home Care - Private Contractors Payment,9,0,COMMERCIAL SUPPLIER
02-02-2022,Adults & Health,Care Support,Home Care - Private Contractors Payment,70,0,COMMERCIAL SUPPLIER
02-02-2022,Adults & Health,Care Support,Home Care - Private Contractors Payment,126,0,COMMERCIAL SUPPLIER
02-02-2022,Adults & Health,Care Support,Home Care - Private Contractors Payment,179.84,0,COMMERCIAL SUPPLIER
02-02-2022,Adults & Health,Care Support,Home Care - Private Contractors Payment,269.48,0,COMMERCIAL SUPPLIER
02-02-2022,Adults & Health,Care Support,Home Care - Private Contractors Payment,54,0,COMMERCIAL SUPPLIER
02-02-2022,Adults & Health,Care Support,Daycare - Private Contractors Payment,17,0,COMMERCIAL SUPPLIER
02-02-2022,Adults & Health,Care Support,Home Care - Private Contractors Payment,36,0,COMMERCIAL SUPPLIER
02-02-2022,Adults & Health,Care Support,Daycare - Private Contractors Payment,36,0,COMMERCIAL SUPPLIER
02-02-2022,Adults & Health,Care Support,Home Care - Private Contractors Payment,220.5,0,COMMERCIAL SUPPLIER
02-02-2022,Adults & Health,Care Support,Home Care - Private Contractors Payment,252,0,COMMERCIAL SUPPLIER
02-02-2022,Adults & Health,Care Support,Daycare - Private Contractors Payment,36,0,COMMERCIAL SUPPLIER
02-02-2022,Adults & Health,Care Support,Home Care - Private Contractors Payment,126,0,COMMERCIAL SUPPLIER
02-02-2022,Adults & Health,Care Support,Daycare - Private Contractors Payment,36,0,COMMERCIAL SUPPLIER
02-02-2022,Adults & Health,Care Support,Home Care - Private Contractors Payment,54,0,COMMERCIAL SUPPLIER
02-02-2022,Adults & Health,Care Support,Daycare - Private Contractors Payment,36,0,COMMERCIAL SUPPLIER
02-02-2022,Adults & Health,Care Support,Home Care - Private Contractors Payment,216,0,COMMERCIAL SUPPLIER
02-02-2022,Adults & Health,Care Support,Daycare - Private Contractors Payment,36,0,COMMERCIAL SUPPLIER
02-02-2022,Adults & Health,Care Support,Home Care - Private Contractors Payment,36,0,COMMERCIAL SUPPLIER
02-02-2022,Adults & Health,Care Support,Home Care - Private Contractors Payment,189,0,COMMERCIAL SUPPLIER
02-02-2022,Adults & Health,Care Support,Home Care - Private Contractors Payment,220.5,0,COMMERCIAL SUPPLIER
02-02-2022,Adults & Health,Care Support,Home Care - Private Contractors Payment,126,0,COMMERCIAL SUPPLIER
02-02-2022,Adults & Health,Care Support,Daycare - Private Contractors Payment,36,0,COMMERCIAL SUPPLIER
02-02-2022,Adults & Health,Care Support,Home Care - Private Contractors Payment,18,0,COMMERCIAL SUPPLIER
02-02-2022,Adults & Health,Care Support,Home Care - Private Contractors Payment,18,0,COMMERCIAL SUPPLIER
02-02-2022,Adults & Health,Care Support,Home Care - Private Contractors Payment,36,0,COMMERCIAL SUPPLIER
02-02-2022,Adults & Health,Care Support,Home Care - Private Contractors Payment,252,0,COMMERCIAL SUPPLIER
02-02-2022,Adults & Health,Care Support,Home Care - Private Contractors Payment,441,0,COMMERCIAL SUPPLIER
02-02-2022,Adults & Health,Care Support,Home Care - Private Contractors Payment,9,0,COMMERCIAL SUPPLIER
02-02-2022,Adults & Health,Care Support,Home Care - Private Contractors Payment,72,0,COMMERCIAL SUPPLIER
02-02-2022,Adults & Health,Care Support,Home Care - Private Contractors Payment,198,0,COMMERCIAL SUPPLIER
02-02-2022,Adults & Health,Care Support,Home Care - Private Contractors Payment,36,0,COMMERCIAL SUPPLIER
02-02-2022,Adults & Health,Care Support,Home Care - Private Contractors Payment,220.5,0,COMMERCIAL SUPPLIER
02-02-2022,Adults & Health,Care Support,Daycare - Private Contractors Payment,18,0,COMMERCIAL SUPPLIER
02-02-2022,Adults & Health,Care Support,Home Care - Private Contractors Payment,220.5,0,COMMERCIAL SUPPLIER
02-02-2022,Adults & Health,Care Support,Daycare - Private Contractors Payment,36,0,COMMERCIAL SUPPLIER
02-02-2022,Adults & Health,Care Support,Home Care - Private Contractors Payment,220.5,0,COMMERCIAL SUPPLIER
02-02-2022,Adults & Health,Care Support,Daycare - Private Contractors Payment,36,0,COMMERCIAL SUPPLIER
02-02-2022,Adults & Health,Care Support,Home Care - Private Contractors Payment,315,0,COMMERCIAL SUPPLIER
02-02-2022,Adults & Health,Care Support,Home Care - Private Contractors Payment,220.5,0,COMMERCIAL SUPPLIER
02-02-2022,Adults & Health,Care Support,Daycare - Private Contractors Payment,18,0,COMMERCIAL SUPPLIER
02-02-2022,Adults & Health,Care Support,Home Care - Private Contractors Payment,18,0,COMMERCIAL SUPPLIER
02-02-2022,Adults & Health,Care Support,Home Care - Private Contractors Payment,441,0,COMMERCIAL SUPPLIER
02-02-2022,Adults & Health,Care Support,Home Care - Private Contractors Payment,36,0,COMMERCIAL SUPPLIER
02-02-2022,Adults & Health,Care Support,Home Care - Private Contractors Payment,36,0,COMMERCIAL SUPPLIER
02-02-2022,Adults & Health,Care Support,Home Care - Private Contractors Payment,18,0,COMMERCIAL SUPPLIER
02-02-2022,Adults & Health,Care Support,Home Care - Private Contractors Payment,18,0,COMMERCIAL SUPPLIER
02-02-2022,Adults & Health,Care Support,Home Care - Private Contractors Payment,189,0,COMMERCIAL SUPPLIER
02-02-2022,Adults & Health,Care Support,Home Care - Private Contractors Payment,18,0,COMMERCIAL SUPPLIER
02-02-2022,Adults & Health,Care Support,Home Care - Private Contractors Payment,117.32,0,COMMERCIAL SUPPLIER
02-02-2022,Adults & Health,Care Support,Home Care - Private Contractors Payment,125,0,COMMERCIAL SUPPLIER
02-02-2022,Adults & Health,Care Support,Daycare - Private Contractors Payment,54,0,COMMERCIAL SUPPLIER
02-02-2022,Adults & Health,Care Support,Home Care - Private Contractors Payment,74.8,0,COMMERCIAL SUPPLIER
02-02-2022,Adults & Health,Care Support,Home Care - Private Contractors Payment,9,0,COMMERCIAL SUPPLIER
02-02-2022,Adults & Health,Care Support,Home Care - Private Contractors Payment,36,0,COMMERCIAL SUPPLIER
02-02-2022,Adults & Health,Care Support,Home Care - Private Contractors Payment,378,0,COMMERCIAL SUPPLIER
02-02-2022,Adults & Health,Care Support,Home Care - Private Contractors Payment,189,0,COMMERCIAL SUPPLIER
02-02-2022,Adults & Health,Care Support,Daycare - Private Contractors Payment,36,0,COMMERCIAL SUPPLIER
02-02-2022,Adults & Health,Care Support,Daycare - Private Contractors Payment,36,0,COMMERCIAL SUPPLIER
02-02-2022,Adults & Health,Care Support,Daycare - Private Contractors Payment,54,0,COMMERCIAL SUPPLIER
02-02-2022,Adults & Health,Care Support,Home Care - Private Contractors Payment,54,0,COMMERCIAL SUPPLIER
02-02-2022,Adults & Health,Care Support,Home Care - Private Contractors Payment,18,0,COMMERCIAL SUPPLIER
02-02-2022,Adults & Health,Care Support,Home Care - Private Contractors Payment,315,0,COMMERCIAL SUPPLIER
02-02-2022,Adults & Health,Care Support,Home Care - Private Contractors Payment,72,0,COMMERCIAL SUPPLIER
02-02-2022,Adults & Health,Care Support,Home Care - Private Contractors Payment,189,0,COMMERCIAL SUPPLIER
02-02-2022,Adults & Health,Care Support,Daycare - Private Contractors Payment,33.76,0,COMMERCIAL SUPPLIER
02-02-2022,Adults & Health,Care Support,Daycare - Private Contractors Payment,18.4,0,COMMERCIAL SUPPLIER
02-02-2022,Adults & Health,Care Support,Daycare - Private Contractors Payment,45,0,COMMERCIAL SUPPLIER
02-02-2022,Adults & Health,Care Support,Home Care - Private Contractors Payment,189,0,COMMERCIAL SUPPLIER
02-02-2022,Adults & Health,Care Support,Home Care - Private Contractors Payment,198,0,COMMERCIAL SUPPLIER
02-02-2022,Adults & Health,Care Support,Home Care - Private Contractors Payment,220.5,0,COMMERCIAL SUPPLIER
02-02-2022,Adults & Health,Care Support,Home Care - Private Contractors Payment,252,0,COMMERCIAL SUPPLIER
02-02-2022,Adults & Health,Care Support,Home Care - Private Contractors Payment,189,0,COMMERCIAL SUPPLIER
02-02-2022,Adults & Health,Care Support,Daycare - Private Contractors Payment,108,0,COMMERCIAL SUPPLIER
02-02-2022,Adults & Health,Care Support,Home Care - Private Contractors Payment,54,0,COMMERCIAL SUPPLIER
02-02-2022,Adults & Health,Care Support,Home Care - Private Contractors Payment,72,0,COMMERCIAL SUPPLIER
02-02-2022,Adults & Health,Care Support,Daycare - Private Contractors Payment,36,0,COMMERCIAL SUPPLIER
02-02-2022,Adults & Health,Care Support,Home Care - Private Contractors Payment,18,0,COMMERCIAL SUPPLIER
02-02-2022,Adults & Health,Care Support,Home Care - Private Contractors Payment,36,0,COMMERCIAL SUPPLIER
02-02-2022,Adults & Health,Care Support,Home Care - Private Contractors Payment,18,0,COMMERCIAL SUPPLIER
02-02-2022,Adults & Health,Care Support,Home Care - Private Contractors Payment,54,0,COMMERCIAL SUPPLIER
02-02-2022,Adults & Health,Care Support,Home Care - Private Contractors Payment,18,0,COMMERCIAL SUPPLIER
02-02-2022,Adults & Health,Care Support,Home Care - Private Contractors Payment,252,0,COMMERCIAL SUPPLIER
02-02-2022,Adults & Health,Care Support,Home Care - Private Contractors Payment,378,0,COMMERCIAL SUPPLIER
02-02-2022,Adults & Health,Care Support,Home Care - Private Contractors Payment,9,0,COMMERCIAL SUPPLIER
02-02-2022,Adults & Health,Care Support,Home Care - Private Contractors Payment,36,0,COMMERCIAL SUPPLIER
02-02-2022,Adults & Health,Care Support,Daycare - Private Contractors Payment,54,0,COMMERCIAL SUPPLIER
02-02-2022,Adults & Health,Care Support,Daycare - Private Contractors Payment,54,0,COMMERCIAL SUPPLIER
02-02-2022,Adults & Health,Care Support,Home Care - Private Contractors Payment,72,0,COMMERCIAL SUPPLIER
02-02-2022,Adults & Health,Care Support,Home Care - Private Contractors Payment,189,0,COMMERCIAL SUPPLIER
02-02-2022,Adults & Health,Care Support,Daycare - Private Contractors Payment,36,0,COMMERCIAL SUPPLIER
02-02-2022,Adults & Health,Care Support,Daycare - Private Contractors Payment,45,0,COMMERCIAL SUPPLIER
02-02-2022,oneSource - Non Shared,Estates & Management Ltd,Private Contractors Payment - Other,990,0,NON COMMERCIAL SUPPLIER
02-02-2022,Adults & Health,City Care Agency Ltd,Home Care - Private Contractors Payment,168.48,0,
02-02-2022,Adults & Health,City Care Agency Ltd,Home Care - Private Contractors Payment,851.76,0,
02-02-2022,Adults & Health,City Care Agency Ltd,Home Care - Private Contractors Payment,224.64,0,
02-02-2022,Adults & Health,City Care Agency Ltd,Daycare - Private Contractors Payment,56.16,0,
02-02-2022,Adults & Health,City Care Agency Ltd,Home Care - Private Contractors Payment,163.8,0,
02-02-2022,Adults & Health,City Care Agency Ltd,Home Care - Private Contractors Payment,556.92,0,
02-02-2022,Adults & Health,City Care Agency Ltd,Home Care - Private Contractors Payment,163.8,0,
02-02-2022,Adults & Health,City Care Agency Ltd,Home Care - Private Contractors Payment,294.84,0,
02-02-2022,Adults & Health,City Care Agency Ltd,Home Care - Private Contractors Payment,851.76,0,
02-02-2022,Adults & Health,City Care Agency Ltd,Home Care - Private Contractors Payment,556.92,0,
02-02-2022,Adults & Health,City Care Agency Ltd,Home Care - Private Contractors Payment,556.92,0,
02-02-2022,Adults & Health,City Care Agency Ltd,Home Care - Private Contractors Payment,851.76,0,
02-02-2022,Adults & Health,City Care Agency Ltd,Daycare - Private Contractors Payment,74.88,0,
02-02-2022,Adults & Health,City Care Agency Ltd,Daycare - Private Contractors Payment,56.16,0,
02-02-2022,Adults & Health,City Care Agency Ltd,Home Care - Private Contractors Payment,74.88,0,
02-02-2022,Adults & Health,City Care Agency Ltd,Home Care - Private Contractors Payment,556.92,0,
02-02-2022,Adults & Health,City Care Agency Ltd,Home Care - Private Contractors Payment,556.92,0,
02-02-2022,Adults & Health,City Care Agency Ltd,Home Care - Private Contractors Payment,294.84,0,
02-02-2022,Adults & Health,City Care Agency Ltd,Home Care - Private Contractors Payment,556.92,0,
02-02-2022,Adults & Health,City Care Agency Ltd,Home Care - Private Contractors Payment,851.76,0,
02-02-2022,Adults & Health,City Care Agency Ltd,Daycare - Private Contractors Payment,112.32,0,
02-02-2022,Adults & Health,City Care Agency Ltd,Daycare - Private Contractors Payment,56.16,0,
02-02-2022,Adults & Health,City Care Agency Ltd,Home Care - Private Contractors Payment,163.8,0,
02-02-2022,Adults & Health,City Care Agency Ltd,Home Care - Private Contractors Payment,163.8,0,
02-02-2022,Adults & Health,City Care Agency Ltd,Home Care - Private Contractors Payment,556.92,0,
02-02-2022,Adults & Health,City Care Agency Ltd,Home Care - Private Contractors Payment,294.84,0,
02-02-2022,Adults & Health,City Care Agency Ltd,Home Care - Private Contractors Payment,556.92,0,
02-02-2022,Adults & Health,City Care Agency Ltd,Home Care - Private Contractors Payment,851.76,0,
02-02-2022,Adults & Health,City Care Agency Ltd,Daycare - Private Contractors Payment,74.88,0,
02-02-2022,Adults & Health,City Care Agency Ltd,Daycare - Private Contractors Payment,56.16,0,
02-02-2022,Inclusive Economy & Housing,British Gas,Electricity,5089.4,0,COMMERCIAL SUPPLIER
02-02-2022,Children and Young People,NJW Portable Appliance Testing,"Maintenance - Equipment, Furniture And Materials",284,0,VENDOR
02-02-2022,Environment and Sustainable Transport,London Councils,Staff Development And Training,67317.66,0,CENTRAL/GOVERNMENT DEPARTMENTS
02-02-2022,Children and Young People,Kasper Fostering,Fostering Agency Placements - Private Contractors Payment,1234.5,0,COMMERCIAL SUPPLIER
02-02-2022,Children and Young People,Kasper Fostering,Fostering Agency Placements - Private Contractors Payment,864.15,0,COMMERCIAL SUPPLIER
02-02-2022,Children and Young People,Kasper Fostering,Fostering Agency Placements - Private Contractors Payment,864.15,0,COMMERCIAL SUPPLIER
02-02-2022,Children and Young People,Kasper Fostering,Fostering Agency Placements - Private Contractors Payment,864.15,0,COMMERCIAL SUPPLIER
02-02-2022,Children and Young People,Kasper Fostering,Fostering Agency Placements - Private Contractors Payment,864.15,0,COMMERCIAL SUPPLIER
02-02-2022,Children and Young People,Kasper Fostering,Fostering Agency Placements - Private Contractors Payment,864.15,0,COMMERCIAL SUPPLIER
02-02-2022,Children and Young People,Kasper Fostering,Fostering Agency Placements - Private Contractors Payment,864.15,0,COMMERCIAL SUPPLIER
02-02-2022,Children and Young People,Kasper Fostering,Fostering Agency Placements - Private Contractors Payment,1043.23,0,COMMERCIAL SUPPLIER
02-02-2022,Children and Young People,Kasper Fostering,Fostering Agency Placements - Private Contractors Payment,987,0,COMMERCIAL SUPPLIER
02-02-2022,Children and Young People,Kasper Fostering,Fostering Agency Placements - Private Contractors Payment,987,0,COMMERCIAL SUPPLIER
02-02-2022,Children and Young People,Kasper Fostering,Fostering Agency Placements - Private Contractors Payment,1410,0,COMMERCIAL SUPPLIER
02-02-2022,Children and Young People,Kasper Fostering,Fostering Agency Placements - Private Contractors Payment,987,0,COMMERCIAL SUPPLIER
02-02-2022,Children and Young People,Kasper Fostering,Fostering Agency Placements - Private Contractors Payment,1386,0,COMMERCIAL SUPPLIER
02-02-2022,Children and Young People,Kasper Fostering,Fostering Agency Placements - Private Contractors Payment,1386,0,COMMERCIAL SUPPLIER
02-02-2022,Children and Young People,Kasper Fostering,Fostering Agency Placements - Private Contractors Payment,1386,0,COMMERCIAL SUPPLIER
02-02-2022,Children and Young People,Kasper Fostering,Fostering Agency Placements - Private Contractors Payment,1980,0,COMMERCIAL SUPPLIER
02-02-2022,Children and Young People,The Appropriate Adult Service Ltd,Legal Fees,210,0,COMMERCIAL SUPPLIER
02-02-2022,Children and Young People,The Appropriate Adult Service Ltd,Legal Fees,210,0,COMMERCIAL SUPPLIER
02-02-2022,Environment and Sustainable Transport,Sparshatt Truck & Van Ltd,Highway Services,224.46,0,COMMERCIAL SUPPLIER
02-02-2022,Environment and Sustainable Transport,Sparshatt Truck & Van Ltd,Highway Services,45.4,0,COMMERCIAL SUPPLIER
02-02-2022,Environment and Sustainable Transport,Sparshatt Truck & Van Ltd,Highway Services,68.88,0,COMMERCIAL SUPPLIER
02-02-2022,Environment and Sustainable Transport,Sparshatt Truck & Van Ltd,Highway Services,39.88,0,COMMERCIAL SUPPLIER
02-02-2022,Environment and Sustainable Transport,Sparshatt Truck & Van Ltd,Highway Services,101.38,0,COMMERCIAL SUPPLIER
02-02-2022,Environment and Sustainable Transport,Sparshatt Truck & Van Ltd,Highway Services,395.55,0,COMMERCIAL SUPPLIER
02-02-2022,Environment and Sustainable Transport,Sparshatt Truck & Van Ltd,Highway Services,12.67,0,COMMERCIAL SUPPLIER
02-02-2022,Environment and Sustainable Transport,Sparshatt Truck & Van Ltd,Highway Services,28.54,0,COMMERCIAL SUPPLIER
02-02-2022,Children and Young People,Sayers (Car Hire),Contact Costs (Placements),279,0,VENDOR
02-02-2022,Children and Young People,Remark Ltd,Additional Placements - Third Party,144,0,COMMERCIAL SUPPLIER
02-02-2022,Children and Young People,Remark Ltd,Additional Placements - Third Party,144,0,COMMERCIAL SUPPLIER
02-02-2022,Children and Young People,Remark Ltd,Additional Placements - Third Party,144,0,COMMERCIAL SUPPLIER
02-02-2022,Children and Young People,Remark Ltd,Additional Placements - Third Party,144,0,COMMERCIAL SUPPLIER
02-02-2022,Environment and Sustainable Transport,Bay Media Ltd.,"Advertising, Publicity And Marketing",2000,0,
02-02-2022,Housing Revenue Account,Willow Pumps Limited,Waste Disposal Costs,775,0,COMMERCIAL SUPPLIER
02-02-2022,Housing Revenue Account,Willow Pumps Limited,Waste Disposal Costs,1190,0,COMMERCIAL SUPPLIER
02-02-2022,Housing Revenue Account,Willow Pumps Limited,Waste Disposal Costs,405,0,COMMERCIAL SUPPLIER
02-02-2022,Housing Revenue Account,Willow Pumps Limited,Waste Disposal Costs,1440,0,COMMERCIAL SUPPLIER
02-02-2022,Housing Revenue Account,Willow Pumps Limited,Waste Disposal Costs,835,0,COMMERCIAL SUPPLIER
02-02-2022,Housing Revenue Account,Willow Pumps Limited,Waste Disposal Costs,775,0,COMMERCIAL SUPPLIER
02-02-2022,Housing Revenue Account,Willow Pumps Limited,Waste Disposal Costs,2255,0,COMMERCIAL SUPPLIER
02-02-2022,Children and Young People,Radical Services Ltd,Residential Placements - Private Contractors Payment,1771.43,0,COMMERCIAL SUPPLIER
02-02-2022,Children and Young People,Radical Services Ltd,Residential Placements - Private Contractors Payment,6200,0,COMMERCIAL SUPPLIER
02-02-2022,Children and Young People,Radical Services Ltd,Residential Placements - Private Contractors Payment,2657.14,0,COMMERCIAL SUPPLIER
02-02-2022,Children and Young People,Radical Services Ltd,Residential Placements - Private Contractors Payment,6200,0,COMMERCIAL SUPPLIER
02-02-2022,oneSource - Non Shared,Beveridge Associates,Consultancy Fees,350,0,VENDOR
02-02-2022,Adults & Health,Bluebird Care (Newham),Home Care - Private Contractors Payment,15,0,VENDOR
02-02-2022,Adults & Health,Bluebird Care (Newham),Daycare - Private Contractors Payment,315,0,VENDOR
02-02-2022,Adults & Health,Bluebird Care (Newham),Home Care - Private Contractors Payment,30,0,VENDOR
02-02-2022,Adults & Health,Bluebird Care (Newham),Home Care - Private Contractors Payment,78.75,0,VENDOR
02-02-2022,Adults & Health,Bluebird Care (Newham),Home Care - Private Contractors Payment,541.05,0,VENDOR
02-02-2022,Adults & Health,Bluebird Care (Newham),Daycare - Private Contractors Payment,109.76,0,VENDOR
02-02-2022,Adults & Health,Bluebird Care (Newham),Home Care - Private Contractors Payment,105,0,VENDOR
02-02-2022,Adults & Health,Bluebird Care (Newham),Home Care - Private Contractors Payment,444.48,0,VENDOR
02-02-2022,Adults & Health,Bluebird Care (Newham),Home Care - Private Contractors Payment,194.72,0,VENDOR
02-02-2022,Adults & Health,Bluebird Care (Newham),Daycare - Private Contractors Payment,315,0,VENDOR
02-02-2022,Adults & Health,Bluebird Care (Newham),Home Care - Private Contractors Payment,15,0,VENDOR
02-02-2022,Adults & Health,Bluebird Care (Newham),Home Care - Private Contractors Payment,30,0,VENDOR
02-02-2022,Adults & Health,Bluebird Care (Newham),Home Care - Private Contractors Payment,78.75,0,VENDOR
02-02-2022,Adults & Health,Bluebird Care (Newham),Daycare - Private Contractors Payment,109.76,0,VENDOR
02-02-2022,Adults & Health,Bluebird Care (Newham),Home Care - Private Contractors Payment,551.6,0,VENDOR
02-02-2022,Adults & Health,Bluebird Care (Newham),Home Care - Private Contractors Payment,439.04,0,VENDOR
02-02-2022,Adults & Health,Bluebird Care (Newham),Home Care - Private Contractors Payment,105,0,VENDOR
02-02-2022,Adults & Health,Bluebird Care (Newham),Home Care - Private Contractors Payment,30,0,VENDOR
02-02-2022,Adults & Health,Bluebird Care (Newham),Daycare - Private Contractors Payment,315,0,VENDOR
02-02-2022,Adults & Health,Bluebird Care (Newham),Home Care - Private Contractors Payment,30,0,VENDOR
02-02-2022,Adults & Health,Bluebird Care (Newham),Home Care - Private Contractors Payment,210.14,0,VENDOR
02-02-2022,Adults & Health,Bluebird Care (Newham),Home Care - Private Contractors Payment,78.75,0,VENDOR
02-02-2022,Adults & Health,Bluebird Care (Newham),Home Care - Private Contractors Payment,15,0,VENDOR
02-02-2022,Adults & Health,Bluebird Care (Newham),Daycare - Private Contractors Payment,109.76,0,VENDOR
02-02-2022,Adults & Health,Bluebird Care (Newham),Home Care - Private Contractors Payment,551.6,0,VENDOR
02-02-2022,Adults & Health,Bluebird Care (Newham),Home Care - Private Contractors Payment,439.04,0,VENDOR
02-02-2022,Adults & Health,Bluebird Care (Newham),Home Care - Private Contractors Payment,105,0,VENDOR
02-02-2022,Adults & Health,Bluebird Care (Newham),Home Care - Private Contractors Payment,439.04,0,VENDOR
02-02-2022,Adults & Health,Bluebird Care (Newham),Home Care - Private Contractors Payment,105,0,VENDOR
02-02-2022,Adults & Health,Bluebird Care (Newham),Home Care - Private Contractors Payment,30,0,VENDOR
02-02-2022,Adults & Health,Bluebird Care (Newham),Daycare - Private Contractors Payment,315,0,VENDOR
02-02-2022,Adults & Health,Bluebird Care (Newham),Home Care - Private Contractors Payment,30,0,VENDOR
02-02-2022,Adults & Health,Bluebird Care (Newham),Home Care - Private Contractors Payment,78.75,0,VENDOR
02-02-2022,Adults & Health,Bluebird Care (Newham),Home Care - Private Contractors Payment,210.14,0,VENDOR
02-02-2022,Adults & Health,Bluebird Care (Newham),Daycare - Private Contractors Payment,109.76,0,VENDOR
02-02-2022,Adults & Health,Bluebird Care (Newham),Home Care - Private Contractors Payment,551.6,0,VENDOR
02-02-2022,Adults & Health,Bluebird Care (Newham),Home Care - Private Contractors Payment,15,0,VENDOR
02-02-2022,Adults & Health,Contour886 Limited,Specialist Equipment For Service Provision,527,0,COMMERCIAL SUPPLIER
02-02-2022,RMS,Travis Perkins Trading Company Ltd,"Purchase - Equipment, Furniture And Materials",610.45,0,COMMERCIAL SUPPLIER
02-02-2022,RMS,Benchmarx Kitchens and Joinery,Private Contractors Payment - Other,776.3,0,COMMERCIAL SUPPLIER
02-02-2022,RMS,Benchmarx Kitchens and Joinery,Private Contractors Payment - Other,0,0,COMMERCIAL SUPPLIER
02-02-2022,RMS,Benchmarx Kitchens and Joinery,"Purchase - Equipment, Furniture And Materials",898.46,0,COMMERCIAL SUPPLIER
02-02-2022,Adults & Health,The Regard Partnership Ltd,Daycare - Private Contractors Payment,112,0,NON COMMERCIAL SUPPLIER
02-02-2022,Adults & Health,The Regard Partnership Ltd,Daycare - Private Contractors Payment,448,0,NON COMMERCIAL SUPPLIER
02-02-2022,Adults & Health,The Regard Partnership Ltd,Daycare - Private Contractors Payment,448,0,NON COMMERCIAL SUPPLIER
02-02-2022,Adults & Health,The Regard Partnership Ltd,Daycare - Private Contractors Payment,448,0,NON COMMERCIAL SUPPLIER
02-02-2022,Adults & Health,The Regard Partnership Ltd,Daycare - Private Contractors Payment,194.88,0,NON COMMERCIAL SUPPLIER
02-02-2022,Adults & Health,The Regard Partnership Ltd,Daycare - Private Contractors Payment,194.88,0,NON COMMERCIAL SUPPLIER
02-02-2022,Adults & Health,The Regard Partnership Ltd,Daycare - Private Contractors Payment,194.88,0,NON COMMERCIAL SUPPLIER
02-02-2022,Adults & Health,The Regard Partnership Ltd,Daycare - Private Contractors Payment,194.88,0,NON COMMERCIAL SUPPLIER
02-02-2022,Adults & Health,The Regard Partnership Ltd,Daycare - Private Contractors Payment,278.4,0,NON COMMERCIAL SUPPLIER
02-02-2022,Adults & Health,The Regard Partnership Ltd,Daycare - Private Contractors Payment,278.4,0,NON COMMERCIAL SUPPLIER
02-02-2022,Adults & Health,The Regard Partnership Ltd,Daycare - Private Contractors Payment,278.4,0,NON COMMERCIAL SUPPLIER
02-02-2022,Adults & Health,The Regard Partnership Ltd,Daycare - Private Contractors Payment,278.4,0,NON COMMERCIAL SUPPLIER
02-02-2022,oneSource,J Wallis Consulting Ltd,Consultancy Fees,1900,0,COMMERCIAL SUPPLIER
02-02-2022,Dedicated Schools Budget,The Llewellyn School,Professional Services - General,17343.25,0,VENDOR
02-02-2022,Adults & Health,Inclusive Care Support Ltd,Daycare - Private Contractors Payment,52.5,0,COMMERCIAL SUPPLIER
02-02-2022,Adults & Health,Inclusive Care Support Ltd,Daycare - Private Contractors Payment,262.5,0,COMMERCIAL SUPPLIER
02-02-2022,Adults & Health,Inclusive Care Support Ltd,Daycare - Private Contractors Payment,262.5,0,COMMERCIAL SUPPLIER
02-02-2022,Adults & Health,Inclusive Care Support Ltd,Daycare - Private Contractors Payment,262.5,0,COMMERCIAL SUPPLIER
02-02-2022,Dedicated Schools Budget,Personal Information - Redacted,Payment To Health Authorities,500,0,VENDOR
02-02-2022,oneSource,Basildon District Council,Bailiff Fees Income,10481.16,0,LOCAL AUTHORITY SERVICES
02-02-2022,Adults & Health,Bio Luminuex Health Care Ltd,Home Care - Private Contractors Payment,500000,0,VENDOR
02-02-2022,Adults & Health,Liberty Centre Ltd,Daycare - Private Contractors Payment,501,0,COMMERCIAL SUPPLIER
02-02-2022,Adults & Health,Liberty Centre Ltd,Daycare - Private Contractors Payment,501,0,COMMERCIAL SUPPLIER
02-02-2022,Adults & Health,Liberty Centre Ltd,Daycare - Private Contractors Payment,501,0,COMMERCIAL SUPPLIER
02-02-2022,Adults & Health,Liberty Centre Ltd,Daycare - Private Contractors Payment,501,0,COMMERCIAL SUPPLIER
02-02-2022,Adults & Health,Inclusive Care Support Ltd,Daycare - Private Contractors Payment,175,0,COMMERCIAL SUPPLIER
02-02-2022,Adults & Health,Inclusive Care Support Ltd,Daycare - Private Contractors Payment,175,0,COMMERCIAL SUPPLIER
02-02-2022,Adults & Health,Inclusive Care Support Ltd,Daycare - Private Contractors Payment,175,0,COMMERCIAL SUPPLIER
02-02-2022,Adults & Health,Inclusive Care Support Ltd,Daycare - Private Contractors Payment,175,0,COMMERCIAL SUPPLIER
02-02-2022,Children and Young People,Matrix Scm,Agency Staff,337.13,0,
02-02-2022,Children and Young People,Matrix Scm,Agency Staff,1859.31,0,
02-02-2022,Children and Young People,Matrix Scm,Agency Staff,1608.45,0,
02-02-2022,Children and Young People,Matrix Scm,Agency Staff,1608.45,0,
02-02-2022,Children and Young People,Matrix Scm,Agency Staff,1608.45,0,
02-02-2022,Children and Young People,Matrix Scm,Agency Staff,1608.45,0,
02-02-2022,Children and Young People,Matrix Scm,Agency Staff,1342.8,0,
02-02-2022,Children and Young People,Matrix Scm,Agency Staff,1108.45,0,
02-02-2022,Children and Young People,Matrix Scm,Agency Staff,1728.5,0,
02-02-2022,Children and Young People,Matrix Scm,Agency Staff,827.54,0,
02-02-2022,Children and Young People,Matrix Scm,Agency Staff,1728.5,0,
02-02-2022,Children and Young People,Matrix Scm,Agency Staff,1480.69,0,
02-02-2022,Adults & Health,Matrix Scm,Agency Staff,374.83,0,
02-02-2022,Adults & Health,Matrix Scm,Agency Staff,2991.88,0,
02-02-2022,Adults & Health,Matrix Scm,Agency Staff,2332.8,0,
02-02-2022,Adults & Health,Matrix Scm,Agency Staff,907.12,0,
02-02-2022,Adults & Health,Matrix Scm,Agency Staff,980.29,0,
02-02-2022,Adults & Health,Matrix Scm,Agency Staff,1266.78,0,
02-02-2022,Adults & Health,Matrix Scm,Agency Staff,1159.2,0,
02-02-2022,Adults & Health,Matrix Scm,Agency Staff,1080.38,0,
02-02-2022,Children and Young People,Matrix Scm,Agency Staff,2208.45,0,
02-02-2022,Children and Young People,Matrix Scm,Agency Staff,861.02,0,
02-02-2022,Children and Young People,Matrix Scm,Agency Staff,1553.67,0,
02-02-2022,Children and Young People,Matrix Scm,Agency Staff,995.78,0,
02-02-2022,Children and Young People,Matrix Scm,Agency Staff,1303.52,0,
02-02-2022,Children and Young People,Matrix Scm,Agency Staff,2195.76,0,
02-02-2022,Children and Young People,Matrix Scm,Agency Staff,651.76,0,
02-02-2022,Children and Young People,Matrix Scm,Agency Staff,2681.5,0,
02-02-2022,Children and Young People,Matrix Scm,Agency Staff,1556.64,0,
02-02-2022,Children and Young People,Matrix Scm,Agency Staff,1457.28,0,
02-02-2022,Children and Young People,Matrix Scm,Agency Staff,1349.28,0,
02-02-2022,Children and Young People,Matrix Scm,Agency Staff,1889.45,0,
02-02-2022,Children and Young People,Matrix Scm,Agency Staff,1416.24,0,
02-02-2022,Children and Young People,Matrix Scm,Agency Staff,1457.28,0,
02-02-2022,Children and Young People,Matrix Scm,Agency Staff,1457.28,0,
02-02-2022,Children and Young People,Matrix Scm,Agency Staff,1457.28,0,
02-02-2022,Children and Young People,Matrix Scm,Agency Staff,1086.92,0,
02-02-2022,Children and Young People,Matrix Scm,Agency Staff,2160.36,0,
02-02-2022,Children and Young People,Matrix Scm,Agency Staff,1432.08,0,
02-02-2022,Children and Young People,Matrix Scm,Agency Staff,1457.28,0,
02-02-2022,Children and Young People,Matrix Scm,Agency Staff,1457.28,0,
02-02-2022,Children and Young People,Matrix Scm,Agency Staff,1457.28,0,
02-02-2022,Children and Young People,Matrix Scm,Agency Staff,1709.28,0,
02-02-2022,Children and Young People,Matrix Scm,Agency Staff,1709.28,0,
02-02-2022,Children and Young People,Matrix Scm,Agency Staff,1421.28,0,
02-02-2022,Children and Young People,Matrix Scm,Agency Staff,1160.2,0,
02-02-2022,Children and Young People,Matrix Scm,Agency Staff,1379.17,0,
02-02-2022,Children and Young People,Matrix Scm,Agency Staff,1457.28,0,
02-02-2022,Children and Young People,Matrix Scm,Agency Staff,1601.28,0,
02-02-2022,Children and Young People,Matrix Scm,Agency Staff,1483.56,0,
02-02-2022,Children and Young People,Matrix Scm,Agency Staff,1457.28,0,
02-02-2022,Children and Young People,Matrix Scm,Agency Staff,1457.28,0,
02-02-2022,Children and Young People,Matrix Scm,Agency Staff,1421.28,0,
02-02-2022,Children and Young People,Matrix Scm,Agency Staff,787.08,0,
02-02-2022,Children and Young People,Matrix Scm,Agency Staff,1457.28,0,
02-02-2022,Children and Young People,Matrix Scm,Agency Staff,1457.28,0,
02-02-2022,Children and Young People,Matrix Scm,Agency Staff,1349.28,0,
02-02-2022,Children and Young People,Matrix Scm,Agency Staff,1349.28,0,
02-02-2022,Children and Young People,Matrix Scm,Agency Staff,1421.28,0,
02-02-2022,Children and Young People,Matrix Scm,Agency Staff,2.3,0,
02-02-2022,Children and Young People,Matrix Scm,Agency Staff,18,0,
02-02-2022,Children and Young People,Matrix Scm,Agency Staff,45,0,
02-02-2022,Children and Young People,Matrix Scm,Agency Staff,45,0,
02-02-2022,Children and Young People,Matrix Scm,Agency Staff,961.92,0,
02-02-2022,Children and Young People,Matrix Scm,Agency Staff,950.95,0,
02-02-2022,Children and Young People,Matrix Scm,Agency Staff,944.29,0,
02-02-2022,Children and Young People,Matrix Scm,Agency Staff,84.6,0,
02-02-2022,Children and Young People,Matrix Scm,Agency Staff,59.7,0,
02-02-2022,Children and Young People,Matrix Scm,Agency Staff,940.7,0,
02-02-2022,Children and Young People,Matrix Scm,Agency Staff,1349.28,0,
02-02-2022,Children and Young People,Matrix Scm,Agency Staff,978.11,0,
02-02-2022,Children and Young People,Matrix Scm,Agency Staff,1171.45,0,
02-02-2022,Children and Young People,Matrix Scm,Agency Staff,556.99,0,
02-02-2022,Children and Young People,Matrix Scm,Agency Staff,1349.28,0,
02-02-2022,Children and Young People,Matrix Scm,Agency Staff,1457.28,0,
02-02-2022,Children and Young People,Matrix Scm,Agency Staff,1457.28,0,
02-02-2022,Children and Young People,Matrix Scm,Agency Staff,1709.28,0,
02-02-2022,Children and Young People,Matrix Scm,Agency Staff,944.28,0,
02-02-2022,Children and Young People,Matrix Scm,Agency Staff,760.68,0,
02-02-2022,Children and Young People,Matrix Scm,Agency Staff,1667.16,0,
02-02-2022,Children and Young People,Matrix Scm,Agency Staff,1457.28,0,
02-02-2022,Children and Young People,Matrix Scm,Agency Staff,1385.28,0,
02-02-2022,Children and Young People,Matrix Scm,Agency Staff,1480.46,0,
02-02-2022,Children and Young People,Matrix Scm,Agency Staff,1489.68,0,
02-02-2022,Children and Young People,Matrix Scm,Agency Staff,1457.28,0,
02-02-2022,Children and Young People,Matrix Scm,Agency Staff,1519.55,0,
02-02-2022,Children and Young People,Matrix Scm,Agency Staff,1457.28,0,
02-02-2022,Children and Young People,Matrix Scm,Agency Staff,23.85,0,
02-02-2022,Children and Young People,Matrix Scm,Agency Staff,1457.28,0,
02-02-2022,Children and Young People,Matrix Scm,Agency Staff,1457.28,0,
02-02-2022,Children and Young People,Matrix Scm,Agency Staff,40.95,0,
02-02-2022,Children and Young People,Matrix Scm,Agency Staff,1349.28,0,
02-02-2022,Children and Young People,Matrix Scm,Agency Staff,1457.28,0,
02-02-2022,Children and Young People,Matrix Scm,Agency Staff,1489.68,0,
02-02-2022,Children and Young People,Matrix Scm,Agency Staff,1349.28,0,
02-02-2022,Children and Young People,Matrix Scm,Agency Staff,1349.28,0,
02-02-2022,Children and Young People,Matrix Scm,Agency Staff,1373.76,0,
02-02-2022,Children and Young People,Matrix Scm,Agency Staff,1457.28,0,
02-02-2022,Children and Young People,Matrix Scm,Agency Staff,1457.28,0,
02-02-2022,Children and Young People,Matrix Scm,Agency Staff,1457.28,0,
02-02-2022,Children and Young People,Matrix Scm,Agency Staff,1457.28,0,
02-02-2022,Children and Young People,Matrix Scm,Agency Staff,1745.28,0,
02-02-2022,Children and Young People,Matrix Scm,Agency Staff,1483.55,0,
02-02-2022,Children and Young People,Matrix Scm,Agency Staff,1349.28,0,
02-02-2022,Children and Young People,Matrix Scm,Agency Staff,1457.28,0,
02-02-2022,Children and Young People,Matrix Scm,Agency Staff,1349.28,0,
02-02-2022,Children and Young People,Matrix Scm,Agency Staff,1709.28,0,
02-02-2022,Children and Young People,Matrix Scm,Agency Staff,17.1,0,
02-02-2022,Children and Young People,Matrix Scm,Agency Staff,1349.28,0,
02-02-2022,Children and Young People,Matrix Scm,Agency Staff,1349.28,0,
02-02-2022,Children and Young People,Matrix Scm,Agency Staff,1457.28,0,
02-02-2022,Children and Young People,Matrix Scm,Agency Staff,1457.28,0,
02-02-2022,Children and Young People,Matrix Scm,Agency Staff,1709.28,0,
02-02-2022,Children and Young People,Matrix Scm,Agency Staff,1457.28,0,
02-02-2022,Children and Young People,Matrix Scm,Agency Staff,1457.28,0,
02-02-2022,Children and Young People,Matrix Scm,Agency Staff,1159.56,0,
02-02-2022,Children and Young People,Matrix Scm,Agency Staff,1457.28,0,
02-02-2022,Children and Young People,Matrix Scm,Agency Staff,1483.55,0,
02-02-2022,Children and Young People,Matrix Scm,Agency Staff,1457.28,0,
02-02-2022,Children and Young People,Matrix Scm,Agency Staff,1483.56,0,
02-02-2022,Children and Young People,Matrix Scm,Agency Staff,1349.28,0,
02-02-2022,Children and Young People,Matrix Scm,Agency Staff,1457.28,0,
02-02-2022,Children and Young People,Matrix Scm,Agency Staff,1457.28,0,
02-02-2022,Children and Young People,Matrix Scm,Agency Staff,1313.4,0,
02-02-2022,Children and Young People,Matrix Scm,Agency Staff,548.24,0,
02-02-2022,Children and Young People,Matrix Scm,Agency Staff,11.5,0,
02-02-2022,Children and Young People,Matrix Scm,Agency Staff,18.9,0,
02-02-2022,Children and Young People,Matrix Scm,Agency Staff,1457.28,0,
02-02-2022,Children and Young People,Matrix Scm,Agency Staff,244.35,0,
02-02-2022,Adults & Health,Matrix Scm,Agency Staff,909.44,0,
02-02-2022,Adults & Health,Matrix Scm,Agency Staff,1169.28,0,
02-02-2022,Adults & Health,Matrix Scm,Agency Staff,1239.84,0,
02-02-2022,Adults & Health,Matrix Scm,Agency Staff,1169.28,0,
02-02-2022,Adults & Health,Matrix Scm,Agency Staff,1349.28,0,
02-02-2022,Children and Young People,Matrix Scm,Agency Staff,700.56,0,
02-02-2022,Children and Young People,Matrix Scm,Agency Staff,1349.28,0,
02-02-2022,Children and Young People,Matrix Scm,Agency Staff,1349.28,0,
02-02-2022,Children and Young People,Matrix Scm,Agency Staff,37.48,0,
02-02-2022,Children and Young People,Matrix Scm,Agency Staff,74.96,0,
02-02-2022,"People, Policy and Performance",Matrix Scm,Agency Staff,5308.31,0,
02-02-2022,Children and Young People,Matrix Scm,Agency Staff,1069.92,0,
02-02-2022,Adults & Health,Matrix Scm,Agency Staff,1227.97,0,
02-02-2022,Resources,Matrix Scm,Agency Staff,1766.8,0,
02-02-2022,Adults & Health,Matrix Scm,Agency Staff,2483.5,0,
02-02-2022,Adults & Health,Matrix Scm,Agency Staff,1239.84,0,
02-02-2022,Adults & Health,Matrix Scm,Agency Staff,642,0,
02-02-2022,Adults & Health,Matrix Scm,Agency Staff,1169.28,0,
02-02-2022,Adults & Health,Matrix Scm,Agency Staff,770.4,0,
02-02-2022,Adults & Health,Matrix Scm,Agency Staff,1248.83,0,
02-02-2022,Adults & Health,Matrix Scm,Agency Staff,1416.8,0,
02-02-2022,Adults & Health,Matrix Scm,Agency Staff,1331.3,0,
02-02-2022,Adults & Health,Matrix Scm,Agency Staff,994.34,0,
02-02-2022,Adults & Health,Matrix Scm,Agency Staff,1169.28,0,
02-02-2022,Adults & Health,Matrix Scm,Agency Staff,1169.28,0,
02-02-2022,Adults & Health,Matrix Scm,Agency Staff,525.82,0,
02-02-2022,Adults & Health,Matrix Scm,Agency Staff,1295.28,0,
02-02-2022,Adults & Health,Matrix Scm,Agency Staff,5.4,0,
02-02-2022,Adults & Health,Matrix Scm,Agency Staff,6.75,0,
02-02-2022,Adults & Health,Matrix Scm,Agency Staff,2.7,0,
02-02-2022,Adults & Health,Matrix Scm,Agency Staff,827.29,0,
02-02-2022,Adults & Health,Matrix Scm,Agency Staff,1277.28,0,
02-02-2022,Adults & Health,Matrix Scm,Agency Staff,944.48,0,
02-02-2022,Children and Young People,Matrix Scm,Agency Staff,1373.76,0,
02-02-2022,Children and Young People,Matrix Scm,Agency Staff,1457.28,0,
02-02-2022,Children and Young People,Matrix Scm,Agency Staff,1349.28,0,
02-02-2022,Children and Young People,Matrix Scm,Agency Staff,1457.28,0,
02-02-2022,Children and Young People,Matrix Scm,Agency Staff,1349.28,0,
02-02-2022,Children and Young People,Matrix Scm,Agency Staff,1457.28,0,
02-02-2022,Children and Young People,Matrix Scm,Agency Staff,18.9,0,
02-02-2022,Children and Young People,Matrix Scm,Agency Staff,47.7,0,
02-02-2022,Children and Young People,Matrix Scm,Agency Staff,39,0,
02-02-2022,Children and Young People,Matrix Scm,Agency Staff,1349.28,0,
02-02-2022,Children and Young People,Matrix Scm,Agency Staff,37.5,0,
02-02-2022,Children and Young People,Matrix Scm,Agency Staff,1349.28,0,
02-02-2022,Children and Young People,Matrix Scm,Agency Staff,1601.28,0,
02-02-2022,Children and Young People,Matrix Scm,Agency Staff,1349.28,0,
02-02-2022,Children and Young People,Matrix Scm,Agency Staff,1349.28,0,
02-02-2022,Children and Young People,Matrix Scm,Agency Staff,1349.28,0,
02-02-2022,Children and Young People,Matrix Scm,Agency Staff,1349.28,0,
02-02-2022,Children and Young People,Matrix Scm,Agency Staff,1601.28,0,
02-02-2022,Children and Young People,Matrix Scm,Agency Staff,1601.28,0,
02-02-2022,Brighter Futures Director,Matrix Scm,Agency Staff,4408.55,0,
02-02-2022,Children and Young People,Matrix Scm,Agency Staff,570.51,0,
02-02-2022,Children and Young People,Matrix Scm,Agency Staff,983.52,0,
02-02-2022,Children and Young People,Matrix Scm,Agency Staff,1709.28,0,
02-02-2022,Children and Young People,Matrix Scm,Agency Staff,1709.28,0,
02-02-2022,Children and Young People,Matrix Scm,Agency Staff,1601.28,0,
02-02-2022,Children and Young People,Matrix Scm,Agency Staff,1432.08,0,
02-02-2022,Children and Young People,Matrix Scm,Agency Staff,1410.13,0,
02-02-2022,Children and Young People,Matrix Scm,Agency Staff,1349.28,0,
02-02-2022,Adults & Health,Matrix Scm,Agency Staff,1339.91,0,
02-02-2022,Adults & Health,Matrix Scm,Agency Staff,1397.15,0,
02-02-2022,Adults & Health,Matrix Scm,Agency Staff,818.27,0,
02-02-2022,Adults & Health,Matrix Scm,Agency Staff,1406.52,0,
02-02-2022,Adults & Health,Matrix Scm,Agency Staff,159.11,0,
02-02-2022,Adults & Health,Matrix Scm,Agency Staff,711.68,0,
02-02-2022,Adults & Health,Matrix Scm,Agency Staff,1452.96,0,
02-02-2022,Adults & Health,Matrix Scm,Agency Staff,1169.28,0,
02-02-2022,"People, Policy and Performance",Matrix Scm,Agency Staff,805.69,0,
02-02-2022,"People, Policy and Performance",Matrix Scm,Agency Staff,1046.64,0,
02-02-2022,"People, Policy and Performance",Matrix Scm,Agency Staff,178.92,0,
02-02-2022,"People, Policy and Performance",Matrix Scm,Agency Staff,686.01,0,
02-02-2022,"People, Policy and Performance",Matrix Scm,Agency Staff,1010.95,0,
02-02-2022,"People, Policy and Performance",Matrix Scm,Agency Staff,1025.24,0,
02-02-2022,"People, Policy and Performance",Matrix Scm,Agency Staff,686.01,0,
02-02-2022,"People, Policy and Performance",Matrix Scm,Agency Staff,879.12,0,
02-02-2022,oneSource,Matrix Scm,Agency Staff,654.65,0,
02-02-2022,oneSource,Matrix Scm,Agency Staff,3308.5,0,
02-02-2022,oneSource,Matrix Scm,Agency Staff,2758.5,0,
02-02-2022,oneSource,Matrix Scm,Agency Staff,2758.5,0,
02-02-2022,oneSource,Matrix Scm,Agency Staff,-1263.6,0,
02-02-2022,oneSource,Matrix Scm,Agency Staff,1318.6,0,
02-02-2022,Adults & Health,Matrix Scm,Agency Staff,1121.89,0,
02-02-2022,Adults & Health,Matrix Scm,Agency Staff,995.76,0,
02-02-2022,Adults & Health,Matrix Scm,Agency Staff,464.53,0,
02-02-2022,Adults & Health,Matrix Scm,Agency Staff,588.72,0,
02-02-2022,Environment and Sustainable Transport,Matrix Scm,Agency Staff,1056,0,
02-02-2022,Environment and Sustainable Transport,Matrix Scm,Agency Staff,313.53,0,
02-02-2022,Environment and Sustainable Transport,Matrix Scm,Agency Staff,516.96,0,
02-02-2022,Environment and Sustainable Transport,Matrix Scm,Agency Staff,105,0,
02-02-2022,Environment and Sustainable Transport,Matrix Scm,Agency Staff,574.91,0,
02-02-2022,Environment and Sustainable Transport,Matrix Scm,Agency Staff,528.13,0,
02-02-2022,Environment and Sustainable Transport,Matrix Scm,Agency Staff,685.97,0,
02-02-2022,Environment and Sustainable Transport,Matrix Scm,Agency Staff,1098.08,0,
02-02-2022,Environment and Sustainable Transport,Matrix Scm,Agency Staff,528.13,0,
02-02-2022,Environment and Sustainable Transport,Matrix Scm,Agency Staff,232.14,0,
02-02-2022,Environment and Sustainable Transport,Matrix Scm,Agency Staff,945,0,
02-02-2022,Environment and Sustainable Transport,Matrix Scm,Agency Staff,426.88,0,
02-02-2022,Environment and Sustainable Transport,Matrix Scm,Agency Staff,576.35,0,
02-02-2022,Environment and Sustainable Transport,Matrix Scm,Agency Staff,576.35,0,
02-02-2022,Environment and Sustainable Transport,Matrix Scm,Agency Staff,524.16,0,
02-02-2022,Adults & Health,Matrix Scm,Agency Staff,1379.17,0,
02-02-2022,Adults & Health,Matrix Scm,Agency Staff,1471.56,0,
02-02-2022,Adults & Health,Matrix Scm,Agency Staff,1312.56,0,
02-02-2022,Adults & Health,Matrix Scm,Agency Staff,893.52,0,
02-02-2022,Adults & Health,Matrix Scm,Agency Staff,1169.28,0,
02-02-2022,Adults & Health,Matrix Scm,Agency Staff,1457.28,0,
02-02-2022,Adults & Health,Matrix Scm,Agency Staff,1086.92,0,
02-02-2022,Adults & Health,Matrix Scm,Agency Staff,1500.24,0,
02-02-2022,Adults & Health,Matrix Scm,Agency Staff,877.32,0,
02-02-2022,oneSource,Matrix Scm,Agency Staff,2206.2,0,
02-02-2022,oneSource,Matrix Scm,Agency Staff,2840.35,0,
02-02-2022,Resources,Matrix Scm,Agency Staff,2808.5,0,
02-02-2022,Resources,Matrix Scm,Agency Staff,3566.2,0,
02-02-2022,Resources,Matrix Scm,Agency Staff,2246.8,0,
02-02-2022,oneSource,Matrix Scm,Agency Staff,4231.3,0,
02-02-2022,oneSource,Matrix Scm,Agency Staff,4231.3,0,
02-02-2022,oneSource,Matrix Scm,Agency Staff,1044.35,0,
02-02-2022,oneSource,Matrix Scm,Agency Staff,2461.6,0,
02-02-2022,Environment and Sustainable Transport,Matrix Scm,Agency Staff,584.29,0,
02-02-2022,Environment and Sustainable Transport,Matrix Scm,Agency Staff,660.77,0,
02-02-2022,Environment and Sustainable Transport,Matrix Scm,Agency Staff,610.21,0,
02-02-2022,Environment and Sustainable Transport,Matrix Scm,Agency Staff,591.84,0,
02-02-2022,Environment and Sustainable Transport,Matrix Scm,Agency Staff,868.95,0,
02-02-2022,Environment and Sustainable Transport,Matrix Scm,Agency Staff,762.76,0,
02-02-2022,Environment and Sustainable Transport,Matrix Scm,Agency Staff,932.4,0,
02-02-2022,Environment and Sustainable Transport,Matrix Scm,Agency Staff,175.76,0,
02-02-2022,Environment and Sustainable Transport,Matrix Scm,Agency Staff,671.03,0,
02-02-2022,Environment and Sustainable Transport,Matrix Scm,Agency Staff,591.84,0,
02-02-2022,Environment and Sustainable Transport,Matrix Scm,Agency Staff,175.76,0,
02-02-2022,Environment and Sustainable Transport,Matrix Scm,Agency Staff,811.03,0,
02-02-2022,Environment and Sustainable Transport,Matrix Scm,Agency Staff,1485.27,0,
02-02-2022,Children and Young People,Matrix Scm,Agency Staff,1194.84,0,
02-02-2022,"People, Policy and Performance",Matrix Scm,Agency Staff,612.15,0,
02-02-2022,"People, Policy and Performance",Matrix Scm,Agency Staff,577.17,0,
02-02-2022,"People, Policy and Performance",Matrix Scm,Agency Staff,566.25,0,
02-02-2022,oneSource,Matrix Scm,Agency Staff,2799.75,0,
02-02-2022,oneSource,Matrix Scm,Agency Staff,2137.25,0,
02-02-2022,oneSource,Matrix Scm,Agency Staff,2799.75,0,
02-02-2022,oneSource,Matrix Scm,Agency Staff,652.69,0,
02-02-2022,oneSource,Matrix Scm,Agency Staff,840.75,0,
02-02-2022,oneSource,Matrix Scm,Agency Staff,2234.15,0,
02-02-2022,oneSource,Matrix Scm,Agency Staff,983.16,0,
02-02-2022,oneSource,Matrix Scm,Agency Staff,1008.72,0,
02-02-2022,oneSource,Matrix Scm,Agency Staff,983.16,0,
02-02-2022,Environment and Sustainable Transport,Matrix Scm,Agency Staff,491.56,0,
02-02-2022,Environment and Sustainable Transport,Matrix Scm,Agency Staff,175.76,0,
02-02-2022,Environment and Sustainable Transport,Matrix Scm,Agency Staff,835.16,0,
02-02-2022,Environment and Sustainable Transport,Matrix Scm,Agency Staff,630.72,0,
02-02-2022,Environment and Sustainable Transport,Matrix Scm,Agency Staff,1029.8,0,
02-02-2022,Environment and Sustainable Transport,Matrix Scm,Agency Staff,695.16,0,
02-02-2022,Environment and Sustainable Transport,Matrix Scm,Agency Staff,651,0,
02-02-2022,Environment and Sustainable Transport,Matrix Scm,Agency Staff,695.16,0,
02-02-2022,Environment and Sustainable Transport,Matrix Scm,Agency Staff,494.94,0,
02-02-2022,Environment and Sustainable Transport,Matrix Scm,Agency Staff,368.66,0,
02-02-2022,Environment and Sustainable Transport,Matrix Scm,Agency Staff,584.28,0,
02-02-2022,Environment and Sustainable Transport,Matrix Scm,Agency Staff,692.64,0,
02-02-2022,Environment and Sustainable Transport,Matrix Scm,Agency Staff,651,0,
02-02-2022,Environment and Sustainable Transport,Matrix Scm,Agency Staff,965.5,0,
02-02-2022,"People, Policy and Performance",Matrix Scm,Agency Staff,818.4,0,
02-02-2022,"People, Policy and Performance",Matrix Scm,Agency Staff,529.57,0,
02-02-2022,"People, Policy and Performance",Matrix Scm,Agency Staff,812.53,0,
02-02-2022,"People, Policy and Performance",Matrix Scm,Agency Staff,866.53,0,
02-02-2022,Housing Revenue Account,Matrix Scm,Agency Staff,0,0,
02-02-2022,Housing Revenue Account,Matrix Scm,Agency Staff,201.87,0,
02-02-2022,Housing Revenue Account,Matrix Scm,Agency Staff,0,0,
02-02-2022,Housing Revenue Account,Matrix Scm,Agency Staff,1227,0,
02-02-2022,Housing Revenue Account,Matrix Scm,Agency Staff,2537,0,
02-02-2022,Housing Revenue Account,Matrix Scm,Agency Staff,2123.35,0,
02-02-2022,Housing Revenue Account,Matrix Scm,Agency Staff,686.93,0,
02-02-2022,Housing Revenue Account,Matrix Scm,Agency Staff,517.92,0,
02-02-2022,Housing Revenue Account,Matrix Scm,Agency Staff,635.45,0,
02-02-2022,Housing Revenue Account,Matrix Scm,Agency Staff,498,0,
02-02-2022,oneSource,Matrix Scm,Agency Staff,1072.28,0,
02-02-2022,Housing Revenue Account,Matrix Scm,Agency Staff,2483.5,0,
02-02-2022,Housing Revenue Account,Matrix Scm,Agency Staff,1933.5,0,
02-02-2022,Housing Revenue Account,Matrix Scm,Agency Staff,2049.55,0,
02-02-2022,Housing Revenue Account,Matrix Scm,Agency Staff,2010.4,0,
02-02-2022,Housing Revenue Account,Matrix Scm,Agency Staff,3086.8,0,
02-02-2022,Housing Revenue Account,Matrix Scm,Agency Staff,705.95,0,
02-02-2022,Housing Revenue Account,Matrix Scm,Agency Staff,1272.62,0,
02-02-2022,Housing Revenue Account,Matrix Scm,Agency Staff,2483.45,0,
02-02-2022,Housing Revenue Account,Matrix Scm,Agency Staff,1933.5,0,
02-02-2022,Housing Revenue Account,Matrix Scm,Agency Staff,2256.05,0,
02-02-2022,Housing Revenue Account,Matrix Scm,Agency Staff,5100.35,0,
02-02-2022,Housing Revenue Account,Matrix Scm,Agency Staff,792.79,0,
02-02-2022,Housing Revenue Account,Matrix Scm,Agency Staff,2320.2,0,
02-02-2022,Housing Revenue Account,Matrix Scm,Agency Staff,2483.5,0,
02-02-2022,Housing Revenue Account,Matrix Scm,Agency Staff,1586.24,0,
02-02-2022,Housing Revenue Account,Matrix Scm,Agency Staff,-1639.64,0,
02-02-2022,Housing Revenue Account,Matrix Scm,Agency Staff,2758.5,0,
02-02-2022,Housing Revenue Account,Matrix Scm,Agency Staff,0.95,0,
02-02-2022,Housing Revenue Account,Matrix Scm,Agency Staff,59.29,0,
02-02-2022,Housing Revenue Account,Matrix Scm,Agency Staff,2288.4,0,
02-02-2022,Housing Revenue Account,Matrix Scm,Agency Staff,2758.5,0,
02-02-2022,Housing Revenue Account,Matrix Scm,Agency Staff,2208.5,0,
02-02-2022,Housing Revenue Account,Matrix Scm,Agency Staff,3758.25,0,
02-02-2022,Housing Revenue Account,Matrix Scm,Agency Staff,686.35,0,
02-02-2022,Environment and Sustainable Transport,Matrix Scm,Agency Staff,1209.25,0,
02-02-2022,Housing Revenue Account,Matrix Scm,Agency Staff,1164.61,0,
02-02-2022,Housing Revenue Account,Matrix Scm,Agency Staff,263.94,0,
02-02-2022,Housing Revenue Account,Matrix Scm,Agency Staff,248.25,0,
02-02-2022,Housing Revenue Account,Matrix Scm,Agency Staff,227.53,0,
02-02-2022,Housing Revenue Account,Matrix Scm,Agency Staff,203.57,0,
02-02-2022,Housing Revenue Account,Matrix Scm,Agency Staff,702.18,0,
02-02-2022,Housing Revenue Account,Matrix Scm,Agency Staff,922.09,0,
02-02-2022,Children and Young People,Matrix Scm,Agency Staff,1349.28,0,
02-02-2022,Children and Young People,Matrix Scm,Agency Staff,18,0,
02-02-2022,Children and Young People,Matrix Scm,Agency Staff,15.3,0,
02-02-2022,Housing Revenue Account,Matrix Scm,Agency Staff,576.35,0,
02-02-2022,Housing Revenue Account,Matrix Scm,Agency Staff,201,0,
02-02-2022,Housing Revenue Account,Matrix Scm,Agency Staff,576.35,0,
02-02-2022,Housing Revenue Account,Matrix Scm,Agency Staff,356.04,0,
02-02-2022,Housing Revenue Account,Matrix Scm,Agency Staff,392.88,0,
02-02-2022,Housing Revenue Account,Matrix Scm,Agency Staff,795.84,0,
02-02-2022,Housing Revenue Account,Matrix Scm,Agency Staff,25.95,0,
02-02-2022,Housing Revenue Account,Matrix Scm,Agency Staff,25.95,0,
02-02-2022,Housing Revenue Account,Matrix Scm,Agency Staff,395.28,0,
02-02-2022,Housing Revenue Account,Matrix Scm,Agency Staff,395.28,0,
02-02-2022,"People, Policy and Performance",Matrix Scm,Agency Staff,2285.2,0,
02-02-2022,"People, Policy and Performance",Matrix Scm,Agency Staff,2758.5,0,
02-02-2022,"People, Policy and Performance",Matrix Scm,Agency Staff,1370.2,0,
02-02-2022,"People, Policy and Performance",Matrix Scm,Agency Staff,4089.15,0,
02-02-2022,Children and Young People,Matrix Scm,Agency Staff,1349.28,0,
02-02-2022,Children and Young People,Matrix Scm,Agency Staff,1236.84,0,
02-02-2022,Children and Young People,Matrix Scm,Agency Staff,937.09,0,
02-02-2022,Children and Young People,Matrix Scm,Agency Staff,1349.28,0,
02-02-2022,Adults & Health,Matrix Scm,Agency Staff,429.24,0,
02-02-2022,Adults & Health,Matrix Scm,Agency Staff,555.7,0,
02-02-2022,Adults & Health,Matrix Scm,Agency Staff,681.01,0,
02-02-2022,Adults & Health,Matrix Scm,Agency Staff,681.01,0,
02-02-2022,Adults & Health,Matrix Scm,Agency Staff,1362.02,0,
02-02-2022,Adults & Health,Matrix Scm,Agency Staff,681.01,0,
02-02-2022,Adults & Health,Matrix Scm,Agency Staff,681.01,0,
02-02-2022,Brighter Futures Director,Matrix Scm,Agency Staff,1034.51,0,
02-02-2022,Inclusive Economy & Housing,Matrix Scm,Agency Staff,35.42,0,
02-02-2022,Housing Revenue Account,Matrix Scm,Agency Staff,596.52,0,
02-02-2022,Housing Revenue Account,Matrix Scm,Agency Staff,775.2,0,
02-02-2022,Housing Revenue Account,Matrix Scm,Agency Staff,795.36,0,
02-02-2022,Housing Revenue Account,Matrix Scm,Agency Staff,795.36,0,
02-02-2022,Housing Revenue Account,Matrix Scm,Agency Staff,969,0,
02-02-2022,Housing Revenue Account,Matrix Scm,Agency Staff,775.2,0,
02-02-2022,Housing Revenue Account,Matrix Scm,Agency Staff,596.52,0,
02-02-2022,Housing Revenue Account,Matrix Scm,Agency Staff,596.16,0,
02-02-2022,Housing Revenue Account,Matrix Scm,Agency Staff,25.95,0,
02-02-2022,Housing Revenue Account,Matrix Scm,Agency Staff,581.4,0,
02-02-2022,Housing Revenue Account,Matrix Scm,Agency Staff,25.95,0,
02-02-2022,Housing Revenue Account,Matrix Scm,Agency Staff,25.95,0,
02-02-2022,Housing Revenue Account,Matrix Scm,Agency Staff,25.95,0,
02-02-2022,Housing Revenue Account,Matrix Scm,Agency Staff,25.95,0,
02-02-2022,Housing Revenue Account,Matrix Scm,Agency Staff,25.95,0,
02-02-2022,Housing Revenue Account,Matrix Scm,Agency Staff,25.95,0,
02-02-2022,Housing Revenue Account,Matrix Scm,Agency Staff,775.2,0,
02-02-2022,Housing Revenue Account,Matrix Scm,Agency Staff,795.36,0,
02-02-2022,Housing Revenue Account,Matrix Scm,Agency Staff,1178.64,0,
02-02-2022,oneSource - Non Shared,Matrix Scm,Agency Staff,687.75,0,
02-02-2022,oneSource,Matrix Scm,Agency Staff,972.92,0,
02-02-2022,Housing Revenue Account,Matrix Scm,Agency Staff,413.82,0,
02-02-2022,Housing Revenue Account,Matrix Scm,Agency Staff,460.28,0,
02-02-2022,Housing Revenue Account,Matrix Scm,Agency Staff,470.94,0,
02-02-2022,Housing Revenue Account,Matrix Scm,Agency Staff,0,0,
02-02-2022,Housing Revenue Account,Matrix Scm,Agency Staff,201.87,0,
02-02-2022,Dedicated Schools Budget,Matrix Scm,Agency Staff,696.3,0,
02-02-2022,Dedicated Schools Budget,Matrix Scm,Agency Staff,637.34,0,
02-02-2022,"People, Policy and Performance",Matrix Scm,Agency Staff,668.1,0,
02-02-2022,"People, Policy and Performance",Matrix Scm,Agency Staff,668.1,0,
02-02-2022,"People, Policy and Performance",Matrix Scm,Agency Staff,668.1,0,
02-02-2022,"People, Policy and Performance",Matrix Scm,Agency Staff,433.76,0,
02-02-2022,"People, Policy and Performance",Matrix Scm,Agency Staff,41.95,0,
02-02-2022,Inclusive Economy & Housing,Matrix Scm,Agency Staff,465.84,0,
02-02-2022,RMS,Matrix Scm,Agency Staff,1210.4,0,
02-02-2022,RMS,Matrix Scm,Agency Staff,1028,0,
02-02-2022,RMS,Matrix Scm,Agency Staff,863.2,0,
02-02-2022,RMS,Matrix Scm,Agency Staff,1095.95,0,
02-02-2022,RMS,Matrix Scm,Agency Staff,1300.5,0,
02-02-2022,RMS,Matrix Scm,Agency Staff,1127.25,0,
02-02-2022,RMS,Matrix Scm,Agency Staff,948,0,
02-02-2022,RMS,Matrix Scm,Agency Staff,1286.22,0,
02-02-2022,RMS,Matrix Scm,Agency Staff,1210.4,0,
02-02-2022,RMS,Matrix Scm,Agency Staff,628,0,
02-02-2022,RMS,Matrix Scm,Agency Staff,1045.44,0,
02-02-2022,RMS,Matrix Scm,Agency Staff,1039.68,0,
02-02-2022,RMS,Matrix Scm,Agency Staff,1045.44,0,
02-02-2022,RMS,Matrix Scm,Agency Staff,348.48,0,
02-02-2022,RMS,Matrix Scm,Agency Staff,1216.32,0,
02-02-2022,RMS,Matrix Scm,Agency Staff,758.88,0,
02-02-2022,RMS,Matrix Scm,Agency Staff,2258.03,0,
02-02-2022,Children and Young People,Matrix Scm,Agency Staff,1601.28,0,
02-02-2022,Children and Young People,Matrix Scm,Agency Staff,824.56,0,
02-02-2022,Children and Young People,Matrix Scm,Agency Staff,1923.14,0,
02-02-2022,Children and Young People,Matrix Scm,Agency Staff,1457.28,0,
02-02-2022,Children and Young People,Matrix Scm,Agency Staff,916.92,0,
02-02-2022,Children and Young People,Matrix Scm,Agency Staff,925.81,0,
02-02-2022,Children and Young People,Matrix Scm,Agency Staff,1637.28,0,
02-02-2022,Children and Young People,Matrix Scm,Agency Staff,938.4,0,
02-02-2022,Children and Young People,Matrix Scm,Agency Staff,844.57,0,
02-02-2022,Children and Young People,Matrix Scm,Agency Staff,272.38,0,
02-02-2022,Children and Young People,Matrix Scm,Agency Staff,2049.12,0,
02-02-2022,Children and Young People,Matrix Scm,Agency Staff,599.68,0,
02-02-2022,Children and Young People,Matrix Scm,Agency Staff,637.16,0,
02-02-2022,Children and Young People,Matrix Scm,Agency Staff,364.32,0,
02-02-2022,"People, Policy and Performance",Matrix Scm,Agency Staff,931.12,0,
02-02-2022,Children and Young People,Matrix Scm,Agency Staff,835.78,0,
02-02-2022,Children and Young People,Matrix Scm,Agency Staff,767.95,0,
02-02-2022,Children and Young People,Matrix Scm,Agency Staff,3925.75,0,
02-02-2022,Brighter Futures Director,Matrix Scm,Agency Staff,1038.2,0,
02-02-2022,Brighter Futures Director,Matrix Scm,Agency Staff,921.24,0,
02-02-2022,Children and Young People,Matrix Scm,Agency Staff,1432.1,0,
02-02-2022,Children and Young People,Matrix Scm,Agency Staff,1432.1,0,
02-02-2022,Children and Young People,Matrix Scm,Agency Staff,1457.28,0,
02-02-2022,Children and Young People,Matrix Scm,Agency Staff,1601.28,0,
02-02-2022,Children and Young People,Matrix Scm,Agency Staff,1349.28,0,
02-02-2022,Children and Young People,Matrix Scm,Agency Staff,1349.28,0,
02-02-2022,Children and Young People,Matrix Scm,Agency Staff,1349.28,0,
02-02-2022,Children and Young People,Matrix Scm,Agency Staff,1601.28,0,
02-02-2022,Children and Young People,Matrix Scm,Agency Staff,2289.45,0,
02-02-2022,Children and Young People,Matrix Scm,Agency Staff,1349.28,0,
02-02-2022,Children and Young People,Matrix Scm,Agency Staff,1349.28,0,
02-02-2022,Children and Young People,Matrix Scm,Agency Staff,1489.7,0,
02-02-2022,RMS,Matrix Scm,Agency Staff,1303.9,0,
02-02-2022,RMS,Matrix Scm,Agency Staff,952.29,0,
02-02-2022,RMS,Matrix Scm,Agency Staff,334.66,0,
02-02-2022,RMS,Matrix Scm,Agency Staff,1188.45,0,
02-02-2022,RMS,Matrix Scm,Agency Staff,1025.65,0,
02-02-2022,RMS,Matrix Scm,Agency Staff,615.6,0,
02-02-2022,RMS,Matrix Scm,Agency Staff,1034.17,0,
02-02-2022,RMS,Matrix Scm,Agency Staff,592.11,0,
02-02-2022,RMS,Matrix Scm,Agency Staff,1001.63,0,
02-02-2022,RMS,Matrix Scm,Agency Staff,1001.63,0,
02-02-2022,RMS,Matrix Scm,Agency Staff,759.78,0,
02-02-2022,RMS,Matrix Scm,Agency Staff,1060.5,0,
02-02-2022,RMS,Matrix Scm,Agency Staff,1131.2,0,
02-02-2022,RMS,Matrix Scm,Agency Staff,1117.06,0,
02-02-2022,RMS,Matrix Scm,Agency Staff,804.8,0,
02-02-2022,RMS,Matrix Scm,Agency Staff,916.15,0,
02-02-2022,RMS,Matrix Scm,Agency Staff,916.15,0,
02-02-2022,RMS,Matrix Scm,Agency Staff,916.15,0,
02-02-2022,RMS,Matrix Scm,Agency Staff,977.2,0,
02-02-2022,RMS,Matrix Scm,Agency Staff,1131.2,0,
02-02-2022,RMS,Matrix Scm,Agency Staff,1062.71,0,
02-02-2022,RMS,Matrix Scm,Agency Staff,894,0,
02-02-2022,RMS,Matrix Scm,Agency Staff,1535.65,0,
02-02-2022,RMS,Matrix Scm,Agency Staff,1429.15,0,
02-02-2022,RMS,Matrix Scm,Agency Staff,672.75,0,
02-02-2022,RMS,Matrix Scm,Agency Staff,892.14,0,
02-02-2022,RMS,Matrix Scm,Agency Staff,1577.7,0,
02-02-2022,RMS,Matrix Scm,Agency Staff,816,0,
02-02-2022,Inclusive Economy & Housing,Matrix Scm,Agency Staff,1293.98,0,
02-02-2022,Inclusive Economy & Housing,Matrix Scm,Agency Staff,1272.2,0,
02-02-2022,RMS,Matrix Scm,Agency Staff,1151.05,0,
02-02-2022,RMS,Matrix Scm,Agency Staff,1151.05,0,
02-02-2022,RMS,Matrix Scm,Agency Staff,1112,0,
02-02-2022,RMS,Matrix Scm,Agency Staff,603.52,0,
02-02-2022,RMS,Matrix Scm,Agency Staff,1042.74,0,
02-02-2022,RMS,Matrix Scm,Agency Staff,1248.8,0,
02-02-2022,RMS,Matrix Scm,Agency Staff,1380,0,
02-02-2022,RMS,Matrix Scm,Agency Staff,977.2,0,
02-02-2022,RMS,Matrix Scm,Agency Staff,1116,0,
02-02-2022,RMS,Matrix Scm,Agency Staff,998.8,0,
02-02-2022,RMS,Matrix Scm,Agency Staff,1293.4,0,
02-02-2022,RMS,Matrix Scm,Agency Staff,1002,0,
02-02-2022,RMS,Matrix Scm,Agency Staff,172.32,0,
02-02-2022,RMS,Matrix Scm,Agency Staff,754.4,0,
02-02-2022,RMS,Matrix Scm,Agency Staff,1237.2,0,
02-02-2022,RMS,Matrix Scm,Agency Staff,977.2,0,
02-02-2022,RMS,Matrix Scm,Agency Staff,615.34,0,
02-02-2022,RMS,Matrix Scm,Agency Staff,619.87,0,
02-02-2022,RMS,Matrix Scm,Agency Staff,1002,0,
02-02-2022,RMS,Matrix Scm,Agency Staff,1380,0,
02-02-2022,RMS,Matrix Scm,Agency Staff,731.86,0,
02-02-2022,RMS,Matrix Scm,Agency Staff,1002,0,
02-02-2022,Environment and Sustainable Transport,Matrix Scm,Agency Staff,201,0,
02-02-2022,Environment and Sustainable Transport,Matrix Scm,Agency Staff,0,0,
02-02-2022,Environment and Sustainable Transport,Matrix Scm,Agency Staff,201.15,0,
02-02-2022,Environment and Sustainable Transport,Matrix Scm,Agency Staff,0,0,
02-02-2022,Environment and Sustainable Transport,Matrix Scm,Agency Staff,201.72,0,
02-02-2022,Environment and Sustainable Transport,Matrix Scm,Agency Staff,0,0,
02-02-2022,Environment and Sustainable Transport,Matrix Scm,Agency Staff,201,0,
02-02-2022,Environment and Sustainable Transport,Matrix Scm,Agency Staff,0,0,
02-02-2022,Environment and Sustainable Transport,Matrix Scm,Agency Staff,201.15,0,
02-02-2022,Environment and Sustainable Transport,Matrix Scm,Agency Staff,0,0,
02-02-2022,Environment and Sustainable Transport,Matrix Scm,Agency Staff,201.15,0,
02-02-2022,Environment and Sustainable Transport,Matrix Scm,Agency Staff,0,0,
02-02-2022,Environment and Sustainable Transport,Matrix Scm,Agency Staff,196.71,0,
02-02-2022,Environment and Sustainable Transport,Matrix Scm,Agency Staff,110.53,0,
02-02-2022,Environment and Sustainable Transport,Matrix Scm,Agency Staff,130.34,0,
02-02-2022,Environment and Sustainable Transport,Matrix Scm,Agency Staff,516.96,0,
02-02-2022,Environment and Sustainable Transport,Matrix Scm,Agency Staff,132.37,0,
02-02-2022,Environment and Sustainable Transport,Matrix Scm,Agency Staff,594.37,0,
02-02-2022,RMS,Matrix Scm,Agency Staff,1275.48,0,
02-02-2022,RMS,Matrix Scm,Agency Staff,1560.5,0,
02-02-2022,RMS,Matrix Scm,Agency Staff,772.54,0,
02-02-2022,Environment and Sustainable Transport,Matrix Scm,Agency Staff,197.34,0,
02-02-2022,Environment and Sustainable Transport,Matrix Scm,Agency Staff,520.55,0,
02-02-2022,Environment and Sustainable Transport,Matrix Scm,Agency Staff,576.74,0,
02-02-2022,Environment and Sustainable Transport,Matrix Scm,Agency Staff,840,0,
02-02-2022,Environment and Sustainable Transport,Matrix Scm,Agency Staff,352.44,0,
02-02-2022,Environment and Sustainable Transport,Matrix Scm,Agency Staff,516.96,0,
02-02-2022,Environment and Sustainable Transport,Matrix Scm,Agency Staff,576.74,0,
02-02-2022,Environment and Sustainable Transport,Matrix Scm,Agency Staff,840,0,
02-02-2022,Environment and Sustainable Transport,Matrix Scm,Agency Staff,504,0,
02-02-2022,Environment and Sustainable Transport,Matrix Scm,Agency Staff,576.74,0,
02-02-2022,Environment and Sustainable Transport,Matrix Scm,Agency Staff,516.96,0,
02-02-2022,Environment and Sustainable Transport,Matrix Scm,Agency Staff,352.44,0,
02-02-2022,Environment and Sustainable Transport,Matrix Scm,Agency Staff,217.91,0,
02-02-2022,Environment and Sustainable Transport,Matrix Scm,Agency Staff,576.74,0,
02-02-2022,Environment and Sustainable Transport,Matrix Scm,Agency Staff,592.92,0,
02-02-2022,Environment and Sustainable Transport,Matrix Scm,Agency Staff,592.92,0,
02-02-2022,Environment and Sustainable Transport,Matrix Scm,Agency Staff,756.46,0,
02-02-2022,Environment and Sustainable Transport,Matrix Scm,Agency Staff,127.33,0,
02-02-2022,Environment and Sustainable Transport,Matrix Scm,Agency Staff,577.85,0,
02-02-2022,Environment and Sustainable Transport,Matrix Scm,Agency Staff,557.9,0,
02-02-2022,Environment and Sustainable Transport,Matrix Scm,Agency Staff,502.6,0,
02-02-2022,Environment and Sustainable Transport,Matrix Scm,Agency Staff,544.84,0,
02-02-2022,Environment and Sustainable Transport,Matrix Scm,Agency Staff,0,0,
02-02-2022,Environment and Sustainable Transport,Matrix Scm,Agency Staff,201.72,0,
02-02-2022,Environment and Sustainable Transport,Matrix Scm,Agency Staff,0,0,
02-02-2022,Environment and Sustainable Transport,Matrix Scm,Agency Staff,201.72,0,
02-02-2022,RMS,Matrix Scm,Agency Staff,816,0,
02-02-2022,RMS,Matrix Scm,Agency Staff,905.65,0,
02-02-2022,RMS,Matrix Scm,Agency Staff,951.92,0,
02-02-2022,RMS,Matrix Scm,Agency Staff,1087.15,0,
02-02-2022,RMS,Matrix Scm,Agency Staff,652.28,0,
02-02-2022,RMS,Matrix Scm,Agency Staff,758.4,0,
02-02-2022,RMS,Matrix Scm,Agency Staff,1304.55,0,
02-02-2022,RMS,Matrix Scm,Agency Staff,1391.52,0,
02-02-2022,RMS,Matrix Scm,Agency Staff,977.2,0,
02-02-2022,RMS,Matrix Scm,Agency Staff,452.48,0,
02-02-2022,RMS,Matrix Scm,Agency Staff,921.4,0,
02-02-2022,Environment and Sustainable Transport,Matrix Scm,Agency Staff,515.17,0,
02-02-2022,Environment and Sustainable Transport,Matrix Scm,Agency Staff,576.35,0,
02-02-2022,Environment and Sustainable Transport,Matrix Scm,Agency Staff,576.35,0,
02-02-2022,Environment and Sustainable Transport,Matrix Scm,Agency Staff,0,0,
02-02-2022,Environment and Sustainable Transport,Matrix Scm,Agency Staff,201.87,0,
02-02-2022,Environment and Sustainable Transport,Matrix Scm,Agency Staff,0,0,
02-02-2022,Environment and Sustainable Transport,Matrix Scm,Agency Staff,594.37,0,
02-02-2022,Environment and Sustainable Transport,Matrix Scm,Agency Staff,516.96,0,
02-02-2022,Environment and Sustainable Transport,Matrix Scm,Agency Staff,224.14,0,
02-02-2022,Environment and Sustainable Transport,Matrix Scm,Agency Staff,560.51,0,
02-02-2022,Environment and Sustainable Transport,Matrix Scm,Agency Staff,535.29,0,
02-02-2022,Environment and Sustainable Transport,Matrix Scm,Agency Staff,516.96,0,
02-02-2022,Environment and Sustainable Transport,Matrix Scm,Agency Staff,359.1,0,
02-02-2022,Environment and Sustainable Transport,Matrix Scm,Agency Staff,924,0,
02-02-2022,Environment and Sustainable Transport,Matrix Scm,Agency Staff,516.96,0,
02-02-2022,Environment and Sustainable Transport,Matrix Scm,Agency Staff,515.17,0,
02-02-2022,Environment and Sustainable Transport,Matrix Scm,Agency Staff,516.96,0,
02-02-2022,Environment and Sustainable Transport,Matrix Scm,Agency Staff,191,0,
02-02-2022,Environment and Sustainable Transport,Matrix Scm,Agency Staff,0,0,
02-02-2022,Environment and Sustainable Transport,Matrix Scm,Agency Staff,196.56,0,
02-02-2022,Environment and Sustainable Transport,Matrix Scm,Agency Staff,0,0,
02-02-2022,Environment and Sustainable Transport,Matrix Scm,Agency Staff,201.87,0,
02-02-2022,Environment and Sustainable Transport,Matrix Scm,Agency Staff,0,0,
02-02-2022,Environment and Sustainable Transport,Matrix Scm,Agency Staff,201.87,0,
02-02-2022,Environment and Sustainable Transport,Matrix Scm,Agency Staff,0,0,
02-02-2022,Environment and Sustainable Transport,Matrix Scm,Agency Staff,196.71,0,
02-02-2022,Environment and Sustainable Transport,Matrix Scm,Agency Staff,0,0,
02-02-2022,Environment and Sustainable Transport,Matrix Scm,Agency Staff,196.71,0,
02-02-2022,Environment and Sustainable Transport,Matrix Scm,Agency Staff,0,0,
02-02-2022,Environment and Sustainable Transport,Matrix Scm,Agency Staff,196.71,0,
02-02-2022,Environment and Sustainable Transport,Matrix Scm,Agency Staff,36.8,0,
02-02-2022,Environment and Sustainable Transport,Matrix Scm,Agency Staff,30.7,0,
02-02-2022,Environment and Sustainable Transport,Matrix Scm,Agency Staff,0,0,
02-02-2022,Environment and Sustainable Transport,Matrix Scm,Agency Staff,201.87,0,
02-02-2022,Environment and Sustainable Transport,Matrix Scm,Agency Staff,0,0,
02-02-2022,Environment and Sustainable Transport,Matrix Scm,Agency Staff,0,0,
02-02-2022,Environment and Sustainable Transport,Matrix Scm,Agency Staff,201.87,0,
02-02-2022,Environment and Sustainable Transport,Matrix Scm,Agency Staff,204.82,0,
02-02-2022,Environment and Sustainable Transport,Matrix Scm,Agency Staff,520.55,0,
02-02-2022,Environment and Sustainable Transport,Matrix Scm,Agency Staff,516.96,0,
02-02-2022,Environment and Sustainable Transport,Matrix Scm,Agency Staff,0,0,
02-02-2022,Environment and Sustainable Transport,Matrix Scm,Agency Staff,196.56,0,
02-02-2022,Environment and Sustainable Transport,Matrix Scm,Agency Staff,0,0,
02-02-2022,Environment and Sustainable Transport,Matrix Scm,Agency Staff,134,0,
02-02-2022,Environment and Sustainable Transport,Matrix Scm,Agency Staff,0,0,
02-02-2022,Environment and Sustainable Transport,Matrix Scm,Agency Staff,201,0,
02-02-2022,Environment and Sustainable Transport,Matrix Scm,Agency Staff,576.09,0,
02-02-2022,Environment and Sustainable Transport,Matrix Scm,Agency Staff,0,0,
02-02-2022,Environment and Sustainable Transport,Matrix Scm,Agency Staff,201,0,
02-02-2022,Environment and Sustainable Transport,Matrix Scm,Agency Staff,0,0,
02-02-2022,Environment and Sustainable Transport,Matrix Scm,Agency Staff,201,0,
02-02-2022,Environment and Sustainable Transport,Matrix Scm,Agency Staff,0,0,
02-02-2022,Environment and Sustainable Transport,Matrix Scm,Agency Staff,0,0,
02-02-2022,Environment and Sustainable Transport,Matrix Scm,Agency Staff,134,0,
02-02-2022,Environment and Sustainable Transport,Matrix Scm,Agency Staff,0,0,
02-02-2022,Environment and Sustainable Transport,Matrix Scm,Agency Staff,201,0,
02-02-2022,Environment and Sustainable Transport,Matrix Scm,Agency Staff,51.3,0,
02-02-2022,Environment and Sustainable Transport,Matrix Scm,Agency Staff,576.35,0,
02-02-2022,Environment and Sustainable Transport,Matrix Scm,Agency Staff,816,0,
02-02-2022,Environment and Sustainable Transport,Matrix Scm,Agency Staff,516.96,0,
02-02-2022,Environment and Sustainable Transport,Matrix Scm,Agency Staff,0,0,
02-02-2022,Environment and Sustainable Transport,Matrix Scm,Agency Staff,196.56,0,
02-02-2022,Environment and Sustainable Transport,Matrix Scm,Agency Staff,21.7,0,
02-02-2022,Environment and Sustainable Transport,Matrix Scm,Agency Staff,0,0,
02-02-2022,Environment and Sustainable Transport,Matrix Scm,Agency Staff,516.96,0,
02-02-2022,Environment and Sustainable Transport,Matrix Scm,Agency Staff,576.35,0,
02-02-2022,Environment and Sustainable Transport,Matrix Scm,Agency Staff,520.55,0,
02-02-2022,Environment and Sustainable Transport,Matrix Scm,Agency Staff,114.48,0,
02-02-2022,Environment and Sustainable Transport,Matrix Scm,Agency Staff,516.96,0,
02-02-2022,Environment and Sustainable Transport,Matrix Scm,Agency Staff,520.55,0,
02-02-2022,Environment and Sustainable Transport,Matrix Scm,Agency Staff,576.35,0,
02-02-2022,Environment and Sustainable Transport,Matrix Scm,Agency Staff,516.96,0,
02-02-2022,Environment and Sustainable Transport,Matrix Scm,Agency Staff,343.14,0,
02-02-2022,Environment and Sustainable Transport,Matrix Scm,Agency Staff,458.85,0,
02-02-2022,Environment and Sustainable Transport,Matrix Scm,Agency Staff,162.33,0,
02-02-2022,Environment and Sustainable Transport,Matrix Scm,Agency Staff,710.15,0,
02-02-2022,Environment and Sustainable Transport,Matrix Scm,Agency Staff,576.35,0,
02-02-2022,Environment and Sustainable Transport,Matrix Scm,Agency Staff,642.88,0,
02-02-2022,Environment and Sustainable Transport,Matrix Scm,Agency Staff,229.76,0,
02-02-2022,Environment and Sustainable Transport,Matrix Scm,Agency Staff,131.25,0,
02-02-2022,Environment and Sustainable Transport,Matrix Scm,Agency Staff,600.4,0,
02-02-2022,Environment and Sustainable Transport,Matrix Scm,Agency Staff,123.69,0,
02-02-2022,Environment and Sustainable Transport,Matrix Scm,Agency Staff,572.77,0,
02-02-2022,Environment and Sustainable Transport,Matrix Scm,Agency Staff,580.35,0,
02-02-2022,Environment and Sustainable Transport,Matrix Scm,Agency Staff,520.55,0,
02-02-2022,Environment and Sustainable Transport,Matrix Scm,Agency Staff,520.55,0,
02-02-2022,Environment and Sustainable Transport,Matrix Scm,Agency Staff,201.04,0,
02-02-2022,Environment and Sustainable Transport,Matrix Scm,Agency Staff,783.6,0,
02-02-2022,Inclusive Economy & Housing,Matrix Scm,Agency Staff,928.8,0,
02-02-2022,Inclusive Economy & Housing,Matrix Scm,Agency Staff,967.33,0,
02-02-2022,Inclusive Economy & Housing,Matrix Scm,Agency Staff,696.42,0,
02-02-2022,Inclusive Economy & Housing,Matrix Scm,Agency Staff,676.71,0,
02-02-2022,Inclusive Economy & Housing,Matrix Scm,Agency Staff,724.32,0,
02-02-2022,Inclusive Economy & Housing,Matrix Scm,Agency Staff,1191.25,0,
02-02-2022,Inclusive Economy & Housing,Matrix Scm,Agency Staff,747.92,0,
02-02-2022,Inclusive Economy & Housing,Matrix Scm,Agency Staff,748.44,0,
02-02-2022,Inclusive Economy & Housing,Matrix Scm,Agency Staff,1021.68,0,
02-02-2022,Adults & Health,Matrix Scm,Agency Staff,1104.95,0,
02-02-2022,Adults & Health,Matrix Scm,Agency Staff,1069.92,0,
02-02-2022,Environment and Sustainable Transport,Matrix Scm,Agency Staff,2256.05,0,
02-02-2022,RMS,Matrix Scm,Agency Staff,936.4,0,
02-02-2022,RMS,Matrix Scm,Agency Staff,936.4,0,
02-02-2022,RMS,Matrix Scm,Agency Staff,1163.2,0,
02-02-2022,RMS,Matrix Scm,Agency Staff,1005.13,0,
02-02-2022,RMS,Matrix Scm,Agency Staff,947.2,0,
02-02-2022,RMS,Matrix Scm,Agency Staff,1023.77,0,
02-02-2022,RMS,Matrix Scm,Agency Staff,1027.05,0,
02-02-2022,RMS,Matrix Scm,Agency Staff,754.5,0,
02-02-2022,RMS,Matrix Scm,Agency Staff,896.55,0,
02-02-2022,RMS,Matrix Scm,Agency Staff,1002,0,
02-02-2022,RMS,Matrix Scm,Agency Staff,730.9,0,
02-02-2022,RMS,Matrix Scm,Agency Staff,998.8,0,
02-02-2022,RMS,Matrix Scm,Agency Staff,849.66,0,
02-02-2022,RMS,Matrix Scm,Agency Staff,1064.65,0,
02-02-2022,RMS,Matrix Scm,Agency Staff,1064.65,0,
02-02-2022,oneSource - Non Shared,Matrix Scm,Agency Staff,1686.01,0,
02-02-2022,Inclusive Economy & Housing,Matrix Scm,Agency Staff,757.02,0,
02-02-2022,Inclusive Economy & Housing,Matrix Scm,Agency Staff,982.08,0,
02-02-2022,Inclusive Economy & Housing,Matrix Scm,Agency Staff,1188.72,0,
02-02-2022,Inclusive Economy & Housing,Matrix Scm,Agency Staff,862.56,0,
02-02-2022,Inclusive Economy & Housing,Matrix Scm,Agency Staff,1160.29,0,
02-02-2022,Inclusive Economy & Housing,Matrix Scm,Agency Staff,2910,0,
02-02-2022,Inclusive Economy & Housing,Matrix Scm,Agency Staff,1188.72,0,
02-02-2022,Inclusive Economy & Housing,Matrix Scm,Agency Staff,1188.72,0,
02-02-2022,Inclusive Economy & Housing,Matrix Scm,Agency Staff,1188.72,0,
02-02-2022,Inclusive Economy & Housing,Matrix Scm,Agency Staff,838.08,0,
02-02-2022,Adults & Health,Matrix Scm,Agency Staff,67.7,0,
02-02-2022,Adults & Health,Matrix Scm,Agency Staff,697.41,0,
02-02-2022,Adults & Health,Matrix Scm,Agency Staff,1004.03,0,
02-02-2022,Adults & Health,Matrix Scm,Agency Staff,67.94,0,
02-02-2022,Adults & Health,Matrix Scm,Agency Staff,1153.65,0,
02-02-2022,Adults & Health,Matrix Scm,Agency Staff,66.22,0,
02-02-2022,Adults & Health,Matrix Scm,Agency Staff,874.56,0,
02-02-2022,Adults & Health,Matrix Scm,Agency Staff,902.35,0,
02-02-2022,Adults & Health,Matrix Scm,Agency Staff,289.3,0,
02-02-2022,Environment and Sustainable Transport,Matrix Scm,Agency Staff,601.8,0,
02-02-2022,Environment and Sustainable Transport,Matrix Scm,Agency Staff,1332.76,0,
02-02-2022,Environment and Sustainable Transport,Matrix Scm,Agency Staff,611.24,0,
02-02-2022,Environment and Sustainable Transport,Matrix Scm,Agency Staff,520.28,0,
02-02-2022,Inclusive Economy & Housing,Matrix Scm,Agency Staff,1504.1,0,
02-02-2022,Inclusive Economy & Housing,Matrix Scm,Agency Staff,827.65,0,
02-02-2022,Environment and Sustainable Transport,Matrix Scm,Agency Staff,666.05,0,
02-02-2022,Children and Young People,Matrix Scm,Agency Staff,308.74,0,
02-02-2022,Children and Young People,Matrix Scm,Agency Staff,315.92,0,
02-02-2022,Children and Young People,Matrix Scm,Agency Staff,330.4,0,
02-02-2022,Children and Young People,Matrix Scm,Agency Staff,319.4,0,
02-02-2022,Children and Young People,Matrix Scm,Agency Staff,319.4,0,
02-02-2022,Children and Young People,Matrix Scm,Agency Staff,316.2,0,
02-02-2022,Children and Young People,Matrix Scm,Agency Staff,478.79,0,
02-02-2022,Inclusive Economy & Housing,Matrix Scm,Agency Staff,878.04,0,
02-02-2022,Inclusive Economy & Housing,Matrix Scm,Agency Staff,877.68,0,
02-02-2022,Environment and Sustainable Transport,Matrix Scm,Agency Staff,580.35,0,
02-02-2022,Environment and Sustainable Transport,Matrix Scm,Agency Staff,516.96,0,
02-02-2022,Children and Young People,Matrix Scm,Agency Staff,934.96,0,
02-02-2022,Housing Revenue Account,Matrix Scm,Agency Staff,1188.38,0,
02-02-2022,Adults & Health,Matrix Scm,Agency Staff,3366.25,0,
02-02-2022,Adults & Health,Matrix Scm,Agency Staff,1241.28,0,
02-02-2022,Adults & Health,Matrix Scm,Agency Staff,1169.28,0,
02-02-2022,Adults & Health,Matrix Scm,Agency Staff,1097.28,0,
02-02-2022,Adults & Health,Matrix Scm,Agency Staff,1169.28,0,
02-02-2022,Adults & Health,Matrix Scm,Agency Staff,597.69,0,
02-02-2022,Adults & Health,Matrix Scm,Agency Staff,1241.28,0,
02-02-2022,Adults & Health,Matrix Scm,Agency Staff,2772.75,0,
02-02-2022,Adults & Health,Matrix Scm,Agency Staff,436.6,0,
02-02-2022,Adults & Health,Matrix Scm,Agency Staff,592.53,0,
02-02-2022,Adults & Health,Matrix Scm,Agency Staff,686.09,0,
02-02-2022,Adults & Health,Matrix Scm,Agency Staff,748.46,0,
02-02-2022,Adults & Health,Matrix Scm,Agency Staff,450.87,0,
02-02-2022,Adults & Health,Matrix Scm,Agency Staff,270.28,0,
02-02-2022,Adults & Health,Matrix Scm,Agency Staff,374.22,0,
02-02-2022,Adults & Health,Matrix Scm,Agency Staff,436.6,0,
02-02-2022,Adults & Health,Matrix Scm,Agency Staff,267.08,0,
02-02-2022,Adults & Health,Matrix Scm,Agency Staff,519.75,0,
02-02-2022,Children and Young People,Matrix Scm,Agency Staff,1160.64,0,
02-02-2022,Children and Young People,Matrix Scm,Agency Staff,1662.49,0,
02-02-2022,Children and Young People,Matrix Scm,Agency Staff,977.41,0,
02-02-2022,Children and Young People,Matrix Scm,Agency Staff,1860.48,0,
02-02-2022,Adults & Health,Matrix Scm,Agency Staff,955.08,0,
02-02-2022,Adults & Health,Matrix Scm,Agency Staff,2014.3,0,
02-02-2022,Adults & Health,Matrix Scm,Agency Staff,1086.92,0,
02-02-2022,Adults & Health,Matrix Scm,Agency Staff,1529.28,0,
02-02-2022,Adults & Health,Matrix Scm,Agency Staff,753.47,0,
02-02-2022,Adults & Health,Matrix Scm,Agency Staff,2208.5,0,
02-02-2022,Adults & Health,Matrix Scm,Agency Staff,1166.4,0,
02-02-2022,Adults & Health,Matrix Scm,Agency Staff,2851.45,0,
02-02-2022,Adults & Health,Matrix Scm,Agency Staff,570.29,0,
02-02-2022,Adults & Health,Matrix Scm,Agency Staff,611.6,0,
02-02-2022,Adults & Health,Matrix Scm,Agency Staff,2033.75,0,
02-02-2022,Adults & Health,Matrix Scm,Agency Staff,902.35,0,
02-02-2022,Adults & Health,Matrix Scm,Agency Staff,679.4,0,
02-02-2022,Adults & Health,Matrix Scm,Agency Staff,0,0,
02-02-2022,Adults & Health,Matrix Scm,Agency Staff,822.54,0,
02-02-2022,Adults & Health,Matrix Scm,Agency Staff,697.41,0,
02-02-2022,Adults & Health,Matrix Scm,Agency Staff,740.81,0,
02-02-2022,Adults & Health,Matrix Scm,Agency Staff,686.34,0,
02-02-2022,Adults & Health,Matrix Scm,Agency Staff,808.11,0,
02-02-2022,Adults & Health,Matrix Scm,Agency Staff,874.56,0,
02-02-2022,Adults & Health,Matrix Scm,Agency Staff,-500,0,
02-02-2022,Adults & Health,Matrix Scm,Agency Staff,863.46,0,
02-02-2022,Adults & Health,Matrix Scm,Agency Staff,819.98,0,
02-02-2022,Adults & Health,Matrix Scm,Agency Staff,828.21,0,
02-02-2022,Adults & Health,Matrix Scm,Agency Staff,849.16,0,
02-02-2022,Brighter Futures Director,Basis Ltd,Staff Development And Training,850,0,COMMERCIAL SUPPLIER
02-02-2022,Housing Revenue Account,Energy Environmental Services Ltd,"Maintenance - Equipment, Furniture And Materials",300,0,COMMERCIAL SUPPLIER
02-02-2022,Housing Revenue Account,Energy Environmental Services Ltd,"Maintenance - Equipment, Furniture And Materials",300,0,COMMERCIAL SUPPLIER
02-02-2022,Housing Revenue Account,Energy Environmental Services Ltd,"Maintenance - Equipment, Furniture And Materials",300,0,COMMERCIAL SUPPLIER
02-02-2022,Housing Revenue Account,Energy Environmental Services Ltd,"Maintenance - Equipment, Furniture And Materials",300,0,COMMERCIAL SUPPLIER
02-02-2022,Housing Revenue Account,Energy Environmental Services Ltd,"Maintenance - Equipment, Furniture And Materials",300,0,COMMERCIAL SUPPLIER
02-02-2022,Housing Revenue Account,Energy Environmental Services Ltd,"Maintenance - Equipment, Furniture And Materials",300,0,COMMERCIAL SUPPLIER
02-02-2022,Housing Revenue Account,Energy Environmental Services Ltd,"Maintenance - Equipment, Furniture And Materials",300,0,COMMERCIAL SUPPLIER
02-02-2022,Housing Revenue Account,Energy Environmental Services Ltd,"Maintenance - Equipment, Furniture And Materials",300,0,COMMERCIAL SUPPLIER
02-02-2022,Housing Revenue Account,Energy Environmental Services Ltd,"Maintenance - Equipment, Furniture And Materials",300,0,COMMERCIAL SUPPLIER
02-02-2022,Housing Revenue Account,Energy Environmental Services Ltd,"Maintenance - Equipment, Furniture And Materials",300,0,COMMERCIAL SUPPLIER
02-02-2022,Housing Revenue Account,Energy Environmental Services Ltd,"Maintenance - Equipment, Furniture And Materials",300,0,COMMERCIAL SUPPLIER
02-02-2022,Children and Young People,Personal Information - Redacted,Legal Fees,250,0,COMMERCIAL SUPPLIER
02-02-2022,Children and Young People,Personal Information - Redacted,Legal Fees,1758.33,0,COMMERCIAL SUPPLIER
02-02-2022,Adults & Health,Inclusive Care Support Ltd,Daycare - Private Contractors Payment,332.5,0,COMMERCIAL SUPPLIER
02-02-2022,Adults & Health,Inclusive Care Support Ltd,Daycare - Private Contractors Payment,332.5,0,COMMERCIAL SUPPLIER
02-02-2022,Adults & Health,Inclusive Care Support Ltd,Daycare - Private Contractors Payment,332.5,0,COMMERCIAL SUPPLIER
02-02-2022,Adults & Health,Inclusive Care Support Ltd,Daycare - Private Contractors Payment,332.5,0,COMMERCIAL SUPPLIER
02-02-2022,"People, Policy and Performance",Julia Holberry Associates,Consultancy Fees,5050,0,COMMERCIAL SUPPLIER
02-02-2022,Adults & Health,Supporting Care,Home Care - Private Contractors Payment,1003.63,0,VENDOR
02-02-2022,Adults & Health,Supporting Care,Home Care - Private Contractors Payment,1003.63,0,VENDOR
02-02-2022,Adults & Health,Supporting Care,Home Care - Private Contractors Payment,277.45,0,VENDOR
02-02-2022,Adults & Health,Supporting Care,Home Care - Private Contractors Payment,1720.5,0,VENDOR
02-02-2022,Adults & Health,Supporting Care,Home Care - Private Contractors Payment,1003.61,0,VENDOR
02-02-2022,Adults & Health,Supporting Care,Home Care - Private Contractors Payment,1003.63,0,VENDOR
02-02-2022,Adults & Health,Supporting Care,Home Care - Private Contractors Payment,1003.63,0,VENDOR
02-02-2022,Adults & Health,Supporting Care,Home Care - Private Contractors Payment,1003.63,0,VENDOR
02-02-2022,Adults & Health,Supporting Care,Home Care - Private Contractors Payment,1003.63,0,VENDOR
02-02-2022,Adults & Health,Supporting Care,Home Care - Private Contractors Payment,1003.63,0,VENDOR
02-02-2022,Adults & Health,Supporting Care,Home Care - Private Contractors Payment,1003.63,0,VENDOR
02-02-2022,Adults & Health,Supporting Care,Home Care - Private Contractors Payment,1003.61,0,VENDOR
02-02-2022,Adults & Health,Supporting Care,Home Care - Private Contractors Payment,286.75,0,VENDOR
02-02-2022,Adults & Health,Supporting Care,Home Care - Private Contractors Payment,1003.61,0,VENDOR
02-02-2022,Adults & Health,Supporting Care,Home Care - Private Contractors Payment,1003.63,0,VENDOR
02-02-2022,Adults & Health,Supporting Care,Home Care - Private Contractors Payment,1003.63,0,VENDOR
02-02-2022,Adults & Health,Liberty Centre Ltd,Daycare - Private Contractors Payment,356,0,COMMERCIAL SUPPLIER
02-02-2022,Adults & Health,Liberty Centre Ltd,Daycare - Private Contractors Payment,356,0,COMMERCIAL SUPPLIER
02-02-2022,Adults & Health,Liberty Centre Ltd,Daycare - Private Contractors Payment,356,0,COMMERCIAL SUPPLIER
02-02-2022,Adults & Health,Liberty Centre Ltd,Daycare - Private Contractors Payment,356,0,COMMERCIAL SUPPLIER
02-02-2022,"People, Policy and Performance",Personal Information - Redacted,Events,280,0,COMMERCIAL SUPPLIER
02-02-2022,Brighter Futures Director,Healthtap Limited,Consultancy Fees,4450,0,COMMERCIAL SUPPLIER
02-02-2022,Brighter Futures Director,Healthtap Limited,Consultancy Fees,4800,0,COMMERCIAL SUPPLIER
02-02-2022,Children and Young People,Personal Information - Redacted,Professional Services - General,25,0,Employee
02-02-2022,Children and Young People,Personal Information - Redacted,Photocopying,74.57,0,Employee
02-02-2022,Children and Young People,Personal Information - Redacted,Professional Services - General,265.84,0,Employee
02-02-2022,Children and Young People,Personal Information - Redacted,Stationery,7.93,0,Employee
02-02-2022,Children and Young People,Personal Information - Redacted,"Purchase - Equipment, Furniture And Materials",19.16,0,Employee
02-02-2022,Children and Young People,Personal Information - Redacted,Photocopying,10.66,0,Employee
02-02-2022,Children and Young People,Personal Information - Redacted,Photocopying,77.49,0,Employee
02-02-2022,Adults & Health,Personal Information - Redacted,"Purchase - Equipment, Furniture And Materials",86,0,Employee
02-02-2022,Children and Young People,Personal Information - Redacted,"Purchase - Equipment, Furniture And Materials",16.14,0,Employee
02-02-2022,Children and Young People,Personal Information - Redacted,Ict Software,2.07,0,Employee
02-02-2022,Children and Young People,Personal Information - Redacted,Ict Maintenance And Support,5.82,0,Employee
02-02-2022,Dedicated Schools Budget,Personal Information - Redacted,Professional Services - General,53.88,0,Employee
02-02-2022,Dedicated Schools Budget,Personal Information - Redacted,"Books, Publications And Resources",45,0,Employee
02-02-2022,Adults & Health,Inclusive Care Support Ltd,Daycare - Private Contractors Payment,157.5,0,COMMERCIAL SUPPLIER
02-02-2022,Adults & Health,Inclusive Care Support Ltd,Daycare - Private Contractors Payment,157.5,0,COMMERCIAL SUPPLIER
02-02-2022,Adults & Health,Inclusive Care Support Ltd,Daycare - Private Contractors Payment,157.5,0,COMMERCIAL SUPPLIER
02-02-2022,Adults & Health,Inclusive Care Support Ltd,Daycare - Private Contractors Payment,420,0,COMMERCIAL SUPPLIER
02-02-2022,Adults & Health,Liberty Centre Ltd,Daycare - Private Contractors Payment,1272,0,COMMERCIAL SUPPLIER
02-02-2022,Adults & Health,Liberty Centre Ltd,Daycare - Private Contractors Payment,1272,0,COMMERCIAL SUPPLIER
02-02-2022,Adults & Health,Liberty Centre Ltd,Daycare - Private Contractors Payment,1272,0,COMMERCIAL SUPPLIER
02-02-2022,Adults & Health,Liberty Centre Ltd,Daycare - Private Contractors Payment,1272,0,COMMERCIAL SUPPLIER
02-02-2022,Adults & Health,Raymond Williams Ltd,Rents Payable,18416,0,COMMERCIAL SUPPLIER
02-02-2022,Housing Revenue Account,CEL Solicitors,Legal Fees,4550,0,COMMERCIAL SUPPLIER
02-02-2022,Dedicated Schools Budget,Personal Information - Redacted,Payment To Health Authorities,4000,0,VENDOR
02-02-2022,Housing Revenue Account,CEL Solicitors,Legal Fees,760,0,COMMERCIAL SUPPLIER
02-02-2022,Adults & Health,Inclusive Care Support Ltd,Daycare - Private Contractors Payment,105,0,COMMERCIAL SUPPLIER
02-02-2022,Adults & Health,Inclusive Care Support Ltd,Daycare - Private Contractors Payment,105,0,COMMERCIAL SUPPLIER
02-02-2022,Adults & Health,Inclusive Care Support Ltd,Daycare - Private Contractors Payment,105,0,COMMERCIAL SUPPLIER
02-02-2022,Adults & Health,Inclusive Care Support Ltd,Daycare - Private Contractors Payment,105,0,COMMERCIAL SUPPLIER
02-02-2022,Adults & Health,THERAPYAUDIT Ltd,Ict Licences,3031,0,COMMERCIAL SUPPLIER
02-02-2022,"People, Policy and Performance",Personal Information - Redacted,"Clothes, Uniform And Laundry",1645.8,0,COMMERCIAL SUPPLIER
02-02-2022,"People, Policy and Performance",Personal Information - Redacted,"Clothes, Uniform And Laundry",484.8,0,COMMERCIAL SUPPLIER
02-02-2022,Children and Young People,adam HTT LTd T/A Adam,Additional Placements - Third Party,80,0,VENDOR
02-02-2022,Children and Young People,adam HTT LTd T/A Adam,Additional Placements - Third Party,103.5,0,VENDOR
02-02-2022,Children and Young People,adam HTT LTd T/A Adam,Additional Placements - Third Party,103.5,0,VENDOR
02-02-2022,Children and Young People,adam HTT LTd T/A Adam,Additional Placements - Third Party,59.76,0,VENDOR
02-02-2022,Children and Young People,adam HTT LTd T/A Adam,Additional Placements - Third Party,59.76,0,VENDOR
02-02-2022,Children and Young People,adam HTT LTd T/A Adam,Additional Placements - Third Party,142.45,0,VENDOR
02-02-2022,Children and Young People,adam HTT LTd T/A Adam,Additional Placements - Third Party,90.65,0,VENDOR
02-02-2022,Children and Young People,adam HTT LTd T/A Adam,Additional Placements - Third Party,142.46,0,VENDOR
02-02-2022,Children and Young People,adam HTT LTd T/A Adam,Additional Placements - Third Party,142.45,0,VENDOR
02-02-2022,Children and Young People,adam HTT LTd T/A Adam,Additional Placements - Third Party,71.7,0,VENDOR
02-02-2022,Children and Young People,adam HTT LTd T/A Adam,Additional Placements - Third Party,47.8,0,VENDOR
02-02-2022,Children and Young People,adam HTT LTd T/A Adam,Additional Placements - Third Party,71.7,0,VENDOR
02-02-2022,Children and Young People,adam HTT LTd T/A Adam,Additional Placements - Third Party,71.7,0,VENDOR
02-02-2022,Children and Young People,adam HTT LTd T/A Adam,Additional Placements - Third Party,71.7,0,VENDOR
02-02-2022,Children and Young People,adam HTT LTd T/A Adam,Additional Placements - Third Party,71.7,0,VENDOR
02-02-2022,Children and Young People,adam HTT LTd T/A Adam,Additional Placements - Third Party,259,0,VENDOR
02-02-2022,Children and Young People,adam HTT LTd T/A Adam,Additional Placements - Third Party,148.5,0,VENDOR
02-02-2022,Children and Young People,adam HTT LTd T/A Adam,Additional Placements - Third Party,191.25,0,VENDOR
02-02-2022,Children and Young People,adam HTT LTd T/A Adam,Additional Placements - Third Party,135,0,VENDOR
02-02-2022,Children and Young People,adam HTT LTd T/A Adam,Additional Placements - Third Party,256,0,VENDOR
02-02-2022,Children and Young People,adam HTT LTd T/A Adam,Additional Placements - Third Party,351,0,VENDOR
02-02-2022,Children and Young People,adam HTT LTd T/A Adam,Additional Placements - Third Party,121.5,0,VENDOR
02-02-2022,Children and Young People,adam HTT LTd T/A Adam,Additional Placements - Third Party,232.78,0,VENDOR
02-02-2022,Children and Young People,adam HTT LTd T/A Adam,Additional Placements - Third Party,135,0,VENDOR
02-02-2022,Children and Young People,adam HTT LTd T/A Adam,Additional Placements - Third Party,108,0,VENDOR
02-02-2022,Children and Young People,adam HTT LTd T/A Adam,Additional Placements - Third Party,210,0,VENDOR
02-02-2022,Children and Young People,adam HTT LTd T/A Adam,Additional Placements - Third Party,210,0,VENDOR
02-02-2022,Children and Young People,adam HTT LTd T/A Adam,Additional Placements - Third Party,630,0,VENDOR
02-02-2022,Children and Young People,adam HTT LTd T/A Adam,Additional Placements - Third Party,90,0,VENDOR
02-02-2022,Children and Young People,adam HTT LTd T/A Adam,Additional Placements - Third Party,75,0,VENDOR
02-02-2022,Children and Young People,adam HTT LTd T/A Adam,Additional Placements - Third Party,108,0,VENDOR
02-02-2022,Children and Young People,adam HTT LTd T/A Adam,Additional Placements - Third Party,112,0,VENDOR
02-02-2022,Children and Young People,adam HTT LTd T/A Adam,Additional Placements - Third Party,54,0,VENDOR
02-02-2022,Children and Young People,adam HTT LTd T/A Adam,Additional Placements - Third Party,495,0,VENDOR
02-02-2022,Children and Young People,adam HTT LTd T/A Adam,Additional Placements - Third Party,495,0,VENDOR
02-02-2022,Children and Young People,adam HTT LTd T/A Adam,Additional Placements - Third Party,495,0,VENDOR
02-02-2022,Children and Young People,adam HTT LTd T/A Adam,Additional Placements - Third Party,495,0,VENDOR
02-02-2022,Children and Young People,adam HTT LTd T/A Adam,Additional Placements - Third Party,495,0,VENDOR
02-02-2022,Children and Young People,adam HTT LTd T/A Adam,Additional Placements - Third Party,220,0,VENDOR
02-02-2022,Children and Young People,adam HTT LTd T/A Adam,Additional Placements - Third Party,96,0,VENDOR
02-02-2022,Children and Young People,adam HTT LTd T/A Adam,Additional Placements - Third Party,124,0,VENDOR
02-02-2022,Children and Young People,adam HTT LTd T/A Adam,Additional Placements - Third Party,124,0,VENDOR
02-02-2022,Children and Young People,adam HTT LTd T/A Adam,Additional Placements - Third Party,947.36,0,VENDOR
02-02-2022,Children and Young People,adam HTT LTd T/A Adam,Additional Placements - Third Party,1125.85,0,VENDOR
02-02-2022,Children and Young People,adam HTT LTd T/A Adam,Additional Placements - Third Party,70.12,0,VENDOR
02-02-2022,Children and Young People,adam HTT LTd T/A Adam,Additional Placements - Third Party,563.4,0,VENDOR
02-02-2022,Children and Young People,adam HTT LTd T/A Adam,Additional Placements - Third Party,181.3,0,VENDOR
02-02-2022,Children and Young People,adam HTT LTd T/A Adam,Additional Placements - Third Party,181.3,0,VENDOR
02-02-2022,Children and Young People,adam HTT LTd T/A Adam,Additional Placements - Third Party,427.5,0,VENDOR
02-02-2022,Children and Young People,adam HTT LTd T/A Adam,Additional Placements - Third Party,153.46,0,VENDOR
02-02-2022,Children and Young People,adam HTT LTd T/A Adam,Additional Placements - Third Party,70.12,0,VENDOR
02-02-2022,Children and Young People,adam HTT LTd T/A Adam,Additional Placements - Third Party,563.4,0,VENDOR
02-02-2022,Children and Young People,adam HTT LTd T/A Adam,Additional Placements - Third Party,153.46,0,VENDOR
02-02-2022,Children and Young People,adam HTT LTd T/A Adam,Additional Placements - Third Party,122,0,VENDOR
02-02-2022,Children and Young People,adam HTT LTd T/A Adam,Additional Placements - Third Party,70.12,0,VENDOR
02-02-2022,Children and Young People,adam HTT LTd T/A Adam,Additional Placements - Third Party,563.4,0,VENDOR
02-02-2022,Children and Young People,adam HTT LTd T/A Adam,Additional Placements - Third Party,122,0,VENDOR
02-02-2022,Children and Young People,adam HTT LTd T/A Adam,Additional Placements - Third Party,229.5,0,VENDOR
02-02-2022,Children and Young People,adam HTT LTd T/A Adam,Additional Placements - Third Party,229.5,0,VENDOR
02-02-2022,Children and Young People,adam HTT LTd T/A Adam,Additional Placements - Third Party,108,0,VENDOR
02-02-2022,Children and Young People,adam HTT LTd T/A Adam,Additional Placements - Third Party,108,0,VENDOR
02-02-2022,Children and Young People,adam HTT LTd T/A Adam,Additional Placements - Third Party,45.8,0,VENDOR
02-02-2022,Children and Young People,adam HTT LTd T/A Adam,Additional Placements - Third Party,45.8,0,VENDOR
02-02-2022,Children and Young People,adam HTT LTd T/A Adam,Additional Placements - Third Party,93,0,VENDOR
02-02-2022,Children and Young People,adam HTT LTd T/A Adam,Additional Placements - Third Party,93,0,VENDOR
02-02-2022,Children and Young People,adam HTT LTd T/A Adam,Additional Placements - Third Party,64.75,0,VENDOR
02-02-2022,Children and Young People,adam HTT LTd T/A Adam,Additional Placements - Third Party,64.75,0,VENDOR
02-02-2022,Children and Young People,adam HTT LTd T/A Adam,Additional Placements - Third Party,64.75,0,VENDOR
02-02-2022,Children and Young People,adam HTT LTd T/A Adam,Additional Placements - Third Party,64.75,0,VENDOR
02-02-2022,Children and Young People,adam HTT LTd T/A Adam,Additional Placements - Third Party,60,0,VENDOR
02-02-2022,Children and Young People,adam HTT LTd T/A Adam,Additional Placements - Third Party,672,0,VENDOR
02-02-2022,Children and Young People,adam HTT LTd T/A Adam,Additional Placements - Third Party,12848,0,VENDOR
02-02-2022,Resources,Bloom Procurement Services Ltd,Consultancy Fees,5220,0,COMMERCIAL SUPPLIER
02-02-2022,Adults & Health,Liberty Centre Ltd,Daycare - Private Contractors Payment,698.25,0,COMMERCIAL SUPPLIER
02-02-2022,Adults & Health,Liberty Centre Ltd,Daycare - Private Contractors Payment,126,0,COMMERCIAL SUPPLIER
02-02-2022,Adults & Health,Liberty Centre Ltd,Daycare - Private Contractors Payment,288,0,COMMERCIAL SUPPLIER
02-02-2022,Adults & Health,Liberty Centre Ltd,Daycare - Private Contractors Payment,252,0,COMMERCIAL SUPPLIER
02-02-2022,Adults & Health,Liberty Centre Ltd,Daycare - Private Contractors Payment,288,0,COMMERCIAL SUPPLIER
02-02-2022,Adults & Health,Liberty Centre Ltd,Daycare - Private Contractors Payment,252,0,COMMERCIAL SUPPLIER
02-02-2022,Adults & Health,Liberty Centre Ltd,Daycare - Private Contractors Payment,698.25,0,COMMERCIAL SUPPLIER
02-02-2022,Adults & Health,Liberty Centre Ltd,Daycare - Private Contractors Payment,126,0,COMMERCIAL SUPPLIER
02-02-2022,Adults & Health,Liberty Centre Ltd,Daycare - Private Contractors Payment,252,0,COMMERCIAL SUPPLIER
02-02-2022,Adults & Health,Liberty Centre Ltd,Daycare - Private Contractors Payment,698.25,0,COMMERCIAL SUPPLIER
02-02-2022,Adults & Health,Liberty Centre Ltd,Daycare - Private Contractors Payment,126,0,COMMERCIAL SUPPLIER
02-02-2022,Adults & Health,Liberty Centre Ltd,Daycare - Private Contractors Payment,288,0,COMMERCIAL SUPPLIER
02-02-2022,Adults & Health,Liberty Centre Ltd,Daycare - Private Contractors Payment,288,0,COMMERCIAL SUPPLIER
02-02-2022,Adults & Health,Liberty Centre Ltd,Daycare - Private Contractors Payment,126,0,COMMERCIAL SUPPLIER
02-02-2022,Adults & Health,Liberty Centre Ltd,Daycare - Private Contractors Payment,698.25,0,COMMERCIAL SUPPLIER
02-02-2022,Adults & Health,Liberty Centre Ltd,Daycare - Private Contractors Payment,252,0,COMMERCIAL SUPPLIER
02-02-2022,RMS,Travis Perkins Trading Company Ltd,"Purchase - Equipment, Furniture And Materials",1041.68,0,COMMERCIAL SUPPLIER
02-02-2022,RMS,Travis Perkins Trading Company Ltd,"Purchase - Equipment, Furniture And Materials",5780.11,0,COMMERCIAL SUPPLIER
02-02-2022,RMS,Travis Perkins Trading Company Ltd,"Purchase - Equipment, Furniture And Materials",20593.88,0,COMMERCIAL SUPPLIER
02-02-2022,RMS,Travis Perkins Trading Company Ltd,"Purchase - Equipment, Furniture And Materials",26.7,0,COMMERCIAL SUPPLIER
02-02-2022,RMS,Travis Perkins Trading Company Ltd,"Purchase - Equipment, Furniture And Materials",5029.06,0,COMMERCIAL SUPPLIER
02-02-2022,RMS,Travis Perkins Trading Company Ltd,"Purchase - Equipment, Furniture And Materials",92.16,0,COMMERCIAL SUPPLIER
02-02-2022,RMS,Travis Perkins Trading Company Ltd,"Purchase - Equipment, Furniture And Materials",97.08,0,COMMERCIAL SUPPLIER
02-02-2022,RMS,Travis Perkins Trading Company Ltd,"Purchase - Equipment, Furniture And Materials",2821.61,0,COMMERCIAL SUPPLIER
02-02-2022,RMS,Travis Perkins Trading Company Ltd,"Purchase - Equipment, Furniture And Materials",845,0,COMMERCIAL SUPPLIER
02-02-2022,RMS,Travis Perkins Trading Company Ltd,"Purchase - Equipment, Furniture And Materials",328742.65,0,COMMERCIAL SUPPLIER
02-02-2022,RMS,Travis Perkins Trading Company Ltd,"Purchase - Equipment, Furniture And Materials",4325.36,0,COMMERCIAL SUPPLIER
02-02-2022,RMS,Travis Perkins Trading Company Ltd,"Purchase - Equipment, Furniture And Materials",115557.11,0,COMMERCIAL SUPPLIER
02-02-2022,RMS,Travis Perkins Trading Company Ltd,"Purchase - Equipment, Furniture And Materials",66081.65,0,COMMERCIAL SUPPLIER
02-02-2022,RMS,Travis Perkins Trading Company Ltd,"Purchase - Equipment, Furniture And Materials",10020.21,0,COMMERCIAL SUPPLIER
02-02-2022,oneSource,Urgent Delivery Couriers Ltd,Postage And Courier Services,668,0,COMMERCIAL SUPPLIER
03-02-2022,Environment and Sustainable Transport,Project Centre Ltd,Consultancy Fees,15000,0,COMMERCIAL SUPPLIER
03-02-2022,Environment and Sustainable Transport,Project Centre Ltd,Consultancy Fees,48900,0,COMMERCIAL SUPPLIER
03-02-2022,Brighter Futures Director,Ankh Services,Professional Services - General,1800,0,NON COMMERCIAL SUPPLIER
03-02-2022,Adults & Health,T J Building Services,Private Contractors Payment - Other,780,0,VENDOR
03-02-2022,RMS,AMA Security Ltd,Private Contractors Payment - Other,416.15,0,COMMERCIAL SUPPLIER
03-02-2022,Children and Young People,Richard House Trust,Residential Placements - Private Contractors Payment,2424,0,COMMERCIAL SUPPLIER
03-02-2022,Children and Young People,Richard House Trust,Residential Placements - Private Contractors Payment,5656,0,COMMERCIAL SUPPLIER
03-02-2022,Children and Young People,Richard House Trust,Residential Placements - Private Contractors Payment,5656,0,COMMERCIAL SUPPLIER
03-02-2022,Children and Young People,Richard House Trust,Residential Placements - Private Contractors Payment,5656,0,COMMERCIAL SUPPLIER
03-02-2022,Children and Young People,Richard House Trust,Residential Placements - Private Contractors Payment,5656,0,COMMERCIAL SUPPLIER
03-02-2022,Adults & Health,Stannah Lift Services Ltd,Private Contractors Payment - Other,2289,0,CIS
03-02-2022,Adults & Health,Ellingham Employment Services Ltd,Daycare - Private Contractors Payment,150,0,VENDOR
03-02-2022,Adults & Health,Ellingham Employment Services Ltd,Daycare - Private Contractors Payment,150,0,VENDOR
03-02-2022,Adults & Health,Ellingham Employment Services Ltd,Daycare - Private Contractors Payment,150,0,VENDOR
03-02-2022,Adults & Health,Ellingham Employment Services Ltd,Daycare - Private Contractors Payment,150,0,VENDOR
03-02-2022,Adults & Health,Ellingham Employment Services Ltd,Daycare - Private Contractors Payment,160,0,VENDOR
03-02-2022,Adults & Health,Ellingham Employment Services Ltd,Daycare - Private Contractors Payment,160,0,VENDOR
03-02-2022,Adults & Health,Ellingham Employment Services Ltd,Daycare - Private Contractors Payment,114.24,0,VENDOR
03-02-2022,Adults & Health,Ellingham Employment Services Ltd,Daycare - Private Contractors Payment,150,0,VENDOR
03-02-2022,Adults & Health,Ellingham Employment Services Ltd,Daycare - Private Contractors Payment,150,0,VENDOR
03-02-2022,Adults & Health,Ellingham Employment Services Ltd,Daycare - Private Contractors Payment,150,0,VENDOR
03-02-2022,Adults & Health,Ellingham Employment Services Ltd,Daycare - Private Contractors Payment,150,0,VENDOR
03-02-2022,Adults & Health,Ellingham Employment Services Ltd,Daycare - Private Contractors Payment,120,0,VENDOR
03-02-2022,Adults & Health,Ellingham Employment Services Ltd,Daycare - Private Contractors Payment,120,0,VENDOR
03-02-2022,Adults & Health,Ellingham Employment Services Ltd,Daycare - Private Contractors Payment,120,0,VENDOR
03-02-2022,Adults & Health,Ellingham Employment Services Ltd,Daycare - Private Contractors Payment,120,0,VENDOR
03-02-2022,Adults & Health,Ellingham Employment Services Ltd,Daycare - Private Contractors Payment,286,0,VENDOR
03-02-2022,Adults & Health,Ellingham Employment Services Ltd,Daycare - Private Contractors Payment,275,0,VENDOR
03-02-2022,Adults & Health,Ellingham Employment Services Ltd,Daycare - Private Contractors Payment,275,0,VENDOR
03-02-2022,Adults & Health,Ellingham Employment Services Ltd,Daycare - Private Contractors Payment,275,0,VENDOR
03-02-2022,RMS,David & Roger Franklin Ltd,"Purchase - Equipment, Furniture And Materials",480,0,VENDOR
03-02-2022,RMS,David & Roger Franklin Ltd,"Purchase - Equipment, Furniture And Materials",3.15,0,VENDOR
03-02-2022,RMS,David & Roger Franklin Ltd,"Purchase - Equipment, Furniture And Materials",76.8,0,VENDOR
03-02-2022,RMS,David & Roger Franklin Ltd,"Purchase - Equipment, Furniture And Materials",265,0,VENDOR
03-02-2022,Environment and Sustainable Transport,Greener Solutions,Highway Services,259,0,VENDOR
03-02-2022,RMS,GB Macks Skips,Private Contractors Payment - Other,56,0,COMMERCIAL SUPPLIER
03-02-2022,RMS,GB Macks Skips,Private Contractors Payment - Other,0,0,COMMERCIAL SUPPLIER
03-02-2022,RMS,GB Macks Skips,Private Contractors Payment - Other,224,0,COMMERCIAL SUPPLIER
03-02-2022,Housing Revenue Account,Mindme,Security Services (Excluding Premises),5760,0,COMMERCIAL SUPPLIER
03-02-2022,Housing Revenue Account,Herts Heritage Building & Roofing Ltd,"Maintenance - Equipment, Furniture And Materials",722.14,0,COMMERCIAL SUPPLIER
03-02-2022,Housing Revenue Account,Herts Heritage Building & Roofing Ltd,"Maintenance - Equipment, Furniture And Materials",11070.28,0,COMMERCIAL SUPPLIER
03-02-2022,Environment and Sustainable Transport,Ford Motor Company Ltd t/a PartsPlus,Highway Services,40.15,0,COMMERCIAL SUPPLIER
03-02-2022,Environment and Sustainable Transport,Ford Motor Company Ltd t/a PartsPlus,Highway Services,130.74,0,COMMERCIAL SUPPLIER
03-02-2022,Environment and Sustainable Transport,Ford Motor Company Ltd t/a PartsPlus,Highway Services,29,0,COMMERCIAL SUPPLIER
03-02-2022,Environment and Sustainable Transport,Ford Motor Company Ltd t/a PartsPlus,Highway Services,58.24,0,COMMERCIAL SUPPLIER
03-02-2022,Environment and Sustainable Transport,Ford Motor Company Ltd t/a PartsPlus,Highway Services,27.55,0,COMMERCIAL SUPPLIER
03-02-2022,Environment and Sustainable Transport,Ford Motor Company Ltd t/a PartsPlus,Highway Services,40.15,0,COMMERCIAL SUPPLIER
03-02-2022,Environment and Sustainable Transport,Enterprise Flex-E-Rent,Client Transport,565.4,0,COMMERCIAL SUPPLIER
03-02-2022,Environment and Sustainable Transport,Enterprise Flex-E-Rent,Client Transport,565.4,0,COMMERCIAL SUPPLIER
03-02-2022,Environment and Sustainable Transport,Enterprise Flex-E-Rent,Client Transport,256.53,0,COMMERCIAL SUPPLIER
03-02-2022,Environment and Sustainable Transport,Enterprise Flex-E-Rent,Client Transport,408.26,0,COMMERCIAL SUPPLIER
03-02-2022,Environment and Sustainable Transport,Enterprise Flex-E-Rent,Client Transport,408.26,0,COMMERCIAL SUPPLIER
03-02-2022,Environment and Sustainable Transport,Enterprise Flex-E-Rent,Client Transport,408.26,0,COMMERCIAL SUPPLIER
03-02-2022,Environment and Sustainable Transport,Enterprise Flex-E-Rent,Client Transport,408.26,0,COMMERCIAL SUPPLIER
03-02-2022,Environment and Sustainable Transport,Enterprise Flex-E-Rent,Client Transport,623.37,0,COMMERCIAL SUPPLIER
03-02-2022,Environment and Sustainable Transport,Enterprise Flex-E-Rent,Client Transport,408.26,0,COMMERCIAL SUPPLIER
03-02-2022,Environment and Sustainable Transport,Enterprise Flex-E-Rent,Client Transport,234.94,0,COMMERCIAL SUPPLIER
03-02-2022,Environment and Sustainable Transport,Enterprise Flex-E-Rent,Client Transport,989.91,0,COMMERCIAL SUPPLIER
03-02-2022,Environment and Sustainable Transport,Enterprise Flex-E-Rent,Client Transport,552.31,0,COMMERCIAL SUPPLIER
03-02-2022,Environment and Sustainable Transport,Enterprise Flex-E-Rent,Client Transport,408.26,0,COMMERCIAL SUPPLIER
03-02-2022,Environment and Sustainable Transport,Enterprise Flex-E-Rent,Client Transport,408.26,0,COMMERCIAL SUPPLIER
03-02-2022,Housing Revenue Account,Gas Contract Services LTD,Cyclical/Planned Maintenance - Mechanical And Electrical,3289.5,0,LOCAL AUTHORITY SERVICES
03-02-2022,Brighter Futures Director,Community Links Trading Ltd,Events,964,0,COMMERCIAL SUPPLIER
03-02-2022,RMS,Nicholls & Clarke Glass Ltd,"Purchase - Equipment, Furniture And Materials",2905.97,0,VENDOR
03-02-2022,RMS,Nicholls & Clarke Glass Ltd,"Purchase - Equipment, Furniture And Materials",1917,0,VENDOR
03-02-2022,Inclusive Economy & Housing,3PH Group Ltd,Events,22900,0,COMMERCIAL SUPPLIER
03-02-2022,Brighter Futures Director,The Renewal Programme,Private Contractors Payment - Other,10194.07,0,VENDOR
03-02-2022,RMS,Travis Perkins Trading Company Ltd,Vehicle Hire,66,0,COMMERCIAL SUPPLIER
03-02-2022,RMS,Travis Perkins Trading Company Ltd,Vehicle Hire,440,0,COMMERCIAL SUPPLIER
03-02-2022,Brighter Futures Director,Aston- Mansfield,Private Contractors Payment - Other,3068,0,VENDOR
03-02-2022,Brighter Futures Director,Aston- Mansfield,Private Contractors Payment - Other,1163,0,VENDOR
03-02-2022,Children and Young People,Streetwise Kids Limited,Private Contractors Payment - Other,1700,0,COMMERCIAL SUPPLIER
03-02-2022,Inclusive Economy & Housing,Maybrick Property Maintenance,Facilities Management,545,0,NON COMMERCIAL SUPPLIER
03-02-2022,oneSource,CCS Media Limited.,Ict Hardware,5100,0,COMMERCIAL SUPPLIER
03-02-2022,oneSource,CCS Media Limited.,Ict Hardware,1012.5,0,COMMERCIAL SUPPLIER
03-02-2022,oneSource,CCS Media Limited.,Ict Hardware,1950,0,COMMERCIAL SUPPLIER
03-02-2022,RMS,Glass System Ltd,"Purchase - Equipment, Furniture And Materials",545.92,0,COMMERCIAL SUPPLIER
03-02-2022,RMS,Glass System Ltd,"Purchase - Equipment, Furniture And Materials",727.65,0,COMMERCIAL SUPPLIER
03-02-2022,RMS,Glass System Ltd,"Purchase - Equipment, Furniture And Materials",669.44,0,COMMERCIAL SUPPLIER
03-02-2022,RMS,Glass System Ltd,"Purchase - Equipment, Furniture And Materials",620.77,0,COMMERCIAL SUPPLIER
03-02-2022,RMS,Glass System Ltd,"Purchase - Equipment, Furniture And Materials",618.02,0,COMMERCIAL SUPPLIER
03-02-2022,RMS,Glass System Ltd,"Purchase - Equipment, Furniture And Materials",351.91,0,COMMERCIAL SUPPLIER
03-02-2022,RMS,Glass System Ltd,"Purchase - Equipment, Furniture And Materials",499.67,0,COMMERCIAL SUPPLIER
03-02-2022,RMS,Glass System Ltd,"Purchase - Equipment, Furniture And Materials",213.64,0,COMMERCIAL SUPPLIER
03-02-2022,RMS,Glass System Ltd,"Purchase - Equipment, Furniture And Materials",574.79,0,COMMERCIAL SUPPLIER
03-02-2022,RMS,Glass System Ltd,"Purchase - Equipment, Furniture And Materials",509.03,0,COMMERCIAL SUPPLIER
03-02-2022,RMS,Glass System Ltd,"Purchase - Equipment, Furniture And Materials",209.87,0,COMMERCIAL SUPPLIER
03-02-2022,RMS,Glass System Ltd,"Purchase - Equipment, Furniture And Materials",317.78,0,COMMERCIAL SUPPLIER
03-02-2022,RMS,Glass System Ltd,"Purchase - Equipment, Furniture And Materials",377.58,0,COMMERCIAL SUPPLIER
03-02-2022,RMS,Glass System Ltd,"Purchase - Equipment, Furniture And Materials",227.58,0,COMMERCIAL SUPPLIER
03-02-2022,RMS,Glass System Ltd,"Purchase - Equipment, Furniture And Materials",332.27,0,COMMERCIAL SUPPLIER
03-02-2022,RMS,Glass System Ltd,"Purchase - Equipment, Furniture And Materials",252.68,0,COMMERCIAL SUPPLIER
03-02-2022,Dedicated Schools Budget,Connevans Ltd,"Purchase - Equipment, Furniture And Materials",1612.8,0,COMMERCIAL SUPPLIER
03-02-2022,Environment and Sustainable Transport,Sparshatt Truck & Van Ltd,Highway Services,142.68,0,COMMERCIAL SUPPLIER
03-02-2022,Environment and Sustainable Transport,Sparshatt Truck & Van Ltd,Highway Services,8.24,0,COMMERCIAL SUPPLIER
03-02-2022,Environment and Sustainable Transport,Sparshatt Truck & Van Ltd,Highway Services,63.2,0,COMMERCIAL SUPPLIER
03-02-2022,Environment and Sustainable Transport,Sparshatt Truck & Van Ltd,Highway Services,16.9,0,COMMERCIAL SUPPLIER
03-02-2022,oneSource - Non Shared,County Shutters & Doors Ltd,Security Services (Excluding Premises),168,0,COMMERCIAL SUPPLIER
03-02-2022,oneSource - Non Shared,County Shutters & Doors Ltd,Security Services (Excluding Premises),112,0,COMMERCIAL SUPPLIER
03-02-2022,oneSource - Non Shared,County Shutters & Doors Ltd,Security Services (Excluding Premises),112,0,COMMERCIAL SUPPLIER
03-02-2022,oneSource - Non Shared,County Shutters & Doors Ltd,Security Services (Excluding Premises),168,0,COMMERCIAL SUPPLIER
03-02-2022,oneSource - Non Shared,County Shutters & Doors Ltd,Security Services (Excluding Premises),56,0,COMMERCIAL SUPPLIER
03-02-2022,oneSource - Non Shared,County Shutters & Doors Ltd,Security Services (Excluding Premises),112,0,COMMERCIAL SUPPLIER
03-02-2022,oneSource - Non Shared,County Shutters & Doors Ltd,Security Services (Excluding Premises),280,0,COMMERCIAL SUPPLIER
03-02-2022,oneSource - Non Shared,County Shutters & Doors Ltd,Security Services (Excluding Premises),168,0,COMMERCIAL SUPPLIER
03-02-2022,oneSource - Non Shared,County Shutters & Doors Ltd,Security Services (Excluding Premises),616,0,COMMERCIAL SUPPLIER
03-02-2022,oneSource - Non Shared,County Shutters & Doors Ltd,Security Services (Excluding Premises),560,0,COMMERCIAL SUPPLIER
03-02-2022,oneSource - Non Shared,County Shutters & Doors Ltd,Security Services (Excluding Premises),56,0,COMMERCIAL SUPPLIER
03-02-2022,oneSource - Non Shared,County Shutters & Doors Ltd,Security Services (Excluding Premises),280,0,COMMERCIAL SUPPLIER
03-02-2022,oneSource - Non Shared,County Shutters & Doors Ltd,Security Services (Excluding Premises),56,0,COMMERCIAL SUPPLIER
03-02-2022,oneSource - Non Shared,County Shutters & Doors Ltd,Security Services (Excluding Premises),336,0,COMMERCIAL SUPPLIER
03-02-2022,oneSource - Non Shared,County Shutters & Doors Ltd,Security Services (Excluding Premises),336,0,COMMERCIAL SUPPLIER
03-02-2022,oneSource - Non Shared,County Shutters & Doors Ltd,Security Services (Excluding Premises),336,0,COMMERCIAL SUPPLIER
03-02-2022,oneSource - Non Shared,County Shutters & Doors Ltd,Security Services (Excluding Premises),840,0,COMMERCIAL SUPPLIER
03-02-2022,oneSource - Non Shared,County Shutters & Doors Ltd,Security Services (Excluding Premises),224,0,COMMERCIAL SUPPLIER
03-02-2022,oneSource - Non Shared,County Shutters & Doors Ltd,Security Services (Excluding Premises),392,0,COMMERCIAL SUPPLIER
03-02-2022,oneSource - Non Shared,Travis Perkins Trading Company Ltd,Building Alterations And Materials,21.16,0,COMMERCIAL SUPPLIER
03-02-2022,oneSource - Non Shared,Travis Perkins Trading Company Ltd,Building Alterations And Materials,20,0,COMMERCIAL SUPPLIER
03-02-2022,oneSource - Non Shared,Travis Perkins Trading Company Ltd,Building Alterations And Materials,417.52,0,COMMERCIAL SUPPLIER
03-02-2022,"People, Policy and Performance",Newham Poetry Group,Events,3600,0,NON COMMERCIAL SUPPLIER
03-02-2022,Housing Revenue Account,HM Courts & Tribunals Service,Legal Fees,527.81,0,COMMERCIAL SUPPLIER
03-02-2022,Children and Young People,Sayers (Car Hire),Client Transport,2400,0,VENDOR
03-02-2022,Children and Young People,Sayers (Car Hire),Client Transport,555,0,VENDOR
03-02-2022,Children and Young People,Sayers (Car Hire),Client Transport,1970,0,VENDOR
03-02-2022,Children and Young People,Sayers (Car Hire),Client Transport,1660,0,VENDOR
03-02-2022,Adults & Health,Pulse Healthcare Ltd,Professional Services - General,36783.6,0,COMMERCIAL SUPPLIER
03-02-2022,Adults & Health,Pulse Healthcare Ltd,Professional Services - General,73567.2,0,COMMERCIAL SUPPLIER
03-02-2022,Children and Young People,Sayers (Car Hire),Client Transport,510,0,VENDOR
03-02-2022,Children and Young People,Sayers (Car Hire),Client Transport,3980,0,VENDOR
03-02-2022,Children and Young People,Sayers (Car Hire),Client Transport,2455,0,VENDOR
03-02-2022,Children and Young People,Sayers (Car Hire),Client Transport,3185,0,VENDOR
03-02-2022,Children and Young People,Sayers (Car Hire),Client Transport,1275,0,VENDOR
03-02-2022,Children and Young People,Sayers (Car Hire),Client Transport,1150,0,VENDOR
03-02-2022,Children and Young People,Sayers (Car Hire),Client Transport,4568,0,VENDOR
03-02-2022,Children and Young People,Sayers (Car Hire),Client Transport,765,0,VENDOR
03-02-2022,Children and Young People,Sayers (Car Hire),Client Transport,556,0,VENDOR
03-02-2022,Children and Young People,Sayers (Car Hire),Client Transport,875,0,VENDOR
03-02-2022,Children and Young People,Sayers (Car Hire),Client Transport,370,0,VENDOR
03-02-2022,Children and Young People,Sayers (Car Hire),Client Transport,2850,0,VENDOR
03-02-2022,Children and Young People,Sayers (Car Hire),Client Transport,19656,0,VENDOR
03-02-2022,"People, Policy and Performance",Penna Plc.,Staff Recruitment Costs,18326,0,VENDOR
03-02-2022,Environment and Sustainable Transport,Penna Plc,Staff Recruitment Costs,10080,0,COMMERCIAL SUPPLIER
03-02-2022,Environment and Sustainable Transport,Penna Plc,Staff Recruitment Costs,895,0,COMMERCIAL SUPPLIER
03-02-2022,Environment and Sustainable Transport,Penna Plc,Staff Recruitment Costs,895,0,COMMERCIAL SUPPLIER
03-02-2022,"People, Policy and Performance",Penna Plc.,Staff Recruitment Costs,12495,0,VENDOR
03-02-2022,"People, Policy and Performance",Penna Plc.,Staff Recruitment Costs,4165,0,VENDOR
03-02-2022,Environment and Sustainable Transport,Aid Training & Operation Ltd,Staff Development And Training,650,0,VENDOR
03-02-2022,Children and Young People,A Wilderness Way Ltd,Residential Placements - Private Contractors Payment,1414,0,NON COMMERCIAL SUPPLIER
03-02-2022,Children and Young People,A Wilderness Way Ltd,Residential Placements - Private Contractors Payment,1500,0,NON COMMERCIAL SUPPLIER
03-02-2022,Children and Young People,A Wilderness Way Ltd,Residential Placements - Private Contractors Payment,7586,0,NON COMMERCIAL SUPPLIER
03-02-2022,Children and Young People,A Wilderness Way Ltd,Residential Placements - Private Contractors Payment,1414,0,NON COMMERCIAL SUPPLIER
03-02-2022,Children and Young People,A Wilderness Way Ltd,Residential Placements - Private Contractors Payment,7586,0,NON COMMERCIAL SUPPLIER
03-02-2022,Children and Young People,A Wilderness Way Ltd,Residential Placements - Private Contractors Payment,1500,0,NON COMMERCIAL SUPPLIER
03-02-2022,Children and Young People,A Wilderness Way Ltd,Residential Placements - Private Contractors Payment,1500,0,NON COMMERCIAL SUPPLIER
03-02-2022,Children and Young People,A Wilderness Way Ltd,Residential Placements - Private Contractors Payment,7586,0,NON COMMERCIAL SUPPLIER
03-02-2022,Children and Young People,A Wilderness Way Ltd,Residential Placements - Private Contractors Payment,1414,0,NON COMMERCIAL SUPPLIER
03-02-2022,Children and Young People,A Wilderness Way Ltd,Residential Placements - Private Contractors Payment,1500,0,NON COMMERCIAL SUPPLIER
03-02-2022,Children and Young People,A Wilderness Way Ltd,Residential Placements - Private Contractors Payment,7586,0,NON COMMERCIAL SUPPLIER
03-02-2022,Children and Young People,A Wilderness Way Ltd,Residential Placements - Private Contractors Payment,1414,0,NON COMMERCIAL SUPPLIER
03-02-2022,Adults & Health,Contour886 Limited,Specialist Equipment For Service Provision,3700.9,0,COMMERCIAL SUPPLIER
03-02-2022,RMS,Benchmarx Kitchens and Joinery,Private Contractors Payment - Other,714.21,0,COMMERCIAL SUPPLIER
03-02-2022,RMS,Benchmarx Kitchens and Joinery,Private Contractors Payment - Other,0,0,COMMERCIAL SUPPLIER
03-02-2022,RMS,Travis Perkins Trading Company Ltd,"Purchase - Equipment, Furniture And Materials",934.28,0,COMMERCIAL SUPPLIER
03-02-2022,Environment and Sustainable Transport,Floglass Limited,"Purchase - Equipment, Furniture And Materials",340,0,COMMERCIAL SUPPLIER
03-02-2022,Brighter Futures Director,The People Speak,Events,8350,0,COMMERCIAL SUPPLIER
03-02-2022,Brighter Futures Director,The People Speak,Events,1500,0,COMMERCIAL SUPPLIER
03-02-2022,Children and Young People,Ebony Healthcare Services Limited,Supported Other Accommodation - Private Contractors Payment,894.78,0,NON COMMERCIAL SUPPLIER
03-02-2022,Children and Young People,Ebony Healthcare Services Limited,Supported Other Accommodation - Private Contractors Payment,894.78,0,NON COMMERCIAL SUPPLIER
03-02-2022,Children and Young People,Ebony Healthcare Services Limited,Supported Other Accommodation - Private Contractors Payment,894.78,0,NON COMMERCIAL SUPPLIER
03-02-2022,Children and Young People,Ebony Healthcare Services Limited,Supported Other Accommodation - Private Contractors Payment,894.78,0,NON COMMERCIAL SUPPLIER
03-02-2022,Children and Young People,Personal Information - Redacted,Vehicle Hire,711.9,0,INDIVIDUALS
03-02-2022,Environment and Sustainable Transport,Motor Accident Protection Services Ltd t/a MAPS Legal Assistance,Highway Services,211.95,0,NON COMMERCIAL SUPPLIER
03-02-2022,Children and Young People,Choice Fostering Ltd,Fostering Agency Placements - Private Contractors Payment,830,0,COMMERCIAL SUPPLIER
03-02-2022,Children and Young People,Choice Fostering Ltd,Fostering Agency Placements - Private Contractors Payment,830,0,COMMERCIAL SUPPLIER
03-02-2022,Children and Young People,Choice Fostering Ltd,Fostering Agency Placements - Private Contractors Payment,830,0,COMMERCIAL SUPPLIER
03-02-2022,Children and Young People,Choice Fostering Ltd,Fostering Agency Placements - Private Contractors Payment,1185.67,0,COMMERCIAL SUPPLIER
03-02-2022,Children and Young People,Choice Fostering Ltd,Fostering Agency Placements - Private Contractors Payment,1185.67,0,COMMERCIAL SUPPLIER
03-02-2022,Children and Young People,Choice Fostering Ltd,Fostering Agency Placements - Private Contractors Payment,830,0,COMMERCIAL SUPPLIER
03-02-2022,Children and Young People,Choice Fostering Ltd,Fostering Agency Placements - Private Contractors Payment,830,0,COMMERCIAL SUPPLIER
03-02-2022,Children and Young People,Choice Fostering Ltd,Fostering Agency Placements - Private Contractors Payment,830,0,COMMERCIAL SUPPLIER
03-02-2022,Children and Young People,Choice Fostering Ltd,Fostering Agency Placements - Private Contractors Payment,2142.99,0,COMMERCIAL SUPPLIER
03-02-2022,Children and Young People,Choice Fostering Ltd,Fostering Agency Placements - Private Contractors Payment,1500,0,COMMERCIAL SUPPLIER
03-02-2022,Children and Young People,Choice Fostering Ltd,Fostering Agency Placements - Private Contractors Payment,1500,0,COMMERCIAL SUPPLIER
03-02-2022,Children and Young People,Choice Fostering Ltd,Fostering Agency Placements - Private Contractors Payment,1500,0,COMMERCIAL SUPPLIER
03-02-2022,Children and Young People,Choice Fostering Ltd,Fostering Agency Placements - Private Contractors Payment,1750,0,COMMERCIAL SUPPLIER
03-02-2022,Children and Young People,Choice Fostering Ltd,Fostering Agency Placements - Private Contractors Payment,1750,0,COMMERCIAL SUPPLIER
03-02-2022,Children and Young People,Choice Fostering Ltd,Fostering Agency Placements - Private Contractors Payment,2500,0,COMMERCIAL SUPPLIER
03-02-2022,Children and Young People,Choice Fostering Ltd,Fostering Agency Placements - Private Contractors Payment,1750,0,COMMERCIAL SUPPLIER
03-02-2022,oneSource,Civica UK Ltd,Ict Licences,3750,0,COMMERCIAL SUPPLIER
03-02-2022,oneSource - Non Shared,Digitec Security Ltd,Security Services (Excluding Premises),2882.4,0,COMMERCIAL SUPPLIER
03-02-2022,oneSource - Non Shared,Digitec Security Ltd,Security Services (Excluding Premises),210,0,COMMERCIAL SUPPLIER
03-02-2022,oneSource - Non Shared,Digitec Security Ltd,Security Services (Excluding Premises),230,0,COMMERCIAL SUPPLIER
03-02-2022,Children and Young People,Personal Information - Redacted,Vehicle Hire,1013.5,0,INDIVIDUALS
03-02-2022,Dedicated Schools Budget,Personal Information - Redacted,Independent Units Within The Council,103297,0,VENDOR
03-02-2022,Dedicated Schools Budget,Personal Information - Redacted,Independent Units Within The Council,377389,0,VENDOR
03-02-2022,Dedicated Schools Budget,Personal Information - Redacted,Independent Units Within The Council,450957,0,VENDOR
03-02-2022,Dedicated Schools Budget,Personal Information - Redacted,Independent Units Within The Council,174199,0,VENDOR
03-02-2022,Dedicated Schools Budget,Personal Information - Redacted,Independent Units Within The Council,294206,0,NON COMMERCIAL SUPPLIER
03-02-2022,Dedicated Schools Budget,Personal Information - Redacted,Independent Units Within The Council,268882,0,COMMERCIAL SUPPLIER
03-02-2022,Dedicated Schools Budget,Personal Information - Redacted,Independent Units Within The Council,298933,0,VENDOR
03-02-2022,Dedicated Schools Budget,Personal Information - Redacted,Independent Units Within The Council,134894,0,VENDOR
03-02-2022,Dedicated Schools Budget,Personal Information - Redacted,Independent Units Within The Council,124469,0,VENDOR
03-02-2022,Dedicated Schools Budget,Personal Information - Redacted,Independent Units Within The Council,205139,0,NON COMMERCIAL SUPPLIER
03-02-2022,Dedicated Schools Budget,Personal Information - Redacted,Independent Units Within The Council,112762,0,VENDOR
03-02-2022,Dedicated Schools Budget,Personal Information - Redacted,Independent Units Within The Council,156417,0,VENDOR
03-02-2022,Dedicated Schools Budget,Personal Information - Redacted,Independent Units Within The Council,82610,0,VENDOR
03-02-2022,Dedicated Schools Budget,Personal Information - Redacted,Independent Units Within The Council,82560,0,VENDOR
03-02-2022,Dedicated Schools Budget,Personal Information - Redacted,Independent Units Within The Council,724507,0,NON COMMERCIAL SUPPLIER
03-02-2022,Dedicated Schools Budget,Personal Information - Redacted,Independent Units Within The Council,965202,0,NON COMMERCIAL SUPPLIER
03-02-2022,Dedicated Schools Budget,Personal Information - Redacted,Independent Units Within The Council,326084,0,VENDOR
03-02-2022,Dedicated Schools Budget,Personal Information - Redacted,Independent Units Within The Council,863087,0,VENDOR
03-02-2022,Dedicated Schools Budget,Personal Information - Redacted,Independent Units Within The Council,286418,0,VENDOR
03-02-2022,Dedicated Schools Budget,Personal Information - Redacted,Independent Units Within The Council,322340,0,LOCAL AUTHORITY SERVICES
03-02-2022,Dedicated Schools Budget,Personal Information - Redacted,Independent Units Within The Council,176569,0,VENDOR
03-02-2022,Dedicated Schools Budget,Personal Information - Redacted,Independent Units Within The Council,84390,0,VENDOR
03-02-2022,Dedicated Schools Budget,Personal Information - Redacted,Independent Units Within The Council,104669,0,VENDOR
03-02-2022,Dedicated Schools Budget,Personal Information - Redacted,Independent Units Within The Council,318092,0,VENDOR
03-02-2022,Dedicated Schools Budget,Personal Information - Redacted,Independent Units Within The Council,89265,0,VENDOR
03-02-2022,Dedicated Schools Budget,Personal Information - Redacted,Independent Units Within The Council,280195,0,VENDOR
03-02-2022,Dedicated Schools Budget,Personal Information - Redacted,Independent Units Within The Council,192128,0,VENDOR
03-02-2022,Dedicated Schools Budget,Personal Information - Redacted,Independent Units Within The Council,104683,0,NON COMMERCIAL SUPPLIER
03-02-2022,Dedicated Schools Budget,Personal Information - Redacted,Independent Units Within The Council,62962,0,VENDOR
03-02-2022,Dedicated Schools Budget,Personal Information - Redacted,Independent Units Within The Council,273112,0,VENDOR
03-02-2022,Dedicated Schools Budget,Personal Information - Redacted,Independent Units Within The Council,292344,0,VENDOR
03-02-2022,Dedicated Schools Budget,Personal Information - Redacted,Independent Units Within The Council,112993,0,VENDOR
03-02-2022,Dedicated Schools Budget,Personal Information - Redacted,Independent Units Within The Council,172143,0,VENDOR
03-02-2022,Dedicated Schools Budget,Personal Information - Redacted,Independent Units Within The Council,122339,0,VENDOR
03-02-2022,Dedicated Schools Budget,Personal Information - Redacted,Independent Units Within The Council,460693,0,LOCAL AUTHORITY SERVICES
03-02-2022,Dedicated Schools Budget,Personal Information - Redacted,Independent Units Within The Council,405915,0,VENDOR
03-02-2022,Dedicated Schools Budget,Personal Information - Redacted,Independent Units Within The Council,967063,0,VENDOR
03-02-2022,Dedicated Schools Budget,Personal Information - Redacted,Independent Units Within The Council,775109,0,VENDOR
03-02-2022,Dedicated Schools Budget,Personal Information - Redacted,Independent Units Within The Council,390735,0,VENDOR
03-02-2022,Dedicated Schools Budget,Personal Information - Redacted,Independent Units Within The Council,254354,0,VENDOR
03-02-2022,Dedicated Schools Budget,Personal Information - Redacted,Independent Units Within The Council,258740,0,VENDOR
03-02-2022,Dedicated Schools Budget,Personal Information - Redacted,Independent Units Within The Council,335977,0,VENDOR
03-02-2022,Dedicated Schools Budget,Personal Information - Redacted,Independent Units Within The Council,439757,0,NON COMMERCIAL SUPPLIER
03-02-2022,Dedicated Schools Budget,Personal Information - Redacted,Independent Units Within The Council,148180,0,COMMERCIAL SUPPLIER
03-02-2022,Dedicated Schools Budget,Personal Information - Redacted,Independent Units Within The Council,316643,0,VENDOR
03-02-2022,Dedicated Schools Budget,Personal Information - Redacted,Independent Units Within The Council,220937,0,VENDOR
03-02-2022,Dedicated Schools Budget,Personal Information - Redacted,Independent Units Within The Council,267757,0,NON COMMERCIAL SUPPLIER
03-02-2022,Dedicated Schools Budget,Personal Information - Redacted,Independent Units Within The Council,134527,0,VENDOR
03-02-2022,Brighter Futures Director,PFS Prepaid Financial Services,Miscellaneous Expenses,2550,0,INDIVIDUALS
03-02-2022,Inclusive Economy & Housing,Notting Hill Genesis Rent Account,Payment To Other Local Authorities,8997.43,0,COMMERCIAL SUPPLIER
03-02-2022,Inclusive Economy & Housing,Notting Hill Genesis Rent Account,Payment To Other Local Authorities,5303.58,0,COMMERCIAL SUPPLIER
03-02-2022,Inclusive Economy & Housing,William Alder Productions Ltd,Events,2000,0,COMMERCIAL SUPPLIER
03-02-2022,oneSource,The Language Shop Ltd,Translators And Interpreters,15320,0,COMMERCIAL SUPPLIER
03-02-2022,Children and Young People,Aspire Youth Services ltd,Supported Other Accommodation - Private Contractors Payment,364,0,COMMERCIAL SUPPLIER
03-02-2022,Children and Young People,Aspire Youth Services ltd,Supported Other Accommodation - Private Contractors Payment,48,0,COMMERCIAL SUPPLIER
03-02-2022,Children and Young People,Aspire Youth Services ltd,Supported Other Accommodation - Private Contractors Payment,48,0,COMMERCIAL SUPPLIER
03-02-2022,Children and Young People,Aspire Youth Services ltd,Supported Other Accommodation - Private Contractors Payment,364,0,COMMERCIAL SUPPLIER
03-02-2022,Children and Young People,Aspire Youth Services ltd,Supported Other Accommodation - Private Contractors Payment,48,0,COMMERCIAL SUPPLIER
